Workbook

Sheet Usmernenie
A1: Usmernenie k priebežnému čerpaniu a vyúčtovaniu finančných prostriedkov poskytnutých v roku 2024
A3: ZÁKLADNÉ POKYNY
A4: 1. Vložiť údaje do hárkov "Príjmy" a "Doklady".
A5: 2. Skontrolovať hárky "Doklady" a "Spolu".
A6: 3. Po kontrole odoslať elektronickú verziu formuláru na adresu ziadosti.sport@mincrs.sk.
A7: 4. Vyplniť hárok "Avízo - vratka" (len Prijímatelia, ktorí nevyčerpali celú sumu).
A8: 5. Vytlačiť hárky "Spolu", "Doklady", "Avízo - vratka".
A9: 6. Dopísať do hárku "Spolu" dátum a čas odoslania elektronickej verzie formuláru vyúčtovania.
A10: 7. Podpísať všetky hárky štatutárnym zástupcom/zástupcami.
A11: 8. Odoslať formulár vyúčtovania hárky "Doklady", "Spolu" a "Avízo - vratka" - len v prípade vrátenia nevyčerpaných finančných prostriedkov v listinnej podobe na adresu: Ministerstvo cestovného ruchu a športu SR, sekcia financovania športu a štátnej športovej politiky, Pribinova 32, 810 08 Bratislava .
A12: Pri vypĺňaní odporúčame použiť hárok „Príklady“, v ktorom sú vysvetlené najčastejšie druhy výdavkov. Pomôže v prípade, ak si nie ste istí, ako uviesť určitý typ výdavku.
A14: INFORMÁCIA – PRIEBEŽNÉ ZVEREJŇOVANIE A VYÚČTOVANIE PRÍSPEVKOV PRE KLUBY V prípade poskytnutia finančných prostriedkov z príspevku uznanému športu klubom podľa § 69 ods. (4) bod a) zákona č. 440/2015 Z.z. o športe a o zmene a dplnení nietorých zákonov v znení neskorších predpisov (ďalej len "zákon o športe") má prijímateľ finančných prostriedkov zo štátneho rozpočtu (ďalej len „Prijímateľ“) dve možnosti: 1. Príspevok poskytne priamym poukázaním na samostatný bankový účet klubu. V tomto prípade: a) KLUB je povinný zriadiť pre príjem prostriedkov zo štátneho rozpočtu samostatný bankový účet, b) KLUB zverejňuje použitie príspevku v rovnakej forme a štruktúre ako Prijímateľ, nakoľko v tomto prípade vystupuje klub ako prijímateľ, c) Prijímateľ zverejňuje v hárku „Doklady“ poskytnutú sumu klubu ako samostatnú položku s Popisom úhrady „príspevok klubu“, pričom v Dodávateľovi plnenia uvedie názov klubu, d) Prijímateľ uvádza vo formulári vyúčtovania finančných prostriedkov za aktuálny rok prostriedky poskytnuté klubom v rovnakej forme a štruktúre, ako ostatné účely uvedené v zmluve (viď hárok "Príklady"). Neuvádzať jednou sumou, ale rozpísať jednotlivé výdavky. 2. Príspevok poskytne formou refundácie výdavkov klubu na bankový účet klubu. V tomto prípade: a) KLUB nie je povinný zverejniť priebežné prijatie a čerpanie poskytnutých prostriedkov z príspevku uznanému športu, nakoľko tieto položky sú priebežne zverejňované prijímateľom, b) Prijímateľ zverejňuje v hárku „Doklady“ refundované sumy klubu ako samostatné položky podľa konkrétneho účelu, pričom okrem sumy, účelu a dodávateľa plnenia uvedie aj názov KLUBU, ktorému výdavky refunduje, c) Prijímateľ vo formulári vyúčtovania finančných prostriedkov uvádza výdavky refundované klubom v rovnakej forme a štruktúre ako ostatné účely uvedené v zmluve, vrátane názvu KLUBU, ktorému výdavok refunduje.
A16: INFORMÁCIA - PRIEBEŽNÉ ZVEREJŇOVANIE A VYÚČTOVANIE PRÍSPEVKU SLOVENSKÉMU PARALYMPIJSKÉMU VÝBORU V prípade poskytnutia finančných prostriedkov z príspevku na národný športový projekt podľa § 75 ods. (6) zákona o športe Slovenskému paralympijskému výboru (ďalej len „SPV“) sa príspevok poskytne priamym poukázaním na samostatné bankové účty jednotlivých subjektov uvedených v zmluve (nie vo forme refundácie výdavkov). V tomto prípade: a) je každý subjekt povinný zriadiť pre príjem prostriedkov zo štátneho rozpočtu samostatný bankový účet, b) SPV zverejňuje poskytnutú sumu subjektu ako samostatnú položku s Popisom úhrady „príspevok subjektu“, pričom v Dodávateľovi plnenia uvedie názov subjektu, c) subjekt zverejňuje použitie príspevku v rovnakej forme a štruktúre ako prijímateľ príspevku, t. j. SPV, nakoľko v tomto prípade vystupuje každý subjekt ako Prijímateľ, d) SPV uvádza vo formulári vyúčtovania za aktuálny rok prostriedky poskytnuté samotnému SPV rovnako ako ostatné účely uvedené v zmluve a subjekty združené v SPV v rovnakej forme a štruktúre ako SPV (viď hárok "Príklady"). Podľa zmluvy na aktuálny rok subjekty združené v SPV posielajú vyúčtovanie priamo MCRaŠ SR (nie cez SPV). Toto ustanovenie sa rovnako vzťahuje aj na prípady vyčlenenia a poskytnutia finančných prostriedkov pre športy zdravotne znevýhodnených, patriacich pod príslušné národné športové zväzy v pôsobnosti jednotlivých medzinárodných federácií.
A18: VŠEOBECNÉ POKYNY
A19: (1) Priebežné čerpanie a vyúčtovanie príspevkov/dotácií poskytnutých zo štátneho rozpočtu v aktuálnom roku v oblasti športu (ďalej len "Finančných prostriedkov") sa vykonáva v termínoch a spôsobom, ktoré sú stanovené v zmluve/dodatku k zmluve o poskytnutí Finančných prostriedkov (ďalej len „Zmluva“).
A21: (2) Prijímateľ je v súlade s § 65 ods. (6) zákona o športe povinný priebežne zverejňovať informácie o prijatí a spôsobe použitia Finančných prostriedkov najneskôr do 25. dňa kalendárneho mesiaca nasledujúceho po kalendárnom mesiaci, v ktorom boli Finančné prostriedky prijaté alebo použité. Zverejnením formuláru vyúčtovania na svojej webovej stránke a jeho pravidelnou aktualizáciou, vrátane oznámenia tejto webovej adresy MCRaŠ SR, si túto povinnosť splníte.
A23: (3) Tento formulár obsahuje údaje o sumách a účeloch Finančných prostriedkov uvedených v Zmluvách o poskytnutí finančných prostriedkov Prijímateľovi vybranému zo zoznamu. Údaje sú aktualizované priebežne počas celého kalendárneho roka.
A25: (4) Prijímateľ aktualizuje k vloženému dátumu (bunka C1 hárku "Príjmy") sumu prijatých Finančných prostriedkov, ktoré mu boli poukázané od 01.01.2024 do 31.12.2024.
A27: (5) Prijímateľ uvádza každý príjem (poukázané Finančné prostriedky) a každý výdaj (použitie Finančných prostriedkov) na samostatnom riadku ako samostatnú položku. Ak je potrebné platbu rozdeliť na viacero účelov, rozpíše sa táto platba na viacero riadkov, v každom riadku sa vyberie príslušný účel (stĺpec A) a príslušný analytický kód účelu (stĺpec J).
A29: (6) Formulár si uložte vo vašom počítači. V akomkoľvek hárku vypĺňate len žlté polia. V prípade nezrovnalostí alebo problémov pri vypĺňaní sa obráťte na zamestnancov sekcie financovania športu a štátnej športovej politiky MCRaS SR.
A31: (7) V hárku „Doklady“ vyberte zo zoznamu svoju organizáciu („Prijímateľ Finančných prostriedkov“).
A33: (8) Do polí riadkov 107 až 5000 vložte postupne vyúčtovacie údaje (polia zmenia farbu na žltú). Údaje v stĺpcoch B až H je možné vyplniť aj vložením údajov z iného hárku .xls, alebo z iného zdroja (CTRL+C, CTRL+V). Údaje v stĺpci A nie je možné vyplniť kopírovaním z iného zdroja, ale je potrebné vybrať ich z ponúkaného zoznamu. Pri nedodržaní tohto upozornenia sa poruší funkčnosť formulára.
A35: (9) Pri vkladaní údajov použite ako pomôcky komentáre, ktoré sa zobrazia, keď podržíte kurzor myši nad bunkami označenými malými červenými trojuholníčkami v záhlaví stĺpcov.
A37: (10) Pri vkladaní údajov uvádzajte plné výrazy, nie skratky (napr. namiesto DPC treba uviesť „dohoda o pracovnej činnosti“). V nevyhnutnom prípade používajte skratky podľa zoznamu v hárku "Skratky", ktorý si môžete rozšíriť o vlastné skratky (je potrebné ich doplniť do príslušnej tabuľky). V stĺpci "Dodávateľ plnenia" nie je prípustné používať skratky, okrem skratiek, ktoré sú v oficiálnom názve subjektu. Vyhnite sa prehnanému používaniu skratiek, ktoré nie sú bežne zaužívané, vyúčtovanie sa tak stáva neprehľadným. Poskytovateľ môže vrátiť neprehľadné vyúčtovanie na prepracovanie.
A39: (11) Pri vkladaní popisu uhradeného plnenia vyberte z rozbaľovacieho zoznamu správnu možnosť. V prípade, ak sa daná možnosť vo výbere nenachádza, zadajte voľný text (výstižný so špecifikáciou plnenia).
A41: (12) Vo vyúčtovaní Finančných prostriedkov môžu byť uvedené len doklady uhradené s dátumom od 01.01.2024 do 31.12.2024, resp. s dátumom, ktorý bol uvedený v zmluve/dodatku k zmluve o poskytnutí Finančných prostriedkov ako termín pre ich použitie. Rovnako to platí aj pre príspevky klubom a subjektom, napr. v prípade príspevku SPV, to znamená, že aj kluby a subjekty musia použiť prostriedky v termíne od 01.01.2024 do 31.12.2024, resp. v termíne, ktorý bol uvedený v zmluve/dodatku k zmluve o poskytnutí Finančných prostriedkov. Pri investíciách (kapitálové transfery) je termín použitia príspevku od 01.01.2024 do 31.03.2025. Pri vyúčtovaní kapitálových transferov je nevyhnutné priložiť k vyúčtovaniu aj kópie faktúr vrátane ich príloh, kópie výpisov z účtu o úhrade faktúr, zmluvy a dodatky uzatvorené s dodávateľmi vrátane príloh, prípadne ďalšie dokumenty/doklady nevyhnutné na posúdenie oprávnenosti a preukázateľnosti výdavkov.
A42: Upozornenie: V prípadoch, ak podľa zmluvy/dodatku k zmluve je umožnené čerpať Finančné prostriedky, poskytnuté ako bežný transfer po 31.07.2024, v termíne do 31.03.2025, je to s výnimkou miezd, platov, ostatných peňažných nárokov zamestnancov vyplývajúcich z pracovnoprávnych vzťahov alebo z obdobných právnych vzťahov, ktoré sa vyplácajú spolu so mzdou a odmeny vyplácané na základe dohôd o prácach vykonávaných mimo pracovného pomeru, ktoré sa považujú za oprávnené, ak sú viazané k obdobiu do 31.12.2024 a zároveň sú uhradené do 28. februára 2025.
A44: (13) Vyúčtovávané sumy vkladajte s presnosťou na dve desatinné miesta.
A46: (14) V prípade inej meny ako euro, sumu na účtovnom doklade (napr. na faktúre) prepočítajte na eurá podľa kurzu na účtovnom doklade, resp. aktuálnym kurzom NBS ku dňu realizácie platby. V prípade doloženia faktúr (dokladov) za kapitálové výdavky je potrebné doložiť faktúru (doklad), na ktorej je uvedený kurz a dátum kurzu, podľa ktorého je suma prepočítaná, a zároveň uvedená aj samotná prepočítaná suma.
A48: (15) Je dôležité vyplniť všetky bunky v každom riadku. Prázdne bunky nie sú prípustné. Výnimku tvorí úvodný riadok k danej aktivite s presnou kvantifikáciou akcie/podujatia/súťaže/konferencie/školenia.
A50: (16) Pri vyúčtovávaní pracovnej cesty: vyúčtovanie pracovnej cesty (majstrovstvá sveta, sústredenie, školenie, podujatie, súťaž, konferencia, iná akcia) pozostáva z položiek, ktoré vyplývajú zo zákona č. 283/2002 Z. z. o cestovných náhradách. Prípadný materiál/služba zakúpený/á na pracovnej ceste sa zúčtuje ako samostatná položka (nie je súčasťou vyúčtovania pracovnej cesty).
A52: (17) Nakoľko elektronická forma vyúčtovania bude zverejnená na internete, pri osobných nákladoch neuvádzajte mená osôb, ale „osoba 1“, „osoba 2“, „osoba 3“, atď. Pokiaľ jednej osobe boli prostriedky poskytnuté viackrát, tejto osobe je potrebné v stĺpci "Dodávateľ plnenia" uvádzať vždy to isté označenie.
A54: (18) V hárku „Doklady“ nemeňte typ ani veľkosť písma.
A56: (19) Doklady vkladajte podľa účelu.
A58: (20) Vyúčtovacie údaje sú spracovávané a analyzované automaticky v priebehu ich vkladania a je možné preibežne ich sledovať v hárku „Spolu“. Formulár automaticky vyhodnocuje čerpanie Finančných prostriedkov (analytický kód 1, 2, 3, 4, 5 a 10). Poznámka: V prípade, ak je v Zmluve uvedená povinnosť spolufinancovania (napr. pri kapitálových výdavkoch na infraštruktúru národného významu), formulár vyhodnocuje aj sumu spolufinancovania (analytický kód 99). Upozornenie: Do hárku „Spolu“ nerobte žiadne zásahy (dôsledok nedodržania: znefunkčnenie automatického vyhodnocovania). Vyúčtováva sa len poskytnutá suma finančných prostriedkov, v prípade vyúčtovania vyššej sumy, sa táto nezrovnalosť premietne v hárku "Spolu" červenou farbou, ktorou sa upozorní na tento nesúlad.
A60: (21) Pred tlačou
A61: a) nastavte počet strán, ktoré budete tlačiť (dôsledok nedodržania: budete zbytočne tlačiť viac ako 80 strán, nakoľko automaticky je nastavená tlač všetkých 3 000 pripravených formátovaných riadkov, čo je cca 250 strán),
A62: b) skontrolujte identifikačné údaje o Vašej organizácii (v prípade potreby zmeny identifikačných údajov organizácie kontaktujte zamestnancov sekcie financovania športu a štátnej športovej politiky MCRaŠ SR).
A64: (22) Po vytlačení formulára a) bez ďalších zásahov odošlite elektronický formulár na adresu ziadosti.sport@mincrs.sk, b) na vytlačený formulár (hárok "Spolu") rukou dopíšte dátum a čas odoslania (nesnažte sa dopisovať tieto údaje priamo do elektronického formulára - ide o čas skutočného odoslania, nie o čas zamýšľaného odoslania), c) odošlite vytlačený hárok "Doklady" a vytlačený hárok "Spolu" ("vyúčtovanie") podľa základných pokynov na predpísanú adresu. V prípade nevyčerpaných finančných prostriedkov treba vyplniť aj hárok "Avízo - vratka " a zaslať ho taktiež na predpísanú adresu.
A66: DÔLEŽITÉ UPOZORNENIA
A68: Poskytovanie preddavkov z finančných prostriedkov (platby za zálohové faktúry) je podľa § 19 ods. 8 zákona 523/2004 Z. z. o rozpočtových pravidlách verejnej správy a o zmene a doplnení niektorých zákonov v znení neskorších predpisov možné len v prípade, ak boli vopred v zmluve o dodávke výkonov a tovarov písomne dohodnuté, a to najviac na obdobie troch mesiacov v závislosti od vecného plnenia dodávok výkonov a tovarov. Úhrada preddavku z finančných prostriedkov v rozpore s týmto zákonom je porušením finančnej disciplíny podľa § 31 ods. 1 písm. l) cit. zákona o rozpočtových pravidlách. Výnimkou je poskytnutie zálohy fyzickej osobe, vyslanej na pracovnú cestu, na krytie svojich nákladov podľa zákona o cestovných náhradách, ktorú vyslaná osoba zúčtováva po skončení pracovnej cesty. Poskytnutie zálohy musí byť zdokumentované príslušným dokladom. Platba bez dokladu právnickej osobe nesmie byť poskytnutá (príjmový doklad predstaviteľa klubu nestačí, nakoľko to je iba doklad, na ktorom nie sú ceny za konečný tovar/službu). Dokladom môže byť iba pokladničný blok/faktúra konečného poskytovateľa služby, alebo dodávateľa tovaru. Originály, resp. v prípade refundácie kópie všetkých primárnych dokladov, musia byť uložené u Prijímateľa Finančných prostriedkov a na požiadanie predložené príslušným orgánom vykonávajúcim kontrolu.
A70: Ak Prijímateľ zrealizuje prevod Finančných prostriedkov z bankového účtu uvedeného v Zmluve (ďalej len "samostatný účet") za účelom úhrady oprávnených nákladov Účelu a) na účet dodávateľa tovaru alebo služby, b) na iný účet Prijímateľa, najviac však v sume určenej v tejto Zmluve a najviac v sume takto použitých vlastných finančných prostriedkov na Účel z tohto iného účtu Prijímateľa, c) na účet Priameho realizátora, ak z vlastných finančných prostriedkov uhradil výdavok na Účel, najviac však v sume určenej v tejto Zmluve a najviac v sume takto použitých vlastných finančných prostriedkov; všetky povinnosti a zmluvné záväzky Prijímateľa, najmä v súvislosti s vyúčtovaním Príspevku a jeho zverejňovaním, zostávajú v prípade takéhoto použitia nedotknuté, d) na účet svojho člena, ktorý je právnickou osobou alebo fyzickou osobou, na úhradu oprávnených nákladov na športovú činnosť v súlade so Zmluvou, e) na účet subjektov uvedených v Zmluve (napr. v prípade Slovenského paralympijského výboru), f) na účty podľa Čl. 2 ods. 1 Zmluvy o poskytnutí príspevku uznanému športu, zriadené na čerpanie Príspevku pre príslušné športové odvetvia v jeho pôsobnosti. Ak Prijímateľ vykoná hotovostnú operáciu v nevyhnutnom a odôvodnenom rozsahu za účelom úhrady oprávnených nákladov Účelu v rozsahu podľa zákona č. 394/2012 Z. z. o obmedezí platieb v hotovosti, nepovažuje sa za poskytovateľa verejných prostriedkov.
A72: POZOR:
A73: Zálohové faktúry (čiastkové úhrady) za rovnaký tovar alebo rovnakú službu a k nim patriace vyúčtovacie faktúry (aj nulové), uvádzať vo vyúčtovaní v riadkoch pod sebou. Rovnako pri vyúčtovaní tuzemských a zahraničných pracovných ciest, pri ktorých je najprv poskytnutá záloha a následne k nej vykonané vyúčtovanie pracovnej cesty, treba údaje uvádzať v riadkoch pod sebou s uvedením, že ide o vyúčtovanie pracovnej cesty (doplatok resp. vrátenie časti zálohovej platby).
A74: V prípade zúčtovania dane z pridanej hodnoty (ďalej len "DPH") uvádzať túto DPH do predloženého vyúčtovania priamo pod riadok k príslušnému internému číslu účtovného dokladu, na ktoré je DPH viazané.
A75: VZOR:
A76: Názov: Majstrovstvá Európy v ...
A77: Termín: 3.9.2024
A78: Miesto - mesto a štát: Varšava, Poľsko
A79: Spôsob dopravy: letecky/BUS
A80: Počet všetkých osôb na pracovnej ceste: 6, z toho:
A81: športovci (+ navádzači): 1
A82: tréneri, rozhodcovia, maséri, vedúci výpravy, lekár, fyzioterapeut atď.: 2
A83: ostatné osoby: 1
A85: VYSVETLIVKY
A87: Účel úhrady (stĺpec A)
A88: Vybrať z rozbaľovacieho zoznamu, inak formulár nebude správne vyhodnocovať vyúčtovanie.
A89: POZOR:
A90: Doklady vkladať v poradí jednotlivých účelov. Uvádzať NÁZOV účelu/podujatia na všetky doklady, ktorých sa to týka.
A92: Interné číslo účtovného dokladu (stĺpec B)
A93: Uviesť číslo, pod ktorým je doklad zaevidovaný v účtovnej evidencii Prijímateľa Finančných prostriedkov v jeho peňažnom denníku alebo v knihe prijatých faktúr, pod ktorým je možné identifikovať doklad. Čísla dokladov je potrebné uvádzať presne, aj s pomlčkou, alebo iným znakom.
A95: Číslo externého (originálneho) účtovného dokladu (stĺpec C)
A96: Uviesť číslo účtovného dokladu, ktoré je na ňom uvedené: napr. číslo faktúry, variabilný symbol faktúry, číslo pracovnej zmluvy (napr. v prípade pracovného pomeru alebo dohody), číslo konkrétnej zmluvy (pri iných typoch zmlúv), číslo výdavkového pokladničného dokladu (napr. v prípade pracovnej cesty), prípadne číslo iného dokladu. V prípade refundácií uviesť čísla pôvodných dokladov. Čísla dokladov uvádzať presne (aj s pomlčkou, alebo iným znakom).
A98: Dátum skutočnej úhrady účtovného dokladu (stĺpec D)
A99: Uviesť dátum pôvodnej úhrady dokladu, a to dátum uvedený na výpise z účtu alebo dátum uvedený na pokladničnom doklade.
A100: POZOR:
A101: neuvádzať dátum zadania príkazu na úhradu,
A102: neuvádzať dátum splatnosti/vystavenia/zdaniteľného plnenia faktúry,
A103: dátum skutočnej úhrady musí súhlasiť s oprávneným obdobím použitia finančných prostriedkov uvedeným v zmluve.
A105: Dátum refundácie účtovného dokladu (stĺpec E) - (vyplniť len v prípade refundácie)
A106: Refundácia je vždy prevod sumy zo samostatného účtu Prijímateľa, a to:
A107: 1. za úhradu výdavkov priameho realizátora, výdavkov klubu alebo výdavkov športovca, ak títo daný výdavok už vopred uhradili zo svojho účtu,
A108: 2. na iný účet Prijímateľa, z ktorého príslušný výdavok pôvodne uhradil.
A110: Popis úhrady (stĺpec F)
A111: Uviesť výstižný popis toho, za čo bola úhrada vykonaná (napr. počet kusov, osôb, dní, názov podujatia, a pod.), to znamená vybrať jednu z ponúkaných možností a vypísať údaje podľa vzoru, alebo zadať vlastný text s presnou špecifikáciou. Nepostačuje len uviesť napr. "príspevok klubu" t. j. bez bližšej špecifikácie vynaloženého výdavku. Takýto popis nie je prípustný a v prípade výkonu finančnej kontroly nebude možné posúdiť oprávnenosť vynaloženého výdavku.
A112: UPOZORNENIE: pod pracovnou cestou sa rozumie účasť na akomkoľvek podujatí, zasadnutí výkonného výboru, valného zhromaždenia, sústredení, výcvikovom tábore, zasadnutí komisie, konferencii, súťaži, svetovom pohári, európskom pohári, príp. inej akcii.
A114: POZOR: VRATKY (vrátené nevyčerpané Finančné prostriedky) neuvádzať ani kladným ani záporným číslom. Nevyčerpané Finančné prostriedky sa automaticky zobrazia v hárku "Spolu", je potrebné vrátiť ich na príslušný účet MCRaŠ SR (uvedený v hárku "Avízo - vratka") a zároveň poslať vyplnené tlačivo "Avízo - vratka". V prípade, ak nevraciate finančné prostriedky, netreba vypĺňať ani zasielať formulár "Avízo - vratka" (ani v tlačenej ani v elektronickej forme). Rovnako treba postupovať aj v prípade nulových výnosov (netreba zasielať ani v tlačenej ani v elektronickej forme).
A115: Dodatočne poskytnuté zľavy z pôvodnej ceny tovarov, služieb, storná za platby, dobropisy,...uvádzajte záporným číslom s označením "STORNO", "ZĽAVA", "DOBROPIS" atď.
A116: V prípade nákupu PHM do služobného vozidla prijímateľa finančných prostriedkov je potrebné vybrať zo zoznamu položku "Služobné motorové vozidlo" a vypísať konkrétne údaje podľa vzoru. V prípade pracovnej cesty (majstrovstvá sveta, sústredenie, kongres, zasadnutie komisie a pod.) je potrebné vybrať zo zoznamu položku "Pracovná cesta" a vypísať konkrétne údaje podľa vzoru. V prípade vyplácania miezd a dohôd je potrebné vybrať zo zoznamu položku "hrubá mzda vyplatená pracovníkovi". Pri hrubých mzdách uvádzať dátum úhrady 31.12.2024. V prípade miezd vyplácaných pracovníkom na podujatí je potrebné vybrať zo zoznamu položku "Podujatie" a vypísať konkrétne údaje podľa vzoru. V prípade refundácie (napr.výdavkov klubu) treba uzatvoriť zmluvu o refundácii (s daným klubom) a rozpísať použitie na konkrétne položky. V prípade vyúčtovania nákladov za používanie mobilu je potrebné uviesť, či ide o opravu alebo zakúpenie prístroja, hovory (obdobie, napr. 6/2024), dáta a pod.
A118: IČO dodávateľa plnenia (stĺpec G)
A119: Uviesť IČO dodávateľa. V prípade zahraničného dodávateľa, ktorý nemá IČO, ostáva bunka nevyplnená.
A121: Dodávateľ plnenia (stĺpec H)
A122: Dodávateľom plnenia je
A124: a) v prípade pracovnej cesty účastník pracovnej cesty (meno a priezvisko, a NIE napr. "osoba 1"),
A125: b) v prípade byúčtovania použitia služobného motorového vozidla prijímateľa Finančných prostriedkov osoba, ktorá zodpovedá za toto vozidlo (meno a priezvisko, NIE napr. "osoba 1"),
A126: c) v prípade, ak dodávateľom plnenia je živnostník, obchodné meno živnostníka, to znamená:
A127: VŽDY meno a priezvisko živnostníka (NIE napr. "osoba 1") s označením "živnostník", nakoľko ide o obchodné meno a príjem z podnikateľskej činnosti,
A128: d) v prípade, ak boli finančné prostriedky poskytnuté športovcovi alebo trénerovi na základe schváleného príspevku/dotácie ako napr. "Ocenenie športovcov a trénerov...", je to príslušný športovec/tréner, a je potrebné uviesť jeho meno a priezvisko (NIE napr. "osoba 1"),
A129: e) konečný prijímateľ finančných prostriedkov, dodávateľ podľa faktúry/pokladničného bloku, napríklad: Slovenská pošta, Slovak Telekom, Gumon a.s., Jozef Mak - podnikateľ (ak budete súhlasiť, tak sa číslovanie poposúva).
A130: POZOR:
A131: Dodávateľom plnenia nemôže byť nikdy Prijímateľ Finančných prostriedkov.
A133: Skutočne uhradená suma (stĺpec I)
A134: Uviesť skutočne uhradenú sumu z bankového účtu Prijímateľa. Sumu vkladať v eurách s presnosťou na dve desatinné miesta. V prípade, ak Prijímateľ uhradil len časť sumy z faktúry, do vyúčovania uvádza len túto uhradenú sumu. Príklad: Celková suma faktúry: 100 € Uhradená suma: 80 € Prijímateľ uvedie do vyúčtovania 80 €.
A136: Analytický kód (stĺpec J)
A137: (vybrať z rozbaľovacieho zoznamu) Analytický kód PRE PRÍSPEVOK UZNANÉMU ŠPORTU: 1 = šport mládeže do 23 rokov (cez kluby) 2 = talentovaní športovci 3 = športová reprezentácia 4 = správa a prevádzka 5 = iné (ostatná športová činnosť, vrátane kapitálových transferov z PUŠ) Analytický kód PRE OSTATNÉ FINANČNÉ PROSTRIEDKY : 10 = ostatné účely 99 = spolufinancovanie (výlučne iba ak bola zmluvne určená povinnosť spolufinancovania)
A139: Upozornenie: Vo formulári na vyúčtovanie príspevku uznanému športu sú zapracované ustanovenia novely zákona o športe, podľa ktorých v roku, v ktorom bola vyhlásená krízová situácia a trvala viac ako 30 dní, sa ustanovenia § 69 ods. 4 zákona o športe nepoužijú a ustanovenia zmluvy o poskytnutí príspevku uznanému športu, ktoré sa týkajú rozdelenia finančných prostriedkov podľa § 69 ods. 4, sa v príslušnom kalendárnom roku nebudú uplatňovať. Zaradenie výdavkov do jednotlivých analytických kódov, aj keď má v takom prípade len informatívny charakter, je však potrebné vyplniť.

Sheet Príklady
A1: Príklady vyplnenia formulára
A2: Priebežné čerpanie finančných prostriedkov poskytnutých zo štátneho rozpočtu v oblasti športu v roku 2024 | H2: =+Doklady!I100 -> V2
H3: =+Doklady!I101 -> 2024-07-16
A4: Prijímateľ dotácie: | B4: Slovenský zväz skúšobný
A7: Účel úhrady (vyberte zo zoznamu, inak automatické vyhodnocovanie nebude fungovať) | B7: Interné číslo účtovného dokladu | C7: Číslo externého (originálneho) účtovného dokladu | D7: Dátum skutočnej úhrady účtovného dokladu | E7: Popis úhrady (vyberte z rozbaľovacieho zoznamu, alebo zadajte voľný text) | F7: IČO dodávateľa plnenia | G7: Dodávateľ plnenia | H7: Skutočne uhradená suma (eur) | I7: AK
A8: a - kriket - bežné výdavky | D8: 2024-05-02 | E8: Organizovanie podujatia Názov podujatia: Svetový pohár v skúškach Miesto konania: Brezno Termín: 15. - 18.4.2024 Počet zúčastnených osôb (okrem divákov): 20
A9: a - kriket - bežné výdavky | B9: 123/2024 | C9: CP14-110 | D9: 2024-05-03 | E9: počet odpracovaných hodín spolu: 100 hrubé mzdy vyplatené osobám v súvislosti s podujatím vrátane odvodov zamestnávateľa spolu (dohody, zmluvy, faktúry, a pod.) v eur | G9: osoba 1 - osoba 20 | H9: 400 | I9: 3
A10: a - kriket - bežné výdavky | B10: 124/2024 | C10: DF 24 | D10: 2024-05-04 | E10: náklady na ubytovanie 10 športovcov + 1 tréner | G10: Chata Breznovčan | I10: 3
A11: a - kriket - bežné výdavky | B11: 100/2024 | C11: 3020 | D11: 2024-05-05 | E11: grafické práce na výrobe loga podujatia | G11: Anna Malá - PROMOTION, s.r.o. | H11: 100 | I11: 3
A12: a - kriket - bežné výdavky | B12: 121/2024 | C12: 100002352 | D12: 2024-05-06 | E12: cestovné - vlak - Bratislava - Brezno, 16 osôb | G12: Ján Rýchly | H12: 50 | I12: 3
A13: a - kriket - bežné výdavky | B13: 125/2024 | C13: DF 26 | D13: 2024-05-07 | E13: stravovanie 20 osôb | G13: Reštaurácia "U vodníka", Brezno | H13: 200 | I13: 3
A14: a - kriket - bežné výdavky | B14: 126/2024 | C14: DF 29 | D14: 2024-05-08 | E14: prenájom plavárne | G14: STARZ, Bratislava | I14: 3
A15: a - kriket - bežné výdavky | B15: 128/2024 | C15: DF 30 | D15: 2024-05-09 | E15: nákup športového oblečenia - 15 ks | G15: Adidas, Brezno | H15: 505 | I15: 3
A16: a - kriket - bežné výdavky | D16: 2024-05-10 | E16: Pracovná cesta Názov: Majstrovstvá V4 v skúškach Termín: 3.9.2024 Miesto - mesto a štát: Varšava, Poľsko Spôsob dopravy: letecky/BUS Počet všetkých osôb na pracovnej ceste: 6, z toho: - športovci (+ navádzači): 1 - tréneri + rozhodcovia + vedúci výpravy + lekár + fyzioterapeut + masér + ): 1 - ostatné osoby (napr. sponzori, hostia): 4
A17: a - kriket - bežné výdavky | B17: 270/2024 | C17: 3252514 | D17: 2024-05-11 | E17: nákup leteniek - 6 ks | G17: Czech Airlines | I17: 2
A18: a - kriket - bežné výdavky | B18: 274/2024 | C18: D/258/2020 | D18: 2024-05-12 | E18: materiálové zabezpečenie pretekov - nákup 4 pušiek | G18: Puškárstvo - Ernest Bezaj, Malinovo | I18: 2
A19: a - kriket - bežné výdavky | B19: 275/2024 | C19: DF 32 | D19: 2024-05-13 | E19: občerstvenie - 6 osôb | G19: Messing Catering, s.r.o., Rovinka | H19: 1000 | I19: 2
A20: a - kriket - bežné výdavky | B20: 280/2024 | C20: DF 33 | D20: 2024-05-14 | E20: ubytovanie - 2 osoby | G20: Jozef Karát - privát, Šaľa | H20: 300 | I20: 2
A21: a - kriket - bežné výdavky | B21: 190/2024 | C21: DF50 | D21: 2024-05-15 | E21: prenájom miestnosti | G21: Double Tree Hotel, Bratislava | H21: 600 | I21: 2
A22: a - kriket - bežné výdavky | B22: 250/2024 | C22: 999 | D22: 2024-05-16 | E22: cestovné - Cerová - Trnava a späť, 3.9.2024, 2 osoby | G22: Železničná spoločnosť, a.s., Slovensko | H22: 25.9 | I22: 2
A23: a - kriket - bežné výdavky | B23: 251/2024 | C23: 258963 | D23: 2024-05-17 | E23: vecné ceny - poháre 3 ks | G23: Victory sport, s.r.o. | I23: 2
A24: a - kriket - bežné výdavky | D24: 2024-05-18 | E24: Ostatné
A25: a - kriket - bežné výdavky | B25: P1/V/316 | C25: P1/V/316 | D25: 2024-05-19 | E25: Hrubé mzdy vyplatené osobám (zamestnancom) vrátane odvodov zamestnávateľa za rok 2024 počet fyzických osôb: 5 | G25: osoba 1, osoba 4 - 7 | I25: 4
A26: a - kriket - bežné výdavky | B26: J/2024-20 | C26: 258 | D26: 2024-05-20 | E26: doplnky výživy - 21 športovcov | G26: Lekáreň Kozia, Bratislava | H26: 124 | I26: 2
A27: a - kriket - bežné výdavky | B27: DF2024/326 | C27: 1213275 | D27: 2024-05-21 | E27: oprava športtesteru | G27: TOP TREND Patrik Valo | H27: 19.1 | I27: 2
A28: a - kriket - bežné výdavky | B28: DF2024/193 | C28: 2007006035 | D28: 2024-05-22 | E28: havarijné poistenie 1-3/2021, EČV BA 258 KK | G28: Uniqa poisťovňa, a.s. | H28: 277.74 | I28: 4
A29: a - kriket - bežné výdavky | B29: 2024-12-01 | C29: 258 | D29: 2024-05-23 | E29: diaľničná nálepka na rok 2024 | G29: OMV, s.r.o. | H29: 50 | I29: 4
A30: a - kriket - bežné výdavky | B30: 199/2024 | C30: 32 | D30: 2024-05-24 | E30: poštovné | G30: Slovenská pošta, a.s. | H30: 9 | I30: 4
A31: a - kriket - bežné výdavky | B31: 2024-05-01 | C31: 3 | D31: 2024-05-25 | E31: nájom kancelárskych priestorov 2/2024 | G31: Slovenské združenie telesnej kultúry | H31: 10 | I31: 4
A32: a - kriket - bežné výdavky | B32: P1/V/259 | C32: 20123698752 | D32: 2024-05-26 | E32: regenerácia, 8 športovcov, 8/2024 | G32: SPORTMEDICAL s.r.o., Bratislava | H32: 500 | I32: 1
A33: a - kriket - bežné výdavky | B33: 235/2024 | C33: 40010 | D33: 2024-05-27 | E33: nákup materiálu - reprezentačná vlajka 1 ks | G33: ADAT, s.r.o. | H33: 71.2 | I33: 3
A34: a - kriket - bežné výdavky | B34: 206/2024 | C34: DF100/9/2020 | D34: 2024-05-28 | E34: refundácia nákladov na základe zmluvy pre CTM Žilina: Okresné kolo v skúškach, 7.8.2024, Žilina, 43 osôb, z toho: 37 športovcov, 1 tréner, 1 strážna služba, 1 masér, 3 technickí pracovníci, úhrada nákladov za stravovanie | G34: Prestige catering, s.r.o. | H34: 250 | I34: 1
A35: a - kriket - bežné výdavky | B35: 207/2024 | C35: DF500 | D35: 2024-05-29 | E35: prenájom plavárne, 4 dráhy, 8 hodín | G35: Mesto Žilina | H35: 320 | I35: 5
A36: a - kriket - bežné výdavky | B36: 305/2024 | C36: 14 | D36: 2024-05-30 | E36: upratovacie služby 5/2024 | G36: Boris Dubaj - živnostník | H36: 40 | I36: 4
A37: a - kriket - bežné výdavky | B37: 2024-01-01 | C37: V-2020-3 | D37: 2024-05-31 | E37: bankové poplatky | G37: SLSP, a.s. | H37: 25 | I37: 4
A38: a - kriket - bežné výdavky | B38: 2024-03-01 | C38: 980 | D38: 2024-06-01 | E38: poplatok medzinárodnej federácii za rok 2024 | G38: Internationale Asociation ..... | H38: 150 | I38: 4
A39: a - kriket - bežné výdavky | B39: 2024-04-01 | C39: 5 | D39: 2024-06-02 | E39: členský poplatok za rok 2024 | G39: Konfederácia športových zväzov | H39: 100 | I39: 4
A40: a - kriket - bežné výdavky | B40: 301/2024 | C40: 78954787 | D40: 2024-06-03 | E40: prenájom optického kábla 3/2024 | G40: e-Net, s.r.o. | H40: 74.1 | I40: 4
A41: a - kriket - bežné výdavky | B41: 330/2024 | C41: FD52 | D41: 2024-06-04 | E41: poplatky za telefón, 7/2024 | G41: Slovak telekom, a.s. | H41: 120 | I41: 2
A42: a - kriket - bežné výdavky | B42: V1-12 | C42: V1-12 | D42: 2024-06-05 | E42: PHM - služobné motorové vozidlo EČV: BA 111 SA Obdobie: 14.4. - 18.4.2024 Najazdené kilometre: 800 km | G42: Slovnaft, a.s. Bratislava | H42: 80 | I42: 3
A43: a - kriket - bežné výdavky | B43: 25 | C43: 358 | D43: 2024-06-06 | E43: trénerské služby 10/2024 | G43: Ondrej Pado - živnostník | H43: 600 | I43: 1
A44: a - kriket - bežné výdavky | B44: 3 | C44: 26985235 | D44: 2024-06-07 | E44: oprava služobného motorového vozidla, BA 222 AA | G44: Prvý autoservis, Bratislava | H44: 10 | I44: 3
A45: a - kriket - bežné výdavky | B45: P1/V/309 | C45: PP46130119 | D45: 2024-06-08 | E45: lekárske vyšetrenie - 10 športovcov | G45: Alpha medical a.s. | H45: 19 | I45: 2
A46: a - kriket - bežné výdavky | B46: 300/2024 | C46: 256 | D46: 2024-06-09 | E46: laboratórne vyšetrenie | G46: Nemocnica s poliklinikou, Prešov | H46: 230 | I46: 2
A47: a - kriket - bežné výdavky | B47: V/2024/3 | C47: DF2020/143 | D47: 2024-06-10 | E47: lyžiarsky servis - február 2024 | G47: Dušan Otčenáš - Martek Sport | H47: 175 | I47: 2
A48: a - kriket - bežné výdavky | B48: ID258 | C48: 369963 | D48: 2024-06-11 | E48: športová výstroj - tenisové rakety - 7 ks | G48: Sportissimo, Bratislava | I48: 1
A49: b - Sergej Bubka | D49: 2024-06-12 | E49: Pracovná cesta Názov: Výcvikový tábor Termín: 1.12.-20.12.2024 Miesto - mesto a štát: Moskva, Ruská federácia Spôsob dopravy: LET Počet všetkých osôb na pracovnej ceste: 2, z toho - športovci: 1 - tréner: 1 | I49: 10
A50: b - Sergej Bubka | B50: DF2024/309 | C50: 20200136 | D50: 2024-06-13 | E50: trénerské služby - 1.12-20.12.2024 | G50: Peter Konrád | H50: 360 | I50: 10
A51: b - Sergej Bubka | B51: R/2024/11 | C51: 20123698752 | D51: 2024-06-14 | E51: regenerácia | G51: SPORTMEDICAL s.r.o., Bratislava | H51: 500 | I51: 10
A52: b - Sergej Bubka | B52: 2024-08-01 | C52: 369 | D52: 2024-06-15 | E52: prenájom tenisového kurtu 1.2.2024 | G52: Národné tenisové centrum, a.s. | H52: 20 | I52: 10
A53: b - Sergej Bubka | B53: 40/2024 | C53: 25412 | D53: 2024-06-16 | E53: doplnky výživy | G53: Sunpharma, s.r.o. | H53: 25 | I53: 10
A54: a - kriket - mikrobus | B54: 2024-09-01 | C54: 4/2020/DU | D54: 2024-06-17 | E54: nákup mikrobusu, EVČ BA 111 SS (faktúra doložená v prílohe vyúčtovania) | G54: AUDI centrum, s.r.o. | H54: 20000 | I54: 5
A55: a - kriket - hala | B55: 89/2024 | C55: 36/14 | D55: 2024-06-18 | E55: rekonštrukcia športovej haly v Čadci - opláštenie tribúny, výmena sedadiel, rekonštrukcia šatní a sociálnych zariadení (faktúra doložená v prílohe vyúčtovania) | G55: Rekostav, s.r.o., Čadca | H55: 30000 | I55: 5
A56: (1) - výber a príprava športových talentov | D56: 2024-06-19 | E56: Pracovná cesta Názov: Sústredenie dievčat Termín: 03.-07.06.2024 Miesto - mesto a štát: Košice Spôsob dopravy: vlak Počet všetkých osôb na pracovnej ceste: 48, z toho: - športovci (+ navádzači): 44 - tréneri + rozhodcovia + vedúci výpravy + lekár + fyzioterapeut + masér + ): 3 - ostatné osoby (napr. sponzori, hostia): 1
A57: a - kriket - bežné výdavky | B57: ID082 | C57: 555 | D57: 2024-06-20 | E57: doprava, BUS, 2.7.2024, 7.6.2021, 39 osôb | G57: Autodoprava Charvát, Veľké Bielice | H57: 123 | I57: 2
A58: a - kriket - bežné výdavky | B58: ID100 | C58: 444 | D58: 2024-06-21 | E58: cestovné, VLAK, Banská Bystrica - Košice, 3.7.2024, 8 osôb | G58: Ján Rýchly, prezident zväzu | H58: 1600 | I58: 2
A59: a - kriket - bežné výdavky | D59: 2024-06-22 | E59: Ostatné | I59: 2
A60: a - kriket - bežné výdavky | B60: FA213090 | C60: 1300072 | D60: 2024-06-23 | E60: potlač 4 ks športových dresov | G60: RES Promotion, s.r.o., Košice 1 | H60: 21.36 | I60: 2
A61: a - kriket - bežné výdavky | B61: 310/2024 | C61: DF2555 | D61: 2024-06-24 | E61: regenerácia 16.5.2024, 1 športovec | G61: Fyziopraktik, s.r.o. | H61: 20 | I61: 2
A62: a - kriket - bežné výdavky | B62: 32/2024 | C62: PZ5 | D62: 2024-06-25 | E62: trénerská činnosť 12/2024 | G62: Henrich Madaj - živnostník | H62: 200 | I62: 2
A63: a - kriket - bežné výdavky | B63: 25/2024 | C63: 254 | D63: 2024-06-26 | E63: Materiálové vybavenie športovcov CTM Žilina, náhradné súčiastky na bicykel | G63: Bottico, s.r.o. Otrokovice | H63: 201.5 | I63: 2
A64: a - kriket - bežné výdavky | B64: 288/2024 | C64: 141 | D64: 2024-06-27 | E64: regenerácia športovcov CTM Bobot, 30 hodín | G64: Slovenské liečebné kúpele Rajecké Teplice, a.s. | H64: 1010 | I64: 2
A65: a - kriket - bežné výdavky | B65: ID221 | C65: 25 | D65: 2024-06-28 | E65: refundácia nákladov na základe zmluvy za centrum talentovanej mládeže Bošáca: sústredenie mladších žiačok, 30.6.-7.7.2024, Bardejov, ubytovanie, 12 osôb | G65: Ubytovňa Nádej, Bardejov | H65: 1330 | I65: 2
A66: d - finančné odmeny športovcom a trénerom - Eleonóra Sihoťová | B66: 2024-12-01 | C66: 760998 | D66: 2024-06-29 | E66: odmena športovcom za výsledky dosiahnuté v roku 2024 | G66: Peter Novák | H66: 1000 | I66: 10
A67: d - finančné odmeny športovcom a trénerom - Miroslav Hurban | B67: 13/2024 | C67: 760852 | D67: 2024-06-30 | E67: odmena trénerovi mládeže | G67: Miroslav Hurban | H67: 200 | I67: 10
A68: d- Národná súťaž v skúškach | D68: 2024-07-01 | E68: Organizovanie podujatia Názov: Národná súťaž v skúškach Termín: 15.06.2024 Miesto - mesto a štát: Pezinok Počet zúčastnených osôb (okrem divákov): 547 | I68: 10
A69: d- Národná súťaž v skúškach | B69: 66/2024 | C69: 25 | D69: 2024-07-02 | E69: tlač diplomov A4 547 ks | G69: Mouton, s.r.o. Žilina | H69: 147.35 | I69: 10
A70: d- Národná súťaž v skúškach | B70: 361/2024 | C70: 36 | D70: 2024-07-03 | E70: technické a organizačné zabezpečenie súťaže - úprava pretekárskej dráhy, stavba pódia, organizácia záverečného ceremoniálu, moderovanie | G70: Dušan Tesár - Select Managering, s.r.o. | H70: 2500 | I70: 10
A71: d- Národná súťaž v skúškach | B71: 98/2024 | C71: 14 | D71: 2024-07-04 | E71: nákup športového vybavenia - 20 ks lôpt | G71: Sport, s.r.o. Poprad | H71: 1200 | I71: 10
A72: d- Národná súťaž v skúškach | B72: PC2024/36 | C72: 56/C | D72: 2024-07-05 | E72: PHM - služobné motorové vozidlo EČV: BL 363 AA Obdobie: 10.6.-15.6.2024 Najazdené kilometre: 600 | G72: OMV, s.r.o., Bratislava | H72: 350 | I72: 10
A73: d- Národná súťaž v skúškach | D73: 2024-07-06 | E73: Organizovanie podujatia Názov: M-SR žiakov ZŠ v skúškach Termín: 15.05.2024 Miesto - mesto a štát: Nitra Počet zúčastnených osôb (okrem divákov): 220 | I73: 10
A74: d- Národná súťaž v skúškach | B74: 380/2024 | C74: 952 | D74: 2024-07-07 | E74: športový materiál - bedmintonové rakety, košíky | G74: Funny sport, s.r.o., Prešov | I74: 10
A75: d- Národná súťaž v skúškach | B75: 390/2024 | C75: 3852/2020 | D75: 2024-07-08 | E75: zdravotné služby | G75: DZS OPTIMUS, s.r.o. | I75: 10
A76: d- obnova turistických značkovaných trás a údržba turistických informačných miest | B76: 400/2024 | C76: V582/14 | D76: 2024-07-09 | E76: materiál na obnovu značkovania - okres Poprad - farby, štetce, stĺpiky | G76: Color, s.r.o., Poprad | H76: 10 | I76: 10

Sheet Príjmy
A1: Aktualizovaná suma prostriedkov poskytnutých ministerstvom k dátumu | C1: 2024-12-31 | G1: 2024-01-31
G2: 2024-02-29
A3: Prijímateľ | B3: =INDEX(Adr!B:B,Doklady!B102+1) -> Slovenský zväz florbalu | G3: 2024-03-31
A4: IČO: | B4: =RIGHT("0000"&INDEX(Adr!A:A,Doklady!B102+1),8) -> 31795421 | G4: 2024-04-30
A5: Sídlo: | B5: =INDEX(Adr!D:D,Doklady!B102+1)&", "&INDEX(Adr!E:E,Doklady!B102+1) -> Olympijské námestie 14290/1, Bratislava | G5: 2024-05-31
G6: 2024-06-30
G7: 2024-07-31
G8: 2024-08-31
A9: PPG | B9: PPG | C9: Poskytnuté prostriedky | G9: 2024-09-30
A10: 026 01 | B10: Šport pre všetkých, školský a univerzitný šport | C10: =+Spolu!C10 -> 0 | G10: 2024-10-31
A11: 026 02 | B11: Uznané športy | C11: =+Spolu!C11 -> 874149 | G11: 2024-11-30
A12: 026 03 | B12: Národné športové projekty | C12: 228245 | G12: 2024-12-31
A13: 026 04 | B13: Športová infraštruktúra | C13: =+Spolu!C13 -> 0
A14: 026 05 | B14: Prierezové činnosti v športe | C14: =+Spolu!C14 -> 0
A15: SPOLU | C15: =SUM(C10:C14) -> 1102394
A17: Prijímateľ prostriedkov zo štátneho rozpočtu je povinný priebežne zverejňovať informácie o prijatí a spôsobe ich použitia najneskôr do 25. dňa kalendárneho mesiaca nasledujúceho po kalendárnom mesiaci, v ktorom boli prijaté alebo použité ( § 65, ods. 6 zákona č. 440/2015 Z. z. o športe a o zmene a doplnení niektorých zákonov v znení neskorších predpisov).
A61: 15

Sheet Spolu
A1: Priebežné čerpanie a vyúčtovanie finančných prostriedkov poskytnutých zo štátneho rozpočtu v oblasti športu v roku 2024
B3: Prijímateľ dotácie: | C3: =INDEX(Adr!B2:B129,Doklady!B102) -> Slovenský zväz florbalu | I3: =Doklady!I100 -> V2
B4: IČO: | C4: =INDEX(Adr!A2:A153,Doklady!B102) -> 31795421 | I4: =Doklady!I101 -> 2024-07-16
B5: Právna forma: | C5: =INDEX(Adr!C2:C153,Doklady!B102) -> občianske združenie
B6: Sídlo: | C6: =INDEX(Adr!D2:D153,Doklady!B102)&", "&INDEX(Adr!E2:E153,Doklady!B102)&", "&INDEX(Adr!F2:F153,Doklady!B102) -> Olympijské námestie 14290/1, Bratislava, 832 80
A9: PPG | B9: Podprogram | C9: Poskytnuté (eur) | D9: Vyúčtované (eur) | E9: Povinnosť vrátiť (eur)
A10: 026 01 | B10: Šport pre všetkých, školský a univerzitný šport | C10: =SUMIF(FP!J:J,Doklady!$B$1&A10,FP!D:D) -> 0 | D10: =C10-E10 -> 0 | E10: =SUMIF(K:K,A10,I:I) -> 0 | L10: AAA
A11: 026 02 | B11: Uznané športy | C11: =SUMIF(FP!J:J,Doklady!$B$1&A11,FP!D:D) -> 874149 | D11: =+C11-E11 -> 874149 | E11: =+I39-I42+I44-I47 -> 0 | L11: =L41 -> a - florbal - bežné transfery
A12: 026 03 | B12: Národné športové projekty | C12: =SUMIF(FP!J:J,Doklady!$B$1&A12,FP!D:D) -> 228245 | D12: =C12-E12 -> 227828.88 | E12: =SUMIF(K:K,A12,I:I) -> 416.12 | L12: =L42 -> a - florbal - kapitálové transfery
A13: 026 04 | B13: Športová infraštruktúra | C13: =SUMIF(FP!J:J,Doklady!$B$1&A13,FP!D:D) -> 0 | D13: =C13-E13 -> 0 | E13: =SUMIF(K:K,A13,I:I) -> 0 | L13: =L46 -> 2
A14: 026 05 | B14: Prierezové činnosti v športe | C14: =SUMIF(FP!J:J,Doklady!$B$1&A14,FP!D:D) -> 0 | D14: =C14-E14 -> 0 | E14: =SUMIF(K:K,A14,I:I) -> 0 | L14: =L47 -> 2
A16: Účel | B16: Názov | I16: Suma
A17: a | B17: príspevok uznaným športom | I17: =SUMIF(FP!I:I,Doklady!$B$1&A17,FP!D:D) -> 874149
A18: b | B18: príspevok Slovenskému olympijskému a športovému výboru | I18: =SUMIF(FP!I:I,Doklady!$B$1&A18,FP!D:D) -> 0
A19: c | B19: príspevok Slovenskému paralympijskému výboru | I19: =SUMIF(FP!I:I,Doklady!$B$1&A19,FP!D:D) -> 0
A20: d | B20: príspevok športovcom top tímu | I20: =SUMIF(FP!I:I,Doklady!$B$1&A20,FP!D:D) -> 0
A21: e | B21: organizácia významnej súťaže alebo účasť na významnej súťaži podľa § 3 písm. h) vrátane prípravy na túto súťaž | I21: =SUMIF(FP!I:I,Doklady!$B$1&A21,FP!D:D) -> 0
A22: f | B22: plnenie úloh verejného záujmu v športe | I22: =SUMIF(FP!I:I,Doklady!$B$1&A22,FP!D:D) -> 164645
A23: g | B23: rozvoj športov, ktoré nie sú uznanými podľa zákona č. 440/2015 Z. z. | I23: =SUMIF(FP!I:I,Doklady!$B$1&A23,FP!D:D) -> 0
A24: h | B24: podpora a rozvoj turistických a cykloturistických trás | I24: =SUMIF(FP!I:I,Doklady!$B$1&A24,FP!D:D) -> 0
A25: i | B25: finančné odmeny športovcom a trénerom mládeže za dosiahnuté výsledky | I25: =SUMIF(FP!I:I,Doklady!$B$1&A25,FP!D:D) -> 0
A26: j | B26: projekty školského športu, univerzitného športu a športu pre všetkých | I26: =SUMIF(FP!I:I,Doklady!$B$1&A26,FP!D:D) -> 63600
A27: k | B27: výstavba, modernizácia a rekonštrukcia športovej infraštruktúry národného významu | I27: =SUMIF(FP!I:I,Doklady!$B$1&A27,FP!D:D) -> 0
A28: l | B28: podpora zdravotne postihnutých športovcov | I28: =SUMIF(FP!I:I,Doklady!$B$1&A28,FP!D:D) -> 0
A29: m | B29: Organizácia tradičných športových podujatí | I29: =SUMIF(FP!I:I,Doklady!$B$1&A29,FP!D:D) -> 0
A30: n | I30: =SUMIF(FP!I:I,Doklady!$B$1&A30,FP!D:D) -> 0
A31: o | I31: =SUMIF(FP!I:I,Doklady!$B$1&A31,FP!D:D) -> 0
A32: p | I32: =SUMIF(FP!I:I,Doklady!$B$1&A32,FP!D:D) -> 0
A33: q | I33: =SUMIF(FP!I:I,Doklady!$B$1&A33,FP!D:D) -> 0
A34: r | I34: =SUMIF(FP!I:I,Doklady!$B$1&A34,FP!D:D) -> 0
A36: Použitie príspevku uznanému športu | C36: 1 | D36: 2 | E36: 3 | F36: 4 | G36: 5 | H36: 5
A38: Účel | B38: ="Šport "&K40 -> Šport florbal | C38: mládež 23 MIN.15% | D38: talenty MIN.20% | E38: reprezentácia MIN.25% | F38: prevádzka MAX.20% | G38: ostatné úlohy | H38: kapitálové transfery z PUŠ | I38: SPOLU | L38: =COUNTIF(FP!N:N,Doklady!B1&"aB") -> 1
A39: a | B39: Poskytnutý príspevok uznanému športu | C39: =I39*0 -> 0 | D39: =I39*0 -> 0 | E39: =I39*0 -> 0 | F39: =+I39*0.2 -> 174829.8 | G39: =+MAX(I39-C39-D39-E39-F39-H39,0) -> 699319.2 | H39: =+IFERROR(VLOOKUP(K40&" - kapitálové transfery",B$53:C$90,2,0),0) -> 0 | I39: =SUMIF(FP!K:K,K40,FP!D:D) -> 874149 | L39: =COUNTIF(FP!N:N,Doklady!B1&"aK") -> 0
A40: a | B40: Vyúčtovaný príspevok uznanému športu | C40: =DSUM(Doklady!A103:J10000,"GGG",Spolu!L40:M42) -> 0 | D40: =DSUM(Doklady!A103:J10000,"GGG",Spolu!N40:O42) -> 208215.46 | E40: =DSUM(Doklady!A103:J10000,"GGG",Spolu!P40:Q42) -> 228990 | F40: =DSUM(Doklady!A103:J10000,"GGG",Spolu!R40:S42) -> 174829.8 | G40: =DSUM(Doklady!A103:J10000,"GGG",Spolu!T40:U42)-H40 -> 262113.74 | H40: =+IFERROR(VLOOKUP(K40&" - kapitálové transfery",B$53:D$90,3,0),0) -> 0 | I40: =+C40+D40+E40+F40+G40+H40 -> 874149 | J40: =+K45 -> . | K40: =IF(L38>0,INDEX(FP!K:K,Doklady!B2),".") -> florbal | L40: AAA | M40: HHH | N40: AAA | O40: HHH | P40: AAA | Q40: HHH | R40: AAA | S40: HHH | T40: AAA | U40: HHH
A41: a | B41: ROZDIEL | C41: =MAX(C39-C40,0) -> 0 | D41: =MAX(D39-D40,0) -> 0 | E41: =MAX(E39-E40,0) -> 0 | F41: =MIN(I39,MAX(-F39+F40,0)) -> 0 | G41: =MIN(J39,MAX(-G39+G40+MIN(F40-F39,0),0)) -> 0 | H41: =MAX(H39-H40,0) -> 0 | I41: =+I39-I42 -> 0 | J41: =+K46 -> 0 | K41: =+I41-H41 -> 0 | L41: =IF(L38>0,"a - "&INDEX(FP!C:C,Doklady!B2),2) -> a - florbal - bežné transfery | M41: 1 | N41: =+L41 -> a - florbal - bežné transfery | O41: 2 | P41: =+L41 -> a - florbal - bežné transfery | Q41: 3 | R41: =+L41 -> a - florbal - bežné transfery | S41: 4 | T41: =+L41 -> a - florbal - bežné transfery | U41: 5
A42: a | B42: Uznaná suma vyúčtovaných FP | C42: =+C40 -> 0 | D42: =+D40 -> 208215.46 | E42: =+E40 -> 228990 | F42: =+MIN(F39:F40) -> 174829.8 | G42: =+MIN(G39+MAX(F39-F40,0)-MAX(E40-E39,0)-MAX(D40-D39,0)-MAX(C40-C39,0),G40) -> 262113.74 | H42: =+MIN(H39:H40) -> 0 | I42: =+C42+D42+E42+MIN(F39:F40)+G42+H42 -> 874149 | J42: =+K47 -> 0 | K42: =+I42-H42 -> 874149 | L42: =+SUBSTITUTE(L41,"bežné","kapitálové") -> a - florbal - kapitálové transfery | M42: 1 | N42: =+L42 -> a - florbal - kapitálové transfery | O42: 2 | P42: =+L42 -> a - florbal - kapitálové transfery | Q42: 3 | R42: =+L42 -> a - florbal - kapitálové transfery | S42: 4 | T42: =+L42 -> a - florbal - kapitálové transfery | U42: 5
A43: Účel | B43: =IF(L38>2,"Šport "&INDEX(FP!K:K,Doklady!B2+2),"Šport "&K45) -> Šport . | C43: mládež 23 MIN.15% | D43: talenty MIN.20% | E43: reprezentácia MIN.25% | F43: prevádzka MAX.20% | G43: ostatné úlohy | H43: kapitálové transfery z PUŠ | I43: SPOLU | L43: =L38-1 -> 0
A44: a | B44: Poskytnutý príspevok uznanému športu | C44: =I44*0 -> 0 | D44: =I44*0 -> 0 | E44: =I44*0 -> 0 | F44: =+I44*0.2 -> 0 | G44: =+MAX(I44-C44-D44-E44-F44-H44,0) -> 0 | H44: =+IFERROR(VLOOKUP(K45&" - kapitálové transfery",B$53:C$90,2,0),0) -> 0 | I44: =SUMIF(FP!K:K,K45,FP!D:D) -> 0
A45: a | B45: Vyúčtovaný príspevok uznanému športu | C45: =DSUM(Doklady!A103:J10000,"GGG",Spolu!L45:M47) -> 0 | D45: =DSUM(Doklady!A103:J10000,"GGG",Spolu!N45:O47) -> 0 | E45: =DSUM(Doklady!A103:J10000,"GGG",Spolu!P45:Q47) -> 0 | F45: =DSUM(Doklady!A103:J10000,"GGG",Spolu!R45:S47) -> 0 | G45: =DSUM(Doklady!A103:J10000,"GGG",Spolu!T45:U47)-H45 -> 0 | H45: =+IFERROR(VLOOKUP(K45&" - kapitálové transfery",B$53:D$90,3,0),0) -> 0 | I45: =+C45+D45+E45+F45+G45+H45 -> 0 | K45: =IF(L38>1,INDEX(FP!K:K,Doklady!B2+1),".") -> . | L45: AAA | M45: HHH | N45: AAA | O45: HHH | P45: AAA | Q45: HHH | R45: AAA | S45: HHH | T45: AAA | U45: HHH
A46: a | B46: ROZDIEL | C46: =MAX(C44-C45,0) -> 0 | D46: =MAX(D44-D45,0) -> 0 | E46: =MAX(E44-E45,0) -> 0 | F46: =MIN(I44,MAX(-F44+F45,0)) -> 0 | G46: =MIN(J44,MAX(-G44+G45+MIN(F45-F44,0),0)) -> 0 | H46: =MAX(H44-H45,0) -> 0 | I46: =+I44-I47 -> 0 | K46: =+I46-H46 -> 0 | L46: =IF(L43>0,"a - "&INDEX(FP!C:C,Doklady!B2+1),2) -> 2 | M46: 1 | N46: =+L46 -> 2 | O46: 2 | P46: =+L46 -> 2 | Q46: 3 | R46: =+L46 -> 2 | S46: 4 | T46: =+L46 -> 2 | U46: 5
A47: a | B47: Uznaná suma vyúčtovaných FP | C47: =+C45 -> 0 | D47: =+D45 -> 0 | E47: =+E45 -> 0 | F47: =+MIN(F44:F45) -> 0 | G47: =+MIN(G44+MAX(F44-F45,0)-MAX(E45-E44,0)-MAX(D45-D44,0)-MAX(C45-C44,0),G45) -> 0 | H47: =+MIN(H44:H45) -> 0 | I47: =+C47+D47+E47+MIN(F44:F45)+G47+H47 -> 0 | K47: =+I47-H47 -> 0 | L47: =+SUBSTITUTE(L46,"bežné","kapitálové") -> 2 | M47: 1 | N47: =+L47 -> 2 | O47: 2 | P47: =+L47 -> 2 | Q47: 3 | R47: =+L47 -> 2 | S47: 4 | T47: =+L47 -> 2 | U47: 5
A52: Účel | B52: Účel poskytnutých finančných prostriedkov | C52: Poskytnuté FP | D52: Vyúčtované FP | E52: Povinné SF | F52: Vyúčtované SF | G52: Uznaná suma vyúčtov. FP | I52: Povinnosť vrátiť | K52: PPG | L52: BK | M52: PPGBK
A53: =Doklady!D1 -> a | B53: =Doklady!H1 -> florbal - bežné transfery | C53: =IF(A53<>"",INDEX(FP!D:D,Doklady!B$2+(ROW()-53)),"") -> 874149 | D53: =IF(A53<>"",Doklady!I1-Doklady!J1,"") -> 874149 | E53: =IF(A53<>"",MIN(D53,C53)*Doklady!C1/(1-Doklady!C1),"") -> 0 | F53: =IF(A53<>"",Doklady!J1,"") -> 0 | G53: =+IFERROR(HLOOKUP(IF(RIGHT(B53,15)="bežné transfery",LEFT(B53,LEN(B53)-18),0),$J$40:$K$42,3,0),MIN(C53,D53)) -> 874149 | I53: =IF(A53<>"",MAX(IF(G53<C53,C53-G53,0)+IF(F53<E53,E53-F53,0),0),0) -> 0 | J53: =IF(D53>C53,"Vyúčtované prostriedky nemôžu byť väčšie ako poskytnuté. Opravte v hárku ""Doklady""","") ->  | K53: =Doklady!F1 -> 026 02 | L53: =IF(A53<>"",INDEX(FP!H:H,Doklady!B$2+(ROW()-52)),"") -> B | M53: =K53&L53 -> 026 02B
A54: =Doklady!D2 -> f | B54: =Doklady!H2 -> florbal - 20 % navýšenie | C54: =IF(A54<>"",INDEX(FP!D:D,Doklady!B$2+(ROW()-53)),"") -> 164645 | D54: =IF(A54<>"",Doklady!I2-Doklady!J2,"") -> 164228.88 | E54: =IF(A54<>"",MIN(D54,C54)*Doklady!C2/(1-Doklady!C2),"") -> 0 | F54: =IF(A54<>"",Doklady!J2,"") -> 0 | G54: =+IFERROR(HLOOKUP(IF(RIGHT(B54,15)="bežné transfery",LEFT(B54,LEN(B54)-18),0),$J$40:$K$42,3,0),MIN(C54,D54)) -> 164228.88 | I54: =IF(A54<>"",MAX(IF(G54<C54,C54-G54,0)+IF(F54<E54,E54-F54,0),0),0) -> 416.12 | J54: =IF(D54>C54,"Vyúčtované prostriedky nemôžu byť väčšie ako poskytnuté. Opravte v hárku ""Doklady""","") ->  | K54: =Doklady!F2 -> 026 03 | L54: =IF(A54<>"",INDEX(FP!H:H,Doklady!B$2+(ROW()-52)),"") -> B | M54: =K54&L54 -> 026 03B
A55: =Doklady!D3 -> j | B55: =Doklady!H3 -> Zabezpečenie finále školských športových súťaží (Trenčín 2024) v súťažiach kategórie "A" vo florbale stredných škôl | C55: =IF(A55<>"",INDEX(FP!D:D,Doklady!B$2+(ROW()-53)),"") -> 31800 | D55: =IF(A55<>"",Doklady!I3-Doklady!J3,"") -> 31800 | E55: =IF(A55<>"",MIN(D55,C55)*Doklady!C3/(1-Doklady!C3),"") -> 0 | F55: =IF(A55<>"",Doklady!J3,"") -> 0 | G55: 31800 | I55: 0 | K55: =Doklady!F3 -> 026 03 | L55: =IF(A55<>"",INDEX(FP!H:H,Doklady!B$2+(ROW()-52)),"") -> B | M55: 026 03B
A56: =Doklady!D4 -> j | B56: =Doklady!H4 -> Zabezpečenie finále školských športových súťaží (Trenčín 2024) v súťažiach kategórie "A" vo florbale základných škôl | C56: =IF(A56<>"",INDEX(FP!D:D,Doklady!B$2+(ROW()-53)),"") -> 31800 | D56: =IF(A56<>"",Doklady!I4-Doklady!J4,"") -> 31800 | E56: =IF(A56<>"",MIN(D56,C56)*Doklady!C4/(1-Doklady!C4),"") -> 0 | F56: =IF(A56<>"",Doklady!J4,"") -> 0 | G56: 31800 | I56: 0 | K56: =Doklady!F4 -> 026 03 | L56: =IF(A56<>"",INDEX(FP!H:H,Doklady!B$2+(ROW()-52)),"") -> B | M56: 026 03B
A57: =Doklady!D5 ->  | B57: =Doklady!H5 ->  | C57: =IF(A57<>"",INDEX(FP!D:D,Doklady!B$2+(ROW()-53)),"") ->  | D57: =IF(A57<>"",Doklady!I5-Doklady!J5,"") ->  | E57: =IF(A57<>"",MIN(D57,C57)*Doklady!C5/(1-Doklady!C5),"") ->  | F57: =IF(A57<>"",Doklady!J5,"") ->  | G57: 0 | I57: 0 | K57: =Doklady!F5 ->  | L57: =IF(A57<>"",INDEX(FP!H:H,Doklady!B$2+(ROW()-52)),"") -> 
A58: =Doklady!D6 ->  | B58: =Doklady!H6 ->  | C58: =IF(A58<>"",INDEX(FP!D:D,Doklady!B$2+(ROW()-53)),"") ->  | D58: =IF(A58<>"",Doklady!I6-Doklady!J6,"") ->  | E58: =IF(A58<>"",MIN(D58,C58)*Doklady!C6/(1-Doklady!C6),"") ->  | F58: =IF(A58<>"",Doklady!J6,"") ->  | G58: 0 | I58: 0 | K58: =Doklady!F6 ->  | L58: =IF(A58<>"",INDEX(FP!H:H,Doklady!B$2+(ROW()-52)),"") -> 
A59: =Doklady!D7 ->  | B59: =Doklady!H7 ->  | C59: =IF(A59<>"",INDEX(FP!D:D,Doklady!B$2+(ROW()-53)),"") ->  | D59: =IF(A59<>"",Doklady!I7-Doklady!J7,"") ->  | E59: =IF(A59<>"",MIN(D59,C59)*Doklady!C7/(1-Doklady!C7),"") ->  | F59: =IF(A59<>"",Doklady!J7,"") ->  | G59: 0 | I59: 0 | K59: =Doklady!F7 ->  | L59: =IF(A59<>"",INDEX(FP!H:H,Doklady!B$2+(ROW()-52)),"") -> 
A60: =Doklady!D8 ->  | B60: =Doklady!H8 ->  | C60: =IF(A60<>"",INDEX(FP!D:D,Doklady!B$2+(ROW()-53)),"") ->  | D60: =IF(A60<>"",Doklady!I8-Doklady!J8,"") ->  | E60: =IF(A60<>"",MIN(D60,C60)*Doklady!C8/(1-Doklady!C8),"") ->  | F60: =IF(A60<>"",Doklady!J8,"") ->  | G60: 0 | I60: 0 | K60: =Doklady!F8 ->  | L60: =IF(A60<>"",INDEX(FP!H:H,Doklady!B$2+(ROW()-52)),"") -> 
A61: =Doklady!D9 ->  | B61: =Doklady!H9 ->  | C61: =IF(A61<>"",INDEX(FP!D:D,Doklady!B$2+(ROW()-53)),"") ->  | D61: =IF(A61<>"",Doklady!I9-Doklady!J9,"") ->  | E61: =IF(A61<>"",MIN(D61,C61)*Doklady!C9/(1-Doklady!C9),"") ->  | F61: =IF(A61<>"",Doklady!J9,"") ->  | G61: 0 | I61: 0 | K61: =Doklady!F9 ->  | L61: =IF(A61<>"",INDEX(FP!H:H,Doklady!B$2+(ROW()-52)),"") -> 
A62: =Doklady!D10 ->  | B62: =Doklady!H10 ->  | C62: =IF(A62<>"",INDEX(FP!D:D,Doklady!B$2+(ROW()-53)),"") ->  | D62: =IF(A62<>"",Doklady!I10-Doklady!J10,"") ->  | E62: =IF(A62<>"",MIN(D62,C62)*Doklady!C10/(1-Doklady!C10),"") ->  | F62: =IF(A62<>"",Doklady!J10,"") ->  | G62: 0 | I62: 0 | K62: =Doklady!F10 ->  | L62: =IF(A62<>"",INDEX(FP!H:H,Doklady!B$2+(ROW()-52)),"") -> 
A63: =Doklady!D11 ->  | B63: =Doklady!H11 ->  | C63: =IF(A63<>"",INDEX(FP!D:D,Doklady!B$2+(ROW()-53)),"") ->  | D63: =IF(A63<>"",Doklady!I11-Doklady!J11,"") ->  | E63: =IF(A63<>"",MIN(D63,C63)*Doklady!C11/(1-Doklady!C11),"") ->  | F63: =IF(A63<>"",Doklady!J11,"") ->  | G63: 0 | I63: 0 | K63: =Doklady!F11 ->  | L63: =IF(A63<>"",INDEX(FP!H:H,Doklady!B$2+(ROW()-52)),"") -> 
A64: =Doklady!D12 ->  | B64: =Doklady!H12 ->  | C64: =IF(A64<>"",INDEX(FP!D:D,Doklady!B$2+(ROW()-53)),"") ->  | D64: =IF(A64<>"",Doklady!I12-Doklady!J12,"") ->  | E64: =IF(A64<>"",MIN(D64,C64)*Doklady!C12/(1-Doklady!C12),"") ->  | F64: =IF(A64<>"",Doklady!J12,"") ->  | G64: 0 | I64: 0 | J64: ; | K64: =Doklady!F12 ->  | L64: =IF(A64<>"",INDEX(FP!H:H,Doklady!B$2+(ROW()-52)),"") -> 
A65: =Doklady!D13 ->  | B65: =Doklady!H13 ->  | C65: =IF(A65<>"",INDEX(FP!D:D,Doklady!B$2+(ROW()-53)),"") ->  | D65: =IF(A65<>"",Doklady!I13-Doklady!J13,"") ->  | E65: =IF(A65<>"",MIN(D65,C65)*Doklady!C13/(1-Doklady!C13),"") ->  | F65: =IF(A65<>"",Doklady!J13,"") ->  | G65: 0 | I65: 0 | K65: =Doklady!F13 ->  | L65: =IF(A65<>"",INDEX(FP!H:H,Doklady!B$2+(ROW()-52)),"") -> 
A66: =Doklady!D14 ->  | B66: =Doklady!H14 ->  | C66: =IF(A66<>"",INDEX(FP!D:D,Doklady!B$2+(ROW()-53)),"") ->  | D66: =IF(A66<>"",Doklady!I14-Doklady!J14,"") ->  | E66: =IF(A66<>"",MIN(D66,C66)*Doklady!C14/(1-Doklady!C14),"") ->  | F66: =IF(A66<>"",Doklady!J14,"") ->  | G66: 0 | I66: 0 | K66: =Doklady!F14 ->  | L66: =IF(A66<>"",INDEX(FP!H:H,Doklady!B$2+(ROW()-52)),"") -> 
A67: =Doklady!D15 ->  | B67: =Doklady!H15 ->  | C67: =IF(A67<>"",INDEX(FP!D:D,Doklady!B$2+(ROW()-53)),"") ->  | D67: =IF(A67<>"",Doklady!I15-Doklady!J15,"") ->  | E67: =IF(A67<>"",MIN(D67,C67)*Doklady!C15/(1-Doklady!C15),"") ->  | F67: =IF(A67<>"",Doklady!J15,"") ->  | G67: 0 | I67: 0 | K67: =Doklady!F15 ->  | L67: =IF(A67<>"",INDEX(FP!H:H,Doklady!B$2+(ROW()-52)),"") -> 
A68: =Doklady!D16 ->  | B68: =Doklady!H16 ->  | C68: =IF(A68<>"",INDEX(FP!D:D,Doklady!B$2+(ROW()-53)),"") ->  | D68: =IF(A68<>"",Doklady!I16-Doklady!J16,"") ->  | E68: =IF(A68<>"",MIN(D68,C68)*Doklady!C16/(1-Doklady!C16),"") ->  | F68: =IF(A68<>"",Doklady!J16,"") ->  | G68: 0 | I68: 0 | K68: =Doklady!F16 ->  | L68: =IF(A68<>"",INDEX(FP!H:H,Doklady!B$2+(ROW()-52)),"") -> 
A69: =Doklady!D17 ->  | B69: =Doklady!H17 ->  | C69: =IF(A69<>"",INDEX(FP!D:D,Doklady!B$2+(ROW()-53)),"") ->  | D69: =IF(A69<>"",Doklady!I17-Doklady!J17,"") ->  | E69: =IF(A69<>"",MIN(D69,C69)*Doklady!C17/(1-Doklady!C17),"") ->  | F69: =IF(A69<>"",Doklady!J17,"") ->  | G69: 0 | I69: 0 | K69: =Doklady!F17 ->  | L69: =IF(A69<>"",INDEX(FP!H:H,Doklady!B$2+(ROW()-52)),"") -> 
A70: =Doklady!D18 ->  | B70: =Doklady!H18 ->  | C70: =IF(A70<>"",INDEX(FP!D:D,Doklady!B$2+(ROW()-53)),"") ->  | D70: =IF(A70<>"",Doklady!I18-Doklady!J18,"") ->  | E70: =IF(A70<>"",MIN(D70,C70)*Doklady!C18/(1-Doklady!C18),"") ->  | F70: =IF(A70<>"",Doklady!J18,"") ->  | G70: 0 | I70: 0 | K70: =Doklady!F18 ->  | L70: =IF(A70<>"",INDEX(FP!H:H,Doklady!B$2+(ROW()-52)),"") -> 
A71: =Doklady!D19 ->  | B71: =Doklady!H19 ->  | C71: =IF(A71<>"",INDEX(FP!D:D,Doklady!B$2+(ROW()-53)),"") ->  | D71: =IF(A71<>"",Doklady!I19-Doklady!J19,"") ->  | E71: =IF(A71<>"",MIN(D71,C71)*Doklady!C19/(1-Doklady!C19),"") ->  | F71: =IF(A71<>"",Doklady!J19,"") ->  | G71: 0 | I71: 0 | K71: =Doklady!F19 ->  | L71: =IF(A71<>"",INDEX(FP!H:H,Doklady!B$2+(ROW()-52)),"") -> 
A72: =Doklady!D20 ->  | B72: =Doklady!H20 ->  | C72: =IF(A72<>"",INDEX(FP!D:D,Doklady!B$2+(ROW()-53)),"") ->  | D72: =IF(A72<>"",Doklady!I20-Doklady!J20,"") ->  | E72: =IF(A72<>"",MIN(D72,C72)*Doklady!C20/(1-Doklady!C20),"") ->  | F72: =IF(A72<>"",Doklady!J20,"") ->  | G72: 0 | I72: 0 | K72: =Doklady!F20 ->  | L72: =IF(A72<>"",INDEX(FP!H:H,Doklady!B$2+(ROW()-52)),"") -> 
A73: =Doklady!D21 ->  | B73: =Doklady!H21 ->  | C73: =IF(A73<>"",INDEX(FP!D:D,Doklady!B$2+(ROW()-53)),"") ->  | D73: =IF(A73<>"",Doklady!I21-Doklady!J21,"") ->  | E73: =IF(A73<>"",MIN(D73,C73)*Doklady!C21/(1-Doklady!C21),"") ->  | F73: =IF(A73<>"",Doklady!J21,"") ->  | G73: 0 | I73: 0 | K73: =Doklady!F21 ->  | L73: =IF(A73<>"",INDEX(FP!H:H,Doklady!B$2+(ROW()-52)),"") -> 
A74: =Doklady!D22 ->  | B74: =Doklady!H22 ->  | C74: =IF(A74<>"",INDEX(FP!D:D,Doklady!B$2+(ROW()-53)),"") ->  | D74: =IF(A74<>"",Doklady!I22-Doklady!J22,"") ->  | E74: =IF(A74<>"",MIN(D74,C74)*Doklady!C22/(1-Doklady!C22),"") ->  | F74: =IF(A74<>"",Doklady!J22,"") ->  | G74: 0 | I74: 0 | K74: =Doklady!F22 ->  | L74: =IF(A74<>"",INDEX(FP!H:H,Doklady!B$2+(ROW()-52)),"") -> 
A75: =Doklady!D23 ->  | B75: =Doklady!H23 ->  | C75: =IF(A75<>"",INDEX(FP!D:D,Doklady!B$2+(ROW()-53)),"") ->  | D75: =IF(A75<>"",Doklady!I23-Doklady!J23,"") ->  | E75: =IF(A75<>"",MIN(D75,C75)*Doklady!C23/(1-Doklady!C23),"") ->  | F75: =IF(A75<>"",Doklady!J23,"") ->  | G75: 0 | I75: 0 | K75: =Doklady!F23 ->  | L75: =IF(A75<>"",INDEX(FP!H:H,Doklady!B$2+(ROW()-52)),"") -> 
A76: =Doklady!D24 ->  | B76: =Doklady!H24 ->  | C76: =IF(A76<>"",INDEX(FP!D:D,Doklady!B$2+(ROW()-53)),"") ->  | D76: =IF(A76<>"",Doklady!I24-Doklady!J24,"") ->  | E76: =IF(A76<>"",MIN(D76,C76)*Doklady!C24/(1-Doklady!C24),"") ->  | F76: =IF(A76<>"",Doklady!J24,"") ->  | G76: 0 | I76: 0 | K76: =Doklady!F24 ->  | L76: =IF(A76<>"",INDEX(FP!H:H,Doklady!B$2+(ROW()-52)),"") -> 
A77: =Doklady!D25 ->  | B77: =Doklady!H25 ->  | C77: =IF(A77<>"",INDEX(FP!D:D,Doklady!B$2+(ROW()-53)),"") ->  | D77: =IF(A77<>"",Doklady!I25-Doklady!J25,"") ->  | E77: =IF(A77<>"",MIN(D77,C77)*Doklady!C25/(1-Doklady!C25),"") ->  | F77: =IF(A77<>"",Doklady!J25,"") ->  | G77: 0 | I77: 0 | K77: =Doklady!F25 ->  | L77: =IF(A77<>"",INDEX(FP!H:H,Doklady!B$2+(ROW()-52)),"") -> 
A78: =Doklady!D26 ->  | B78: =Doklady!H26 ->  | C78: =IF(A78<>"",INDEX(FP!D:D,Doklady!B$2+(ROW()-53)),"") ->  | D78: =IF(A78<>"",Doklady!I26-Doklady!J26,"") ->  | E78: =IF(A78<>"",MIN(D78,C78)*Doklady!C26/(1-Doklady!C26),"") ->  | F78: =IF(A78<>"",Doklady!J26,"") ->  | G78: 0 | I78: 0 | K78: =Doklady!F26 ->  | L78: =IF(A78<>"",INDEX(FP!H:H,Doklady!B$2+(ROW()-52)),"") -> 
A79: =Doklady!D27 ->  | B79: =Doklady!H27 ->  | C79: =IF(A79<>"",INDEX(FP!D:D,Doklady!B$2+(ROW()-53)),"") ->  | D79: =IF(A79<>"",Doklady!I27-Doklady!J27,"") ->  | E79: =IF(A79<>"",MIN(D79,C79)*Doklady!C27/(1-Doklady!C27),"") ->  | F79: =IF(A79<>"",Doklady!J27,"") ->  | G79: 0 | I79: 0 | K79: =Doklady!F27 ->  | L79: =IF(A79<>"",INDEX(FP!H:H,Doklady!B$2+(ROW()-52)),"") -> 
A80: =Doklady!D28 ->  | B80: =Doklady!H28 ->  | C80: =IF(A80<>"",INDEX(FP!D:D,Doklady!B$2+(ROW()-53)),"") ->  | D80: =IF(A80<>"",Doklady!I28-Doklady!J28,"") ->  | E80: =IF(A80<>"",MIN(D80,C80)*Doklady!C28/(1-Doklady!C28),"") ->  | F80: =IF(A80<>"",Doklady!J28,"") ->  | G80: 0 | I80: 0 | K80: =Doklady!F28 ->  | L80: =IF(A80<>"",INDEX(FP!H:H,Doklady!B$2+(ROW()-52)),"") -> 
A81: =Doklady!D29 ->  | B81: =Doklady!H29 ->  | C81: =IF(A81<>"",INDEX(FP!D:D,Doklady!B$2+(ROW()-53)),"") ->  | D81: =IF(A81<>"",Doklady!I29-Doklady!J29,"") ->  | E81: =IF(A81<>"",MIN(D81,C81)*Doklady!C29/(1-Doklady!C29),"") ->  | F81: =IF(A81<>"",Doklady!J29,"") ->  | G81: 0 | I81: 0 | K81: =Doklady!F29 ->  | L81: =IF(A81<>"",INDEX(FP!H:H,Doklady!B$2+(ROW()-52)),"") -> 
A82: =Doklady!D30 ->  | B82: =Doklady!H30 ->  | C82: =IF(A82<>"",INDEX(FP!D:D,Doklady!B$2+(ROW()-53)),"") ->  | D82: =IF(A82<>"",Doklady!I30-Doklady!J30,"") ->  | E82: =IF(A82<>"",MIN(D82,C82)*Doklady!C30/(1-Doklady!C30),"") ->  | F82: =IF(A82<>"",Doklady!J30,"") ->  | G82: 0 | I82: 0 | K82: =Doklady!F30 ->  | L82: =IF(A82<>"",INDEX(FP!H:H,Doklady!B$2+(ROW()-52)),"") -> 
A83: =Doklady!D31 ->  | B83: =Doklady!H31 ->  | C83: =IF(A83<>"",INDEX(FP!D:D,Doklady!B$2+(ROW()-53)),"") ->  | D83: =IF(A83<>"",Doklady!I31-Doklady!J31,"") ->  | E83: =IF(A83<>"",MIN(D83,C83)*Doklady!C31/(1-Doklady!C31),"") ->  | F83: =IF(A83<>"",Doklady!J31,"") ->  | G83: 0 | I83: 0 | K83: =Doklady!F31 ->  | L83: =IF(A83<>"",INDEX(FP!H:H,Doklady!B$2+(ROW()-52)),"") -> 
A84: =Doklady!D32 ->  | B84: =Doklady!H32 ->  | C84: =IF(A84<>"",INDEX(FP!D:D,Doklady!B$2+(ROW()-53)),"") ->  | D84: =IF(A84<>"",Doklady!I32-Doklady!J32,"") ->  | E84: =IF(A84<>"",MIN(D84,C84)*Doklady!C32/(1-Doklady!C32),"") ->  | F84: =IF(A84<>"",Doklady!J32,"") ->  | G84: 0 | I84: 0 | K84: =Doklady!F32 ->  | L84: =IF(A84<>"",INDEX(FP!H:H,Doklady!B$2+(ROW()-52)),"") -> 
A85: =Doklady!D33 ->  | B85: =Doklady!H33 ->  | C85: =IF(A85<>"",INDEX(FP!D:D,Doklady!B$2+(ROW()-53)),"") ->  | D85: =IF(A85<>"",Doklady!I33-Doklady!J33,"") ->  | E85: =IF(A85<>"",MIN(D85,C85)*Doklady!C33/(1-Doklady!C33),"") ->  | F85: =IF(A85<>"",Doklady!J33,"") ->  | G85: 0 | I85: 0 | K85: =Doklady!F33 ->  | L85: =IF(A85<>"",INDEX(FP!H:H,Doklady!B$2+(ROW()-52)),"") -> 
A86: =Doklady!D34 ->  | B86: =Doklady!H34 ->  | C86: =IF(A86<>"",INDEX(FP!D:D,Doklady!B$2+(ROW()-53)),"") ->  | D86: =IF(A86<>"",Doklady!I34-Doklady!J34,"") ->  | E86: =IF(A86<>"",MIN(D86,C86)*Doklady!C34/(1-Doklady!C34),"") ->  | F86: =IF(A86<>"",Doklady!J34,"") ->  | G86: 0 | I86: 0 | K86: =Doklady!F34 ->  | L86: =IF(A86<>"",INDEX(FP!H:H,Doklady!B$2+(ROW()-52)),"") -> 
A87: =Doklady!D35 ->  | B87: =Doklady!H35 ->  | C87: =IF(A87<>"",INDEX(FP!D:D,Doklady!B$2+(ROW()-53)),"") ->  | D87: =IF(A87<>"",Doklady!I35-Doklady!J35,"") ->  | E87: =IF(A87<>"",MIN(D87,C87)*Doklady!C35/(1-Doklady!C35),"") ->  | F87: =IF(A87<>"",Doklady!J35,"") ->  | G87: 0 | I87: 0 | K87: =Doklady!F35 ->  | L87: =IF(A87<>"",INDEX(FP!H:H,Doklady!B$2+(ROW()-52)),"") -> 
A88: =Doklady!D36 ->  | B88: =Doklady!H36 ->  | C88: =IF(A88<>"",INDEX(FP!D:D,Doklady!B$2+(ROW()-53)),"") ->  | D88: =IF(A88<>"",Doklady!I36-Doklady!J36,"") ->  | E88: =IF(A88<>"",MIN(D88,C88)*Doklady!C36/(1-Doklady!C36),"") ->  | F88: =IF(A88<>"",Doklady!J36,"") ->  | G88: 0 | I88: 0 | K88: =Doklady!F36 ->  | L88: =IF(A88<>"",INDEX(FP!H:H,Doklady!B$2+(ROW()-52)),"") -> 
A89: =Doklady!D37 ->  | B89: =Doklady!H37 ->  | C89: =IF(A89<>"",INDEX(FP!D:D,Doklady!B$2+(ROW()-53)),"") ->  | D89: =IF(A89<>"",Doklady!I37-Doklady!J37,"") ->  | E89: =IF(A89<>"",MIN(D89,C89)*Doklady!C37/(1-Doklady!C37),"") ->  | F89: =IF(A89<>"",Doklady!J37,"") ->  | G89: 0 | I89: 0 | K89: =Doklady!F37 ->  | L89: =IF(A89<>"",INDEX(FP!H:H,Doklady!B$2+(ROW()-52)),"") -> 
A90: =Doklady!D38 ->  | B90: =Doklady!H38 ->  | C90: =IF(A90<>"",INDEX(FP!D:D,Doklady!B$2+(ROW()-53)),"") ->  | D90: =IF(A90<>"",Doklady!I38-Doklady!J38,"") ->  | E90: =IF(A90<>"",MIN(D90,C90)*Doklady!C38/(1-Doklady!C38),"") ->  | F90: =IF(A90<>"",Doklady!J38,"") ->  | G90: 0 | I90: 0 | K90: =Doklady!F38 ->  | L90: =IF(A90<>"",INDEX(FP!H:H,Doklady!B$2+(ROW()-52)),"") -> 
A91: =Doklady!D39 ->  | B91: =Doklady!H39 ->  | C91: =IF(A91<>"",INDEX(FP!D:D,Doklady!B$2+(ROW()-53)),"") ->  | D91: =IF(A91<>"",Doklady!I39-Doklady!J39,"") ->  | E91: =IF(A91<>"",MIN(D91,C91)*Doklady!C39/(1-Doklady!C39),"") ->  | F91: =IF(A91<>"",Doklady!J39,"") ->  | G91: 0 | I91: 0 | K91: =Doklady!F39 ->  | L91: =IF(A91<>"",INDEX(FP!H:H,Doklady!B$2+(ROW()-52)),"") -> 
A92: =Doklady!D40 ->  | B92: =Doklady!H40 ->  | C92: =IF(A92<>"",INDEX(FP!D:D,Doklady!B$2+(ROW()-53)),"") ->  | D92: =IF(A92<>"",Doklady!I40-Doklady!J40,"") ->  | E92: =IF(A92<>"",MIN(D92,C92)*Doklady!C40/(1-Doklady!C40),"") ->  | F92: =IF(A92<>"",Doklady!J40,"") ->  | G92: 0 | I92: 0 | K92: =Doklady!F40 ->  | L92: =IF(A92<>"",INDEX(FP!H:H,Doklady!B$2+(ROW()-52)),"") -> 
A93: =Doklady!D41 ->  | B93: =Doklady!H41 ->  | C93: =IF(A93<>"",INDEX(FP!D:D,Doklady!B$2+(ROW()-53)),"") ->  | D93: =IF(A93<>"",Doklady!I41-Doklady!J41,"") ->  | E93: =IF(A93<>"",MIN(D93,C93)*Doklady!C41/(1-Doklady!C41),"") ->  | F93: =IF(A93<>"",Doklady!J41,"") ->  | G93: 0 | I93: 0 | K93: =Doklady!F41 ->  | L93: =IF(A93<>"",INDEX(FP!H:H,Doklady!B$2+(ROW()-52)),"") -> 
A94: =Doklady!D42 ->  | B94: =Doklady!H42 ->  | C94: =IF(A94<>"",INDEX(FP!D:D,Doklady!B$2+(ROW()-53)),"") ->  | D94: =IF(A94<>"",Doklady!I42-Doklady!J42,"") ->  | E94: =IF(A94<>"",MIN(D94,C94)*Doklady!C42/(1-Doklady!C42),"") ->  | F94: =IF(A94<>"",Doklady!J42,"") ->  | G94: 0 | I94: 0 | K94: =Doklady!F42 ->  | L94: =IF(A94<>"",INDEX(FP!H:H,Doklady!B$2+(ROW()-52)),"") -> 
A95: =Doklady!D43 ->  | B95: =Doklady!H43 ->  | C95: =IF(A95<>"",INDEX(FP!D:D,Doklady!B$2+(ROW()-53)),"") ->  | D95: =IF(A95<>"",Doklady!I43-Doklady!J43,"") ->  | E95: =IF(A95<>"",MIN(D95,C95)*Doklady!C43/(1-Doklady!C43),"") ->  | F95: =IF(A95<>"",Doklady!J43,"") ->  | G95: 0 | I95: 0 | K95: =Doklady!F43 ->  | L95: =IF(A95<>"",INDEX(FP!H:H,Doklady!B$2+(ROW()-52)),"") -> 
A96: =Doklady!D44 ->  | B96: =Doklady!H44 ->  | C96: =IF(A96<>"",INDEX(FP!D:D,Doklady!B$2+(ROW()-53)),"") ->  | D96: =IF(A96<>"",Doklady!I44-Doklady!J44,"") ->  | E96: =IF(A96<>"",MIN(D96,C96)*Doklady!C44/(1-Doklady!C44),"") ->  | F96: =IF(A96<>"",Doklady!J44,"") ->  | G96: 0 | I96: 0 | K96: =Doklady!F44 ->  | L96: =IF(A96<>"",INDEX(FP!H:H,Doklady!B$2+(ROW()-52)),"") -> 
A97: =Doklady!D45 ->  | B97: =Doklady!H45 ->  | C97: =IF(A97<>"",INDEX(FP!D:D,Doklady!B$2+(ROW()-53)),"") ->  | D97: =IF(A97<>"",Doklady!I45-Doklady!J45,"") ->  | E97: =IF(A97<>"",MIN(D97,C97)*Doklady!C45/(1-Doklady!C45),"") ->  | F97: =IF(A97<>"",Doklady!J45,"") ->  | G97: 0 | I97: 0 | K97: =Doklady!F45 ->  | L97: =IF(A97<>"",INDEX(FP!H:H,Doklady!B$2+(ROW()-52)),"") -> 
A98: =Doklady!D46 ->  | B98: =Doklady!H46 ->  | C98: =IF(A98<>"",INDEX(FP!D:D,Doklady!B$2+(ROW()-53)),"") ->  | D98: =IF(A98<>"",Doklady!I46-Doklady!J46,"") ->  | E98: =IF(A98<>"",MIN(D98,C98)*Doklady!C46/(1-Doklady!C46),"") ->  | F98: =IF(A98<>"",Doklady!J46,"") ->  | G98: 0 | I98: 0 | K98: =Doklady!F46 ->  | L98: =IF(A98<>"",INDEX(FP!H:H,Doklady!B$2+(ROW()-52)),"") -> 
A99: =Doklady!D47 ->  | B99: =Doklady!H47 ->  | C99: =IF(A99<>"",INDEX(FP!D:D,Doklady!B$2+(ROW()-53)),"") ->  | D99: =IF(A99<>"",Doklady!I47-Doklady!J47,"") ->  | E99: =IF(A99<>"",MIN(D99,C99)*Doklady!C47/(1-Doklady!C47),"") ->  | F99: =IF(A99<>"",Doklady!J47,"") ->  | G99: 0 | I99: 0 | K99: =Doklady!F47 ->  | L99: =IF(A99<>"",INDEX(FP!H:H,Doklady!B$2+(ROW()-52)),"") -> 
A100: =Doklady!D48 ->  | B100: =Doklady!H48 ->  | C100: =IF(A100<>"",INDEX(FP!D:D,Doklady!B$2+(ROW()-53)),"") ->  | D100: =IF(A100<>"",Doklady!I48-Doklady!J48,"") ->  | E100: =IF(A100<>"",MIN(D100,C100)*Doklady!C48/(1-Doklady!C48),"") ->  | F100: =IF(A100<>"",Doklady!J48,"") ->  | G100: 0 | I100: 0 | K100: =Doklady!F48 ->  | L100: =IF(A100<>"",INDEX(FP!H:H,Doklady!B$2+(ROW()-52)),"") -> 
A101: =Doklady!D49 ->  | B101: =Doklady!H49 ->  | C101: =IF(A101<>"",INDEX(FP!D:D,Doklady!B$2+(ROW()-53)),"") ->  | D101: =IF(A101<>"",Doklady!I49-Doklady!J49,"") ->  | E101: =IF(A101<>"",MIN(D101,C101)*Doklady!C49/(1-Doklady!C49),"") ->  | F101: =IF(A101<>"",Doklady!J49,"") ->  | G101: 0 | I101: 0 | K101: =Doklady!F49 ->  | L101: =IF(A101<>"",INDEX(FP!H:H,Doklady!B$2+(ROW()-52)),"") -> 
A102: =Doklady!D50 ->  | B102: =Doklady!H50 ->  | C102: =IF(A102<>"",INDEX(FP!D:D,Doklady!B$2+(ROW()-53)),"") ->  | D102: =IF(A102<>"",Doklady!I50-Doklady!J50,"") ->  | E102: =IF(A102<>"",MIN(D102,C102)*Doklady!C50/(1-Doklady!C50),"") ->  | F102: =IF(A102<>"",Doklady!J50,"") ->  | G102: 0 | I102: 0 | K102: =Doklady!F50 ->  | L102: =IF(A102<>"",INDEX(FP!H:H,Doklady!B$2+(ROW()-52)),"") -> 
A103: =Doklady!D51 ->  | B103: =Doklady!H51 ->  | C103: =IF(A103<>"",INDEX(FP!D:D,Doklady!B$2+(ROW()-53)),"") ->  | D103: =IF(A103<>"",Doklady!I51-Doklady!J51,"") ->  | E103: =IF(A103<>"",MIN(D103,C103)*Doklady!C51/(1-Doklady!C51),"") ->  | F103: =IF(A103<>"",Doklady!J51,"") ->  | G103: 0 | I103: 0 | K103: =Doklady!F51 ->  | L103: =IF(A103<>"",INDEX(FP!H:H,Doklady!B$2+(ROW()-52)),"") -> 
A104: =Doklady!D52 ->  | B104: =Doklady!H52 ->  | C104: =IF(A104<>"",INDEX(FP!D:D,Doklady!B$2+(ROW()-53)),"") ->  | D104: =IF(A104<>"",Doklady!I52-Doklady!J52,"") ->  | E104: =IF(A104<>"",MIN(D104,C104)*Doklady!C52/(1-Doklady!C52),"") ->  | F104: =IF(A104<>"",Doklady!J52,"") ->  | G104: 0 | I104: 0 | K104: =Doklady!F52 ->  | L104: =IF(A104<>"",INDEX(FP!H:H,Doklady!B$2+(ROW()-52)),"") -> 
A105: =Doklady!D53 ->  | B105: =Doklady!H53 ->  | C105: =IF(A105<>"",INDEX(FP!D:D,Doklady!B$2+(ROW()-53)),"") ->  | D105: =IF(A105<>"",Doklady!I53-Doklady!J53,"") ->  | E105: =IF(A105<>"",MIN(D105,C105)*Doklady!C53/(1-Doklady!C53),"") ->  | F105: =IF(A105<>"",Doklady!J53,"") ->  | G105: 0 | I105: 0 | K105: =Doklady!F53 ->  | L105: =IF(A105<>"",INDEX(FP!H:H,Doklady!B$2+(ROW()-52)),"") -> 
A106: =Doklady!D54 ->  | B106: =Doklady!H54 ->  | C106: =IF(A106<>"",INDEX(FP!D:D,Doklady!B$2+(ROW()-53)),"") ->  | D106: =IF(A106<>"",Doklady!I54-Doklady!J54,"") ->  | E106: =IF(A106<>"",MIN(D106,C106)*Doklady!C54/(1-Doklady!C54),"") ->  | F106: =IF(A106<>"",Doklady!J54,"") ->  | G106: 0 | I106: 0 | K106: =Doklady!F54 ->  | L106: =IF(A106<>"",INDEX(FP!H:H,Doklady!B$2+(ROW()-52)),"") -> 
A107: =Doklady!D55 ->  | B107: =Doklady!H55 ->  | C107: =IF(A107<>"",INDEX(FP!D:D,Doklady!B$2+(ROW()-53)),"") ->  | D107: =IF(A107<>"",Doklady!I55-Doklady!J55,"") ->  | E107: =IF(A107<>"",MIN(D107,C107)*Doklady!C55/(1-Doklady!C55),"") ->  | F107: =IF(A107<>"",Doklady!J55,"") ->  | G107: 0 | I107: 0 | K107: =Doklady!F55 ->  | L107: =IF(A107<>"",INDEX(FP!H:H,Doklady!B$2+(ROW()-52)),"") -> 
A108: =Doklady!D56 ->  | B108: =Doklady!H56 ->  | C108: =IF(A108<>"",INDEX(FP!D:D,Doklady!B$2+(ROW()-53)),"") ->  | D108: =IF(A108<>"",Doklady!I56-Doklady!J56,"") ->  | E108: =IF(A108<>"",MIN(D108,C108)*Doklady!C56/(1-Doklady!C56),"") ->  | F108: =IF(A108<>"",Doklady!J56,"") ->  | G108: 0 | I108: 0 | K108: =Doklady!F56 ->  | L108: =IF(A108<>"",INDEX(FP!H:H,Doklady!B$2+(ROW()-52)),"") -> 
A109: =Doklady!D57 ->  | B109: =Doklady!H57 ->  | C109: =IF(A109<>"",INDEX(FP!D:D,Doklady!B$2+(ROW()-53)),"") ->  | D109: =IF(A109<>"",Doklady!I57-Doklady!J57,"") ->  | E109: =IF(A109<>"",MIN(D109,C109)*Doklady!C57/(1-Doklady!C57),"") ->  | F109: =IF(A109<>"",Doklady!J57,"") ->  | G109: 0 | I109: 0 | K109: =Doklady!F57 ->  | L109: =IF(A109<>"",INDEX(FP!H:H,Doklady!B$2+(ROW()-52)),"") -> 
A110: =Doklady!D58 ->  | B110: =Doklady!H58 ->  | C110: =IF(A110<>"",INDEX(FP!D:D,Doklady!B$2+(ROW()-53)),"") ->  | D110: =IF(A110<>"",Doklady!I58-Doklady!J58,"") ->  | E110: =IF(A110<>"",MIN(D110,C110)*Doklady!C58/(1-Doklady!C58),"") ->  | F110: =IF(A110<>"",Doklady!J58,"") ->  | G110: 0 | I110: 0 | K110: =Doklady!F58 ->  | L110: =IF(A110<>"",INDEX(FP!H:H,Doklady!B$2+(ROW()-52)),"") -> 
A111: =Doklady!D59 ->  | B111: =Doklady!H59 ->  | C111: =IF(A111<>"",INDEX(FP!D:D,Doklady!B$2+(ROW()-53)),"") ->  | D111: =IF(A111<>"",Doklady!I59-Doklady!J59,"") ->  | E111: =IF(A111<>"",MIN(D111,C111)*Doklady!C59/(1-Doklady!C59),"") ->  | F111: =IF(A111<>"",Doklady!J59,"") ->  | G111: 0 | I111: 0 | K111: =Doklady!F59 ->  | L111: =IF(A111<>"",INDEX(FP!H:H,Doklady!B$2+(ROW()-52)),"") -> 
A112: =Doklady!D60 ->  | B112: =Doklady!H60 ->  | C112: =IF(A112<>"",INDEX(FP!D:D,Doklady!B$2+(ROW()-53)),"") ->  | D112: =IF(A112<>"",Doklady!I60-Doklady!J60,"") ->  | E112: =IF(A112<>"",MIN(D112,C112)*Doklady!C60/(1-Doklady!C60),"") ->  | F112: =IF(A112<>"",Doklady!J60,"") ->  | G112: 0 | I112: 0 | K112: =Doklady!F60 ->  | L112: =IF(A112<>"",INDEX(FP!H:H,Doklady!B$2+(ROW()-52)),"") -> 
A113: =Doklady!D61 ->  | B113: =Doklady!H61 ->  | C113: =IF(A113<>"",INDEX(FP!D:D,Doklady!B$2+(ROW()-53)),"") ->  | D113: =IF(A113<>"",Doklady!I61-Doklady!J61,"") ->  | E113: =IF(A113<>"",MIN(D113,C113)*Doklady!C61/(1-Doklady!C61),"") ->  | F113: =IF(A113<>"",Doklady!J61,"") ->  | G113: 0 | I113: 0 | K113: =Doklady!F61 ->  | L113: =IF(A113<>"",INDEX(FP!H:H,Doklady!B$2+(ROW()-52)),"") -> 
A114: =Doklady!D62 ->  | B114: =Doklady!H62 ->  | C114: =IF(A114<>"",INDEX(FP!D:D,Doklady!B$2+(ROW()-53)),"") ->  | D114: =IF(A114<>"",Doklady!I62-Doklady!J62,"") ->  | E114: =IF(A114<>"",MIN(D114,C114)*Doklady!C62/(1-Doklady!C62),"") ->  | F114: =IF(A114<>"",Doklady!J62,"") ->  | G114: 0 | I114: 0 | K114: =Doklady!F62 ->  | L114: =IF(A114<>"",INDEX(FP!H:H,Doklady!B$2+(ROW()-52)),"") -> 
A115: =Doklady!D63 ->  | B115: =Doklady!H63 ->  | C115: =IF(A115<>"",INDEX(FP!D:D,Doklady!B$2+(ROW()-53)),"") ->  | D115: =IF(A115<>"",Doklady!I63-Doklady!J63,"") ->  | E115: =IF(A115<>"",MIN(D115,C115)*Doklady!C63/(1-Doklady!C63),"") ->  | F115: =IF(A115<>"",Doklady!J63,"") ->  | G115: 0 | I115: 0 | K115: =Doklady!F63 ->  | L115: =IF(A115<>"",INDEX(FP!H:H,Doklady!B$2+(ROW()-52)),"") -> 
A116: =Doklady!D64 ->  | B116: =Doklady!H64 ->  | C116: =IF(A116<>"",INDEX(FP!D:D,Doklady!B$2+(ROW()-53)),"") ->  | D116: =IF(A116<>"",Doklady!I64-Doklady!J64,"") ->  | E116: =IF(A116<>"",MIN(D116,C116)*Doklady!C64/(1-Doklady!C64),"") ->  | F116: =IF(A116<>"",Doklady!J64,"") ->  | G116: 0 | I116: 0 | K116: =Doklady!F64 ->  | L116: =IF(A116<>"",INDEX(FP!H:H,Doklady!B$2+(ROW()-52)),"") -> 
A117: =Doklady!D65 ->  | B117: =Doklady!H65 ->  | C117: =IF(A117<>"",INDEX(FP!D:D,Doklady!B$2+(ROW()-53)),"") ->  | D117: =IF(A117<>"",Doklady!I65-Doklady!J65,"") ->  | E117: =IF(A117<>"",MIN(D117,C117)*Doklady!C65/(1-Doklady!C65),"") ->  | F117: =IF(A117<>"",Doklady!J65,"") ->  | G117: 0 | I117: 0 | K117: =Doklady!F65 ->  | L117: =IF(A117<>"",INDEX(FP!H:H,Doklady!B$2+(ROW()-52)),"") -> 
A118: =Doklady!D66 ->  | B118: =Doklady!H66 ->  | C118: =IF(A118<>"",INDEX(FP!D:D,Doklady!B$2+(ROW()-53)),"") ->  | D118: =IF(A118<>"",Doklady!I66-Doklady!J66,"") ->  | E118: =IF(A118<>"",MIN(D118,C118)*Doklady!C66/(1-Doklady!C66),"") ->  | F118: =IF(A118<>"",Doklady!J66,"") ->  | G118: =+IFERROR(HLOOKUP(IF(RIGHT(B118,15)="bežné transfery",LEFT(B118,LEN(B118)-18),0),$J$40:$K$42,3,0),MIN(C118,D118)) -> 0 | I118: =IF(A118<>"",MAX(IF(G118<C118,C118-G118,0)+IF(F118<E118,E118-F118,0),0),0) -> 0 | J118: =IF(D118>C118,"Vyúčtované prostriedky nemôžu byť väčšie ako poskytnuté. Opravte v hárku ""Doklady""","") ->  | K118: =Doklady!F66 ->  | L118: =IF(A118<>"",INDEX(FP!H:H,Doklady!B$2+(ROW()-52)),"") ->  | M118: =K118&L118 -> 
A119: =Doklady!D67 ->  | B119: =Doklady!H67 ->  | C119: =IF(A119<>"",INDEX(FP!D:D,Doklady!B$2+(ROW()-53)),"") ->  | D119: =IF(A119<>"",Doklady!I67-Doklady!J67,"") ->  | E119: =IF(A119<>"",MIN(D119,C119)*Doklady!C67/(1-Doklady!C67),"") ->  | F119: =IF(A119<>"",Doklady!J67,"") ->  | G119: 0 | I119: 0 | K119: =Doklady!F67 ->  | L119: =IF(A119<>"",INDEX(FP!H:H,Doklady!B$2+(ROW()-52)),"") -> 
A120: =Doklady!D68 ->  | B120: =Doklady!H68 ->  | C120: =IF(A120<>"",INDEX(FP!D:D,Doklady!B$2+(ROW()-53)),"") ->  | D120: =IF(A120<>"",Doklady!I68-Doklady!J68,"") ->  | E120: =IF(A120<>"",MIN(D120,C120)*Doklady!C68/(1-Doklady!C68),"") ->  | F120: =IF(A120<>"",Doklady!J68,"") ->  | G120: 0 | I120: 0 | K120: =Doklady!F68 ->  | L120: =IF(A120<>"",INDEX(FP!H:H,Doklady!B$2+(ROW()-52)),"") -> 
A121: =Doklady!D69 ->  | B121: =Doklady!H69 ->  | C121: =IF(A121<>"",INDEX(FP!D:D,Doklady!B$2+(ROW()-53)),"") ->  | D121: =IF(A121<>"",Doklady!I69-Doklady!J69,"") ->  | E121: =IF(A121<>"",MIN(D121,C121)*Doklady!C69/(1-Doklady!C69),"") ->  | F121: =IF(A121<>"",Doklady!J69,"") ->  | G121: 0 | I121: 0 | K121: =Doklady!F69 ->  | L121: =IF(A121<>"",INDEX(FP!H:H,Doklady!B$2+(ROW()-52)),"") -> 
A122: =Doklady!D70 ->  | B122: =Doklady!H70 ->  | C122: =IF(A122<>"",INDEX(FP!D:D,Doklady!B$2+(ROW()-53)),"") ->  | D122: =IF(A122<>"",Doklady!I70-Doklady!J70,"") ->  | E122: =IF(A122<>"",MIN(D122,C122)*Doklady!C70/(1-Doklady!C70),"") ->  | F122: =IF(A122<>"",Doklady!J70,"") ->  | G122: 0 | I122: 0 | K122: =Doklady!F70 ->  | L122: =IF(A122<>"",INDEX(FP!H:H,Doklady!B$2+(ROW()-52)),"") -> 
A123: =Doklady!D71 ->  | B123: =Doklady!H71 ->  | C123: =IF(A123<>"",INDEX(FP!D:D,Doklady!B$2+(ROW()-53)),"") ->  | D123: =IF(A123<>"",Doklady!I71-Doklady!J71,"") ->  | E123: =IF(A123<>"",MIN(D123,C123)*Doklady!C71/(1-Doklady!C71),"") ->  | F123: =IF(A123<>"",Doklady!J71,"") ->  | G123: 0 | I123: 0 | K123: =Doklady!F71 ->  | L123: =IF(A123<>"",INDEX(FP!H:H,Doklady!B$2+(ROW()-52)),"") -> 
A124: =Doklady!D72 ->  | B124: =Doklady!H72 ->  | C124: =IF(A124<>"",INDEX(FP!D:D,Doklady!B$2+(ROW()-53)),"") ->  | D124: =IF(A124<>"",Doklady!I72-Doklady!J72,"") ->  | E124: =IF(A124<>"",MIN(D124,C124)*Doklady!C72/(1-Doklady!C72),"") ->  | F124: =IF(A124<>"",Doklady!J72,"") ->  | G124: 0 | I124: 0 | K124: =Doklady!F72 ->  | L124: =IF(A124<>"",INDEX(FP!H:H,Doklady!B$2+(ROW()-52)),"") ->  | M124: =K124&L124 -> 
A125: =Doklady!D73 ->  | B125: =Doklady!H73 ->  | C125: =IF(A125<>"",INDEX(FP!D:D,Doklady!B$2+(ROW()-53)),"") ->  | D125: =IF(A125<>"",Doklady!I73-Doklady!J73,"") ->  | E125: =IF(A125<>"",MIN(D125,C125)*Doklady!C73/(1-Doklady!C73),"") ->  | F125: =IF(A125<>"",Doklady!J73,"") ->  | G125: 0 | I125: 0 | K125: =Doklady!F73 ->  | L125: =IF(A125<>"",INDEX(FP!H:H,Doklady!B$2+(ROW()-52)),"") -> 
A126: =Doklady!D74 ->  | B126: =Doklady!H74 ->  | C126: =IF(A126<>"",INDEX(FP!D:D,Doklady!B$2+(ROW()-53)),"") ->  | D126: =IF(A126<>"",Doklady!I74-Doklady!J74,"") ->  | E126: =IF(A126<>"",MIN(D126,C126)*Doklady!C74/(1-Doklady!C74),"") ->  | F126: =IF(A126<>"",Doklady!J74,"") ->  | G126: 0 | I126: 0 | K126: =Doklady!F74 ->  | L126: =IF(A126<>"",INDEX(FP!H:H,Doklady!B$2+(ROW()-52)),"") -> 
A127: =Doklady!D75 ->  | B127: =Doklady!H75 ->  | C127: =IF(A127<>"",INDEX(FP!D:D,Doklady!B$2+(ROW()-53)),"") ->  | D127: =IF(A127<>"",Doklady!I75-Doklady!J75,"") ->  | E127: =IF(A127<>"",MIN(D127,C127)*Doklady!C75/(1-Doklady!C75),"") ->  | F127: =IF(A127<>"",Doklady!J75,"") ->  | G127: 0 | I127: 0 | K127: =Doklady!F75 ->  | L127: =IF(A127<>"",INDEX(FP!H:H,Doklady!B$2+(ROW()-52)),"") -> 
A128: =Doklady!D76 ->  | B128: =Doklady!H76 ->  | C128: =IF(A128<>"",INDEX(FP!D:D,Doklady!B$2+(ROW()-53)),"") ->  | D128: =IF(A128<>"",Doklady!I76-Doklady!J76,"") ->  | E128: =IF(A128<>"",MIN(D128,C128)*Doklady!C76/(1-Doklady!C76),"") ->  | F128: =IF(A128<>"",Doklady!J76,"") ->  | G128: 0 | I128: 0 | K128: =Doklady!F76 ->  | L128: =IF(A128<>"",INDEX(FP!H:H,Doklady!B$2+(ROW()-52)),"") -> 
K129: =Doklady!F77 ->  | L129: =IF(A129<>"",INDEX(FP!H:H,Doklady!B$2+(ROW()-52)),"") -> 
A130: =Doklady!D66 ->  | B130: SPOLU | C130: =SUM(C53:C129) -> 1102394 | D130: =SUM(D53:D129) -> 1101977.88 | E130: 0 | F130: 0 | G130: 1101977.88 | H130: 0 | I130: 416.12 | J130: =IF(D130>C130,"Vyúčtované prostriedky nemôžu byť väčšie ako poskytnuté. Opravte v hárku ""Doklady""","") -> 
A132: Čestne vyhlasujem, že
A133: a) všetky uvedené údaje sú pravdivé,
A134: b) dolu podpísaná osoba/osoby je oprávnená/sú oprávnené v súlade so stanovami/zriaďovacou listinou na podpis vyúčtovania finančných prostriedkov poskytnutých v roku 2024.
A135: c) toto vytlačené a podpísané vyúčtovanie je zhodné s hárkom, ktorý sme zaslali na adresu ziadosti.sport@mincrs.sk dňa ....................... o .......... hod. ........ min.
A137: Súhlasím so zhromažďovaním, spracovávaním a zverejňovaním poskytnutých údajov.
A139: Dátum:
B140: Mgr. Helena Kunšteková | D140: Mgr. Martin Kopejtko
B141: Kontaktná osoba zodpovedná za vyplnený formulár meno a priezvisko: Helena Kunšteková e-mail: kunstekova@szfb.sk tel. kontakt (mobil):+421 948 485 636 | D141: Meno, priezvisko a podpis štatutárneho zástupcu/zástupcov oprávneného/oprávnených na podpis žiadosti a zmluvy o poskytnutí finančných prostriedkov v súlade so stanovami, resp. zriaďovacou listinou

Sheet Doklady
A1: =IF(ROW()<=B$3,INDEX(FP!F:F,B$2+ROW()-1)&" - "&INDEX(FP!C:C,B$2+ROW()-1),"") -> a - florbal - bežné transfery | B1: =INDEX(Adr!A:A,B102+1) -> 31795421 | C1: =IF(ROW()<=B$3,INDEX(FP!E:E,B$2+ROW()-1),"") -> 0 | D1: =IF(ROW()<=B$3,INDEX(FP!F:F,B$2+ROW()-1),"") -> a | F1: =IF(ROW()<=B$3,INDEX(FP!G:G,B$2+ROW()-1),"") -> 026 02 | H1: =IF(ROW()<=B$3,INDEX(FP!C:C,B$2+ROW()-1),"") -> florbal - bežné transfery | I1: =IF(ROW()<=B$3,SUMIF(A$107:A$10042,A1,I$107:I$10042),"") -> 874149 | J1: =IF(ROW()<=B$3,SUMIFS(I$103:I$50042,A$103:A$50042,K1,J$103:J$50042,L1),"") -> 0 | K1: =$A1 -> a - florbal - bežné transfery | L1: 99
A2: =IF(ROW()<=B$3,INDEX(FP!F:F,B$2+ROW()-1)&" - "&INDEX(FP!C:C,B$2+ROW()-1),"") -> f - florbal - 20 % navýšenie | B2: =MATCH(B1,FP!A:A,0) -> 401 | C2: =IF(ROW()<=B$3,INDEX(FP!E:E,B$2+ROW()-1),"") -> 0 | D2: =IF(ROW()<=B$3,INDEX(FP!F:F,B$2+ROW()-1),"") -> f | F2: =IF(ROW()<=B$3,INDEX(FP!G:G,B$2+ROW()-1),"") -> 026 03 | H2: =IF(ROW()<=B$3,INDEX(FP!C:C,B$2+ROW()-1),"") -> florbal - 20 % navýšenie | I2: 164228.88 | J2: 0 | K2: =$A2 -> f - florbal - 20 % navýšenie | L2: 99 | M2: AAA | N2: HHH
A3: =IF(ROW()<=B$3,INDEX(FP!F:F,B$2+ROW()-1)&" - "&INDEX(FP!C:C,B$2+ROW()-1),"") -> j - Zabezpečenie finále školských športových súťaží (Trenčín 2024) v súťažiach kategórie "A" vo florbale stredných škôl | B3: =COUNTIF(FP!A:A,Doklady!B1) -> 4 | C3: =IF(ROW()<=B$3,INDEX(FP!E:E,B$2+ROW()-1),"") -> 0 | D3: =IF(ROW()<=B$3,INDEX(FP!F:F,B$2+ROW()-1),"") -> j | F3: =IF(ROW()<=B$3,INDEX(FP!G:G,B$2+ROW()-1),"") -> 026 03 | H3: =IF(ROW()<=B$3,INDEX(FP!C:C,B$2+ROW()-1),"") -> Zabezpečenie finále školských športových súťaží (Trenčín 2024) v súťažiach kategórie "A" vo florbale stredných škôl | I3: 31800 | J3: 0 | K3: =$A3 -> j - Zabezpečenie finále školských športových súťaží (Trenčín 2024) v súťažiach kategórie "A" vo florbale stredných škôl | L3: 99 | M3: =$A2 -> f - florbal - 20 % navýšenie | N3: 99
A4: =IF(ROW()<=B$3,INDEX(FP!F:F,B$2+ROW()-1)&" - "&INDEX(FP!C:C,B$2+ROW()-1),"") -> j - Zabezpečenie finále školských športových súťaží (Trenčín 2024) v súťažiach kategórie "A" vo florbale základných škôl | C4: =IF(ROW()<=B$3,INDEX(FP!E:E,B$2+ROW()-1),"") -> 0 | D4: =IF(ROW()<=B$3,INDEX(FP!F:F,B$2+ROW()-1),"") -> j | F4: =IF(ROW()<=B$3,INDEX(FP!G:G,B$2+ROW()-1),"") -> 026 03 | H4: =IF(ROW()<=B$3,INDEX(FP!C:C,B$2+ROW()-1),"") -> Zabezpečenie finále školských športových súťaží (Trenčín 2024) v súťažiach kategórie "A" vo florbale základných škôl | I4: 31800 | J4: 0 | K4: j - Zabezpečenie finále školských športových súťaží (Trenčín 2024) v súťažiach kategórie "A" vo florbale základných škôl | L4: 99 | M4: AAA | N4: HHH
A5: =IF(ROW()<=B$3,INDEX(FP!F:F,B$2+ROW()-1)&" - "&INDEX(FP!C:C,B$2+ROW()-1),"") ->  | C5: =IF(ROW()<=B$3,INDEX(FP!E:E,B$2+ROW()-1),"") ->  | D5: =IF(ROW()<=B$3,INDEX(FP!F:F,B$2+ROW()-1),"") ->  | F5: =IF(ROW()<=B$3,INDEX(FP!G:G,B$2+ROW()-1),"") ->  | H5: =IF(ROW()<=B$3,INDEX(FP!C:C,B$2+ROW()-1),"") ->  | L5: 99 | M5: =$A4 -> j - Zabezpečenie finále školských športových súťaží (Trenčín 2024) v súťažiach kategórie "A" vo florbale základných škôl | N5: 99
A6: =IF(ROW()<=B$3,INDEX(FP!F:F,B$2+ROW()-1)&" - "&INDEX(FP!C:C,B$2+ROW()-1),"") ->  | C6: =IF(ROW()<=B$3,INDEX(FP!E:E,B$2+ROW()-1),"") ->  | D6: =IF(ROW()<=B$3,INDEX(FP!F:F,B$2+ROW()-1),"") ->  | F6: =IF(ROW()<=B$3,INDEX(FP!G:G,B$2+ROW()-1),"") ->  | H6: =IF(ROW()<=B$3,INDEX(FP!C:C,B$2+ROW()-1),"") ->  | L6: 99 | M6: AAA | N6: HHH
A7: =IF(ROW()<=B$3,INDEX(FP!F:F,B$2+ROW()-1)&" - "&INDEX(FP!C:C,B$2+ROW()-1),"") ->  | C7: =IF(ROW()<=B$3,INDEX(FP!E:E,B$2+ROW()-1),"") ->  | D7: =IF(ROW()<=B$3,INDEX(FP!F:F,B$2+ROW()-1),"") ->  | F7: =IF(ROW()<=B$3,INDEX(FP!G:G,B$2+ROW()-1),"") ->  | H7: =IF(ROW()<=B$3,INDEX(FP!C:C,B$2+ROW()-1),"") ->  | I7: =IF(ROW()<=B$3,SUMIF(A$107:A$10042,A7,I$107:I$10042),"") ->  | L7: 99 | M7: =$A6 ->  | N7: 99
A8: =IF(ROW()<=B$3,INDEX(FP!F:F,B$2+ROW()-1)&" - "&INDEX(FP!C:C,B$2+ROW()-1),"") ->  | C8: =IF(ROW()<=B$3,INDEX(FP!E:E,B$2+ROW()-1),"") ->  | D8: =IF(ROW()<=B$3,INDEX(FP!F:F,B$2+ROW()-1),"") ->  | F8: =IF(ROW()<=B$3,INDEX(FP!G:G,B$2+ROW()-1),"") ->  | H8: =IF(ROW()<=B$3,INDEX(FP!C:C,B$2+ROW()-1),"") ->  | L8: 99 | M8: AAA | N8: HHH
A9: =IF(ROW()<=B$3,INDEX(FP!F:F,B$2+ROW()-1)&" - "&INDEX(FP!C:C,B$2+ROW()-1),"") ->  | C9: =IF(ROW()<=B$3,INDEX(FP!E:E,B$2+ROW()-1),"") ->  | D9: =IF(ROW()<=B$3,INDEX(FP!F:F,B$2+ROW()-1),"") ->  | F9: =IF(ROW()<=B$3,INDEX(FP!G:G,B$2+ROW()-1),"") ->  | H9: =IF(ROW()<=B$3,INDEX(FP!C:C,B$2+ROW()-1),"") ->  | L9: 99 | M9: =$A8 ->  | N9: 99
A10: =IF(ROW()<=B$3,INDEX(FP!F:F,B$2+ROW()-1)&" - "&INDEX(FP!C:C,B$2+ROW()-1),"") ->  | C10: =IF(ROW()<=B$3,INDEX(FP!E:E,B$2+ROW()-1),"") ->  | D10: =IF(ROW()<=B$3,INDEX(FP!F:F,B$2+ROW()-1),"") ->  | F10: =IF(ROW()<=B$3,INDEX(FP!G:G,B$2+ROW()-1),"") ->  | H10: =IF(ROW()<=B$3,INDEX(FP!C:C,B$2+ROW()-1),"") ->  | L10: 99 | M10: AAA | N10: HHH
A11: =IF(ROW()<=B$3,INDEX(FP!F:F,B$2+ROW()-1)&" - "&INDEX(FP!C:C,B$2+ROW()-1),"") ->  | C11: =IF(ROW()<=B$3,INDEX(FP!E:E,B$2+ROW()-1),"") ->  | D11: =IF(ROW()<=B$3,INDEX(FP!F:F,B$2+ROW()-1),"") ->  | F11: =IF(ROW()<=B$3,INDEX(FP!G:G,B$2+ROW()-1),"") ->  | H11: =IF(ROW()<=B$3,INDEX(FP!C:C,B$2+ROW()-1),"") ->  | L11: 99 | M11: =$A10 ->  | N11: 99
A12: =IF(ROW()<=B$3,INDEX(FP!F:F,B$2+ROW()-1)&" - "&INDEX(FP!C:C,B$2+ROW()-1),"") ->  | C12: =IF(ROW()<=B$3,INDEX(FP!E:E,B$2+ROW()-1),"") ->  | D12: =IF(ROW()<=B$3,INDEX(FP!F:F,B$2+ROW()-1),"") ->  | F12: =IF(ROW()<=B$3,INDEX(FP!G:G,B$2+ROW()-1),"") ->  | H12: =IF(ROW()<=B$3,INDEX(FP!C:C,B$2+ROW()-1),"") ->  | L12: 99 | M12: AAA | N12: HHH
A13: =IF(ROW()<=B$3,INDEX(FP!F:F,B$2+ROW()-1)&" - "&INDEX(FP!C:C,B$2+ROW()-1),"") ->  | C13: =IF(ROW()<=B$3,INDEX(FP!E:E,B$2+ROW()-1),"") ->  | D13: =IF(ROW()<=B$3,INDEX(FP!F:F,B$2+ROW()-1),"") ->  | F13: =IF(ROW()<=B$3,INDEX(FP!G:G,B$2+ROW()-1),"") ->  | H13: =IF(ROW()<=B$3,INDEX(FP!C:C,B$2+ROW()-1),"") ->  | L13: 99 | M13: =$A12 ->  | N13: 99
A14: =IF(ROW()<=B$3,INDEX(FP!F:F,B$2+ROW()-1)&" - "&INDEX(FP!C:C,B$2+ROW()-1),"") ->  | C14: =IF(ROW()<=B$3,INDEX(FP!E:E,B$2+ROW()-1),"") ->  | D14: =IF(ROW()<=B$3,INDEX(FP!F:F,B$2+ROW()-1),"") ->  | F14: =IF(ROW()<=B$3,INDEX(FP!G:G,B$2+ROW()-1),"") ->  | H14: =IF(ROW()<=B$3,INDEX(FP!C:C,B$2+ROW()-1),"") ->  | L14: 99 | M14: AAA | N14: HHH
A15: =IF(ROW()<=B$3,INDEX(FP!F:F,B$2+ROW()-1)&" - "&INDEX(FP!C:C,B$2+ROW()-1),"") ->  | C15: =IF(ROW()<=B$3,INDEX(FP!E:E,B$2+ROW()-1),"") ->  | D15: =IF(ROW()<=B$3,INDEX(FP!F:F,B$2+ROW()-1),"") ->  | F15: =IF(ROW()<=B$3,INDEX(FP!G:G,B$2+ROW()-1),"") ->  | H15: =IF(ROW()<=B$3,INDEX(FP!C:C,B$2+ROW()-1),"") ->  | L15: 99 | M15: =$A14 ->  | N15: 99
A16: =IF(ROW()<=B$3,INDEX(FP!F:F,B$2+ROW()-1)&" - "&INDEX(FP!C:C,B$2+ROW()-1),"") ->  | C16: =IF(ROW()<=B$3,INDEX(FP!E:E,B$2+ROW()-1),"") ->  | D16: =IF(ROW()<=B$3,INDEX(FP!F:F,B$2+ROW()-1),"") ->  | F16: =IF(ROW()<=B$3,INDEX(FP!G:G,B$2+ROW()-1),"") ->  | H16: =IF(ROW()<=B$3,INDEX(FP!C:C,B$2+ROW()-1),"") ->  | L16: 99 | M16: AAA | N16: HHH
A17: =IF(ROW()<=B$3,INDEX(FP!F:F,B$2+ROW()-1)&" - "&INDEX(FP!C:C,B$2+ROW()-1),"") ->  | C17: =IF(ROW()<=B$3,INDEX(FP!E:E,B$2+ROW()-1),"") ->  | D17: =IF(ROW()<=B$3,INDEX(FP!F:F,B$2+ROW()-1),"") ->  | F17: =IF(ROW()<=B$3,INDEX(FP!G:G,B$2+ROW()-1),"") ->  | H17: =IF(ROW()<=B$3,INDEX(FP!C:C,B$2+ROW()-1),"") ->  | L17: 99 | M17: =$A16 ->  | N17: 99
A18: =IF(ROW()<=B$3,INDEX(FP!F:F,B$2+ROW()-1)&" - "&INDEX(FP!C:C,B$2+ROW()-1),"") ->  | C18: =IF(ROW()<=B$3,INDEX(FP!E:E,B$2+ROW()-1),"") ->  | D18: =IF(ROW()<=B$3,INDEX(FP!F:F,B$2+ROW()-1),"") ->  | F18: =IF(ROW()<=B$3,INDEX(FP!G:G,B$2+ROW()-1),"") ->  | H18: =IF(ROW()<=B$3,INDEX(FP!C:C,B$2+ROW()-1),"") ->  | L18: 99 | M18: AAA | N18: HHH
A19: =IF(ROW()<=B$3,INDEX(FP!F:F,B$2+ROW()-1)&" - "&INDEX(FP!C:C,B$2+ROW()-1),"") ->  | C19: =IF(ROW()<=B$3,INDEX(FP!E:E,B$2+ROW()-1),"") ->  | D19: =IF(ROW()<=B$3,INDEX(FP!F:F,B$2+ROW()-1),"") ->  | F19: =IF(ROW()<=B$3,INDEX(FP!G:G,B$2+ROW()-1),"") ->  | H19: =IF(ROW()<=B$3,INDEX(FP!C:C,B$2+ROW()-1),"") ->  | L19: 99 | M19: =$A18 ->  | N19: 99
A20: =IF(ROW()<=B$3,INDEX(FP!F:F,B$2+ROW()-1)&" - "&INDEX(FP!C:C,B$2+ROW()-1),"") ->  | C20: =IF(ROW()<=B$3,INDEX(FP!E:E,B$2+ROW()-1),"") ->  | D20: =IF(ROW()<=B$3,INDEX(FP!F:F,B$2+ROW()-1),"") ->  | F20: =IF(ROW()<=B$3,INDEX(FP!G:G,B$2+ROW()-1),"") ->  | H20: =IF(ROW()<=B$3,INDEX(FP!C:C,B$2+ROW()-1),"") ->  | L20: 99 | M20: AAA | N20: HHH
A21: =IF(ROW()<=B$3,INDEX(FP!F:F,B$2+ROW()-1)&" - "&INDEX(FP!C:C,B$2+ROW()-1),"") ->  | C21: =IF(ROW()<=B$3,INDEX(FP!E:E,B$2+ROW()-1),"") ->  | D21: =IF(ROW()<=B$3,INDEX(FP!F:F,B$2+ROW()-1),"") ->  | F21: =IF(ROW()<=B$3,INDEX(FP!G:G,B$2+ROW()-1),"") ->  | H21: =IF(ROW()<=B$3,INDEX(FP!C:C,B$2+ROW()-1),"") ->  | L21: 99 | M21: =$A20 ->  | N21: 99
A22: =IF(ROW()<=B$3,INDEX(FP!F:F,B$2+ROW()-1)&" - "&INDEX(FP!C:C,B$2+ROW()-1),"") ->  | C22: =IF(ROW()<=B$3,INDEX(FP!E:E,B$2+ROW()-1),"") ->  | D22: =IF(ROW()<=B$3,INDEX(FP!F:F,B$2+ROW()-1),"") ->  | F22: =IF(ROW()<=B$3,INDEX(FP!G:G,B$2+ROW()-1),"") ->  | H22: =IF(ROW()<=B$3,INDEX(FP!C:C,B$2+ROW()-1),"") ->  | L22: 99 | M22: AAA | N22: HHH
A23: =IF(ROW()<=B$3,INDEX(FP!F:F,B$2+ROW()-1)&" - "&INDEX(FP!C:C,B$2+ROW()-1),"") ->  | C23: =IF(ROW()<=B$3,INDEX(FP!E:E,B$2+ROW()-1),"") ->  | D23: =IF(ROW()<=B$3,INDEX(FP!F:F,B$2+ROW()-1),"") ->  | F23: =IF(ROW()<=B$3,INDEX(FP!G:G,B$2+ROW()-1),"") ->  | H23: =IF(ROW()<=B$3,INDEX(FP!C:C,B$2+ROW()-1),"") ->  | L23: 99 | M23: =$A22 ->  | N23: 99
A24: =IF(ROW()<=B$3,INDEX(FP!F:F,B$2+ROW()-1)&" - "&INDEX(FP!C:C,B$2+ROW()-1),"") ->  | C24: =IF(ROW()<=B$3,INDEX(FP!E:E,B$2+ROW()-1),"") ->  | D24: =IF(ROW()<=B$3,INDEX(FP!F:F,B$2+ROW()-1),"") ->  | F24: =IF(ROW()<=B$3,INDEX(FP!G:G,B$2+ROW()-1),"") ->  | H24: =IF(ROW()<=B$3,INDEX(FP!C:C,B$2+ROW()-1),"") ->  | L24: 99 | M24: AAA | N24: HHH
A25: =IF(ROW()<=B$3,INDEX(FP!F:F,B$2+ROW()-1)&" - "&INDEX(FP!C:C,B$2+ROW()-1),"") ->  | C25: =IF(ROW()<=B$3,INDEX(FP!E:E,B$2+ROW()-1),"") ->  | D25: =IF(ROW()<=B$3,INDEX(FP!F:F,B$2+ROW()-1),"") ->  | F25: =IF(ROW()<=B$3,INDEX(FP!G:G,B$2+ROW()-1),"") ->  | H25: =IF(ROW()<=B$3,INDEX(FP!C:C,B$2+ROW()-1),"") ->  | L25: 99 | M25: =$A24 ->  | N25: 99
A26: =IF(ROW()<=B$3,INDEX(FP!F:F,B$2+ROW()-1)&" - "&INDEX(FP!C:C,B$2+ROW()-1),"") ->  | C26: =IF(ROW()<=B$3,INDEX(FP!E:E,B$2+ROW()-1),"") ->  | D26: =IF(ROW()<=B$3,INDEX(FP!F:F,B$2+ROW()-1),"") ->  | F26: =IF(ROW()<=B$3,INDEX(FP!G:G,B$2+ROW()-1),"") ->  | H26: =IF(ROW()<=B$3,INDEX(FP!C:C,B$2+ROW()-1),"") ->  | L26: 99 | M26: AAA | N26: HHH
A27: =IF(ROW()<=B$3,INDEX(FP!F:F,B$2+ROW()-1)&" - "&INDEX(FP!C:C,B$2+ROW()-1),"") ->  | C27: =IF(ROW()<=B$3,INDEX(FP!E:E,B$2+ROW()-1),"") ->  | D27: =IF(ROW()<=B$3,INDEX(FP!F:F,B$2+ROW()-1),"") ->  | F27: =IF(ROW()<=B$3,INDEX(FP!G:G,B$2+ROW()-1),"") ->  | H27: =IF(ROW()<=B$3,INDEX(FP!C:C,B$2+ROW()-1),"") ->  | L27: 99 | M27: =$A26 ->  | N27: 99
A28: =IF(ROW()<=B$3,INDEX(FP!F:F,B$2+ROW()-1)&" - "&INDEX(FP!C:C,B$2+ROW()-1),"") ->  | C28: =IF(ROW()<=B$3,INDEX(FP!E:E,B$2+ROW()-1),"") ->  | D28: =IF(ROW()<=B$3,INDEX(FP!F:F,B$2+ROW()-1),"") ->  | F28: =IF(ROW()<=B$3,INDEX(FP!G:G,B$2+ROW()-1),"") ->  | H28: =IF(ROW()<=B$3,INDEX(FP!C:C,B$2+ROW()-1),"") ->  | L28: 99 | M28: AAA | N28: HHH
A29: =IF(ROW()<=B$3,INDEX(FP!F:F,B$2+ROW()-1)&" - "&INDEX(FP!C:C,B$2+ROW()-1),"") ->  | C29: =IF(ROW()<=B$3,INDEX(FP!E:E,B$2+ROW()-1),"") ->  | D29: =IF(ROW()<=B$3,INDEX(FP!F:F,B$2+ROW()-1),"") ->  | F29: =IF(ROW()<=B$3,INDEX(FP!G:G,B$2+ROW()-1),"") ->  | H29: =IF(ROW()<=B$3,INDEX(FP!C:C,B$2+ROW()-1),"") ->  | L29: 99 | M29: =$A28 ->  | N29: 99
A30: =IF(ROW()<=B$3,INDEX(FP!F:F,B$2+ROW()-1)&" - "&INDEX(FP!C:C,B$2+ROW()-1),"") ->  | C30: =IF(ROW()<=B$3,INDEX(FP!E:E,B$2+ROW()-1),"") ->  | D30: =IF(ROW()<=B$3,INDEX(FP!F:F,B$2+ROW()-1),"") ->  | F30: =IF(ROW()<=B$3,INDEX(FP!G:G,B$2+ROW()-1),"") ->  | H30: =IF(ROW()<=B$3,INDEX(FP!C:C,B$2+ROW()-1),"") ->  | L30: 99 | M30: AAA | N30: HHH
A31: =IF(ROW()<=B$3,INDEX(FP!F:F,B$2+ROW()-1)&" - "&INDEX(FP!C:C,B$2+ROW()-1),"") ->  | C31: =IF(ROW()<=B$3,INDEX(FP!E:E,B$2+ROW()-1),"") ->  | D31: =IF(ROW()<=B$3,INDEX(FP!F:F,B$2+ROW()-1),"") ->  | F31: =IF(ROW()<=B$3,INDEX(FP!G:G,B$2+ROW()-1),"") ->  | H31: =IF(ROW()<=B$3,INDEX(FP!C:C,B$2+ROW()-1),"") ->  | L31: 99 | M31: =$A30 ->  | N31: 99
A32: =IF(ROW()<=B$3,INDEX(FP!F:F,B$2+ROW()-1)&" - "&INDEX(FP!C:C,B$2+ROW()-1),"") ->  | C32: =IF(ROW()<=B$3,INDEX(FP!E:E,B$2+ROW()-1),"") ->  | D32: =IF(ROW()<=B$3,INDEX(FP!F:F,B$2+ROW()-1),"") ->  | F32: =IF(ROW()<=B$3,INDEX(FP!G:G,B$2+ROW()-1),"") ->  | H32: =IF(ROW()<=B$3,INDEX(FP!C:C,B$2+ROW()-1),"") ->  | L32: 99 | M32: AAA | N32: HHH
A33: =IF(ROW()<=B$3,INDEX(FP!F:F,B$2+ROW()-1)&" - "&INDEX(FP!C:C,B$2+ROW()-1),"") ->  | C33: =IF(ROW()<=B$3,INDEX(FP!E:E,B$2+ROW()-1),"") ->  | D33: =IF(ROW()<=B$3,INDEX(FP!F:F,B$2+ROW()-1),"") ->  | F33: =IF(ROW()<=B$3,INDEX(FP!G:G,B$2+ROW()-1),"") ->  | H33: =IF(ROW()<=B$3,INDEX(FP!C:C,B$2+ROW()-1),"") ->  | J33: =IF(ROW()<=B$3,SUMIFS(I$103:I$50042,A$103:A$50042,K33,J$103:J$50042,L33),"") ->  | L33: 99 | M33: =$A32 ->  | N33: 99
A34: =IF(ROW()<=B$3,INDEX(FP!F:F,B$2+ROW()-1)&" - "&INDEX(FP!C:C,B$2+ROW()-1),"") ->  | C34: =IF(ROW()<=B$3,INDEX(FP!E:E,B$2+ROW()-1),"") ->  | D34: =IF(ROW()<=B$3,INDEX(FP!F:F,B$2+ROW()-1),"") ->  | F34: =IF(ROW()<=B$3,INDEX(FP!G:G,B$2+ROW()-1),"") ->  | H34: =IF(ROW()<=B$3,INDEX(FP!C:C,B$2+ROW()-1),"") ->  | L34: 99 | M34: AAA | N34: HHH
A35: =IF(ROW()<=B$3,INDEX(FP!F:F,B$2+ROW()-1)&" - "&INDEX(FP!C:C,B$2+ROW()-1),"") ->  | C35: =IF(ROW()<=B$3,INDEX(FP!E:E,B$2+ROW()-1),"") ->  | D35: =IF(ROW()<=B$3,INDEX(FP!F:F,B$2+ROW()-1),"") ->  | F35: =IF(ROW()<=B$3,INDEX(FP!G:G,B$2+ROW()-1),"") ->  | H35: =IF(ROW()<=B$3,INDEX(FP!C:C,B$2+ROW()-1),"") ->  | L35: 99 | M35: =$A34 ->  | N35: 99
A36: =IF(ROW()<=B$3,INDEX(FP!F:F,B$2+ROW()-1)&" - "&INDEX(FP!C:C,B$2+ROW()-1),"") ->  | C36: =IF(ROW()<=B$3,INDEX(FP!E:E,B$2+ROW()-1),"") ->  | D36: =IF(ROW()<=B$3,INDEX(FP!F:F,B$2+ROW()-1),"") ->  | F36: =IF(ROW()<=B$3,INDEX(FP!G:G,B$2+ROW()-1),"") ->  | H36: =IF(ROW()<=B$3,INDEX(FP!C:C,B$2+ROW()-1),"") ->  | L36: 99 | M36: AAA | N36: HHH
A37: =IF(ROW()<=B$3,INDEX(FP!F:F,B$2+ROW()-1)&" - "&INDEX(FP!C:C,B$2+ROW()-1),"") ->  | C37: =IF(ROW()<=B$3,INDEX(FP!E:E,B$2+ROW()-1),"") ->  | D37: =IF(ROW()<=B$3,INDEX(FP!F:F,B$2+ROW()-1),"") ->  | F37: =IF(ROW()<=B$3,INDEX(FP!G:G,B$2+ROW()-1),"") ->  | H37: =IF(ROW()<=B$3,INDEX(FP!C:C,B$2+ROW()-1),"") ->  | L37: 99 | M37: =$A36 ->  | N37: 99
A38: =IF(ROW()<=B$3,INDEX(FP!F:F,B$2+ROW()-1)&" - "&INDEX(FP!C:C,B$2+ROW()-1),"") ->  | C38: =IF(ROW()<=B$3,INDEX(FP!E:E,B$2+ROW()-1),"") ->  | D38: =IF(ROW()<=B$3,INDEX(FP!F:F,B$2+ROW()-1),"") ->  | F38: =IF(ROW()<=B$3,INDEX(FP!G:G,B$2+ROW()-1),"") ->  | H38: =IF(ROW()<=B$3,INDEX(FP!C:C,B$2+ROW()-1),"") ->  | L38: 99 | M38: AAA | N38: HHH
A39: =IF(ROW()<=B$3,INDEX(FP!F:F,B$2+ROW()-1)&" - "&INDEX(FP!C:C,B$2+ROW()-1),"") ->  | C39: =IF(ROW()<=B$3,INDEX(FP!E:E,B$2+ROW()-1),"") ->  | D39: =IF(ROW()<=B$3,INDEX(FP!F:F,B$2+ROW()-1),"") ->  | F39: =IF(ROW()<=B$3,INDEX(FP!G:G,B$2+ROW()-1),"") ->  | H39: =IF(ROW()<=B$3,INDEX(FP!C:C,B$2+ROW()-1),"") ->  | L39: 99 | M39: =$A38 ->  | N39: 99
A40: =IF(ROW()<=B$3,INDEX(FP!F:F,B$2+ROW()-1)&" - "&INDEX(FP!C:C,B$2+ROW()-1),"") ->  | C40: =IF(ROW()<=B$3,INDEX(FP!E:E,B$2+ROW()-1),"") ->  | D40: =IF(ROW()<=B$3,INDEX(FP!F:F,B$2+ROW()-1),"") ->  | F40: =IF(ROW()<=B$3,INDEX(FP!G:G,B$2+ROW()-1),"") ->  | H40: =IF(ROW()<=B$3,INDEX(FP!C:C,B$2+ROW()-1),"") ->  | L40: 99 | M40: AAA | N40: HHH
A41: =IF(ROW()<=B$3,INDEX(FP!F:F,B$2+ROW()-1)&" - "&INDEX(FP!C:C,B$2+ROW()-1),"") ->  | C41: =IF(ROW()<=B$3,INDEX(FP!E:E,B$2+ROW()-1),"") ->  | D41: =IF(ROW()<=B$3,INDEX(FP!F:F,B$2+ROW()-1),"") ->  | F41: =IF(ROW()<=B$3,INDEX(FP!G:G,B$2+ROW()-1),"") ->  | H41: =IF(ROW()<=B$3,INDEX(FP!C:C,B$2+ROW()-1),"") ->  | L41: 99 | M41: =$A40 ->  | N41: 99
A42: =IF(ROW()<=B$3,INDEX(FP!F:F,B$2+ROW()-1)&" - "&INDEX(FP!C:C,B$2+ROW()-1),"") ->  | C42: =IF(ROW()<=B$3,INDEX(FP!E:E,B$2+ROW()-1),"") ->  | D42: =IF(ROW()<=B$3,INDEX(FP!F:F,B$2+ROW()-1),"") ->  | F42: =IF(ROW()<=B$3,INDEX(FP!G:G,B$2+ROW()-1),"") ->  | H42: =IF(ROW()<=B$3,INDEX(FP!C:C,B$2+ROW()-1),"") ->  | L42: 99 | M42: AAA | N42: HHH
A43: =IF(ROW()<=B$3,INDEX(FP!F:F,B$2+ROW()-1)&" - "&INDEX(FP!C:C,B$2+ROW()-1),"") ->  | C43: =IF(ROW()<=B$3,INDEX(FP!E:E,B$2+ROW()-1),"") ->  | D43: =IF(ROW()<=B$3,INDEX(FP!F:F,B$2+ROW()-1),"") ->  | F43: =IF(ROW()<=B$3,INDEX(FP!G:G,B$2+ROW()-1),"") ->  | H43: =IF(ROW()<=B$3,INDEX(FP!C:C,B$2+ROW()-1),"") ->  | L43: 99 | M43: =$A42 ->  | N43: 99
A44: =IF(ROW()<=B$3,INDEX(FP!F:F,B$2+ROW()-1)&" - "&INDEX(FP!C:C,B$2+ROW()-1),"") ->  | C44: =IF(ROW()<=B$3,INDEX(FP!E:E,B$2+ROW()-1),"") ->  | D44: =IF(ROW()<=B$3,INDEX(FP!F:F,B$2+ROW()-1),"") ->  | F44: =IF(ROW()<=B$3,INDEX(FP!G:G,B$2+ROW()-1),"") ->  | H44: =IF(ROW()<=B$3,INDEX(FP!C:C,B$2+ROW()-1),"") ->  | L44: 99 | M44: AAA | N44: HHH
A45: =IF(ROW()<=B$3,INDEX(FP!F:F,B$2+ROW()-1)&" - "&INDEX(FP!C:C,B$2+ROW()-1),"") ->  | C45: =IF(ROW()<=B$3,INDEX(FP!E:E,B$2+ROW()-1),"") ->  | D45: =IF(ROW()<=B$3,INDEX(FP!F:F,B$2+ROW()-1),"") ->  | F45: =IF(ROW()<=B$3,INDEX(FP!G:G,B$2+ROW()-1),"") ->  | H45: =IF(ROW()<=B$3,INDEX(FP!C:C,B$2+ROW()-1),"") ->  | L45: 99 | M45: =$A44 ->  | N45: 99
A46: =IF(ROW()<=B$3,INDEX(FP!F:F,B$2+ROW()-1)&" - "&INDEX(FP!C:C,B$2+ROW()-1),"") ->  | C46: =IF(ROW()<=B$3,INDEX(FP!E:E,B$2+ROW()-1),"") ->  | D46: =IF(ROW()<=B$3,INDEX(FP!F:F,B$2+ROW()-1),"") ->  | F46: =IF(ROW()<=B$3,INDEX(FP!G:G,B$2+ROW()-1),"") ->  | H46: =IF(ROW()<=B$3,INDEX(FP!C:C,B$2+ROW()-1),"") ->  | L46: 99 | M46: AAA | N46: HHH
A47: =IF(ROW()<=B$3,INDEX(FP!F:F,B$2+ROW()-1)&" - "&INDEX(FP!C:C,B$2+ROW()-1),"") ->  | C47: =IF(ROW()<=B$3,INDEX(FP!E:E,B$2+ROW()-1),"") ->  | D47: =IF(ROW()<=B$3,INDEX(FP!F:F,B$2+ROW()-1),"") ->  | F47: =IF(ROW()<=B$3,INDEX(FP!G:G,B$2+ROW()-1),"") ->  | H47: =IF(ROW()<=B$3,INDEX(FP!C:C,B$2+ROW()-1),"") ->  | L47: 99 | M47: =$A46 ->  | N47: 99
A48: =IF(ROW()<=B$3,INDEX(FP!F:F,B$2+ROW()-1)&" - "&INDEX(FP!C:C,B$2+ROW()-1),"") ->  | C48: =IF(ROW()<=B$3,INDEX(FP!E:E,B$2+ROW()-1),"") ->  | D48: =IF(ROW()<=B$3,INDEX(FP!F:F,B$2+ROW()-1),"") ->  | F48: =IF(ROW()<=B$3,INDEX(FP!G:G,B$2+ROW()-1),"") ->  | H48: =IF(ROW()<=B$3,INDEX(FP!C:C,B$2+ROW()-1),"") ->  | L48: 99 | M48: AAA | N48: HHH
A49: =IF(ROW()<=B$3,INDEX(FP!F:F,B$2+ROW()-1)&" - "&INDEX(FP!C:C,B$2+ROW()-1),"") ->  | C49: =IF(ROW()<=B$3,INDEX(FP!E:E,B$2+ROW()-1),"") ->  | D49: =IF(ROW()<=B$3,INDEX(FP!F:F,B$2+ROW()-1),"") ->  | F49: =IF(ROW()<=B$3,INDEX(FP!G:G,B$2+ROW()-1),"") ->  | H49: =IF(ROW()<=B$3,INDEX(FP!C:C,B$2+ROW()-1),"") ->  | L49: 99 | M49: =$A48 ->  | N49: 99
A50: =IF(ROW()<=B$3,INDEX(FP!F:F,B$2+ROW()-1)&" - "&INDEX(FP!C:C,B$2+ROW()-1),"") ->  | C50: =IF(ROW()<=B$3,INDEX(FP!E:E,B$2+ROW()-1),"") ->  | D50: =IF(ROW()<=B$3,INDEX(FP!F:F,B$2+ROW()-1),"") ->  | F50: =IF(ROW()<=B$3,INDEX(FP!G:G,B$2+ROW()-1),"") ->  | H50: =IF(ROW()<=B$3,INDEX(FP!C:C,B$2+ROW()-1),"") ->  | L50: 99 | M50: AAA | N50: HHH
A51: =IF(ROW()<=B$3,INDEX(FP!F:F,B$2+ROW()-1)&" - "&INDEX(FP!C:C,B$2+ROW()-1),"") ->  | C51: =IF(ROW()<=B$3,INDEX(FP!E:E,B$2+ROW()-1),"") ->  | D51: =IF(ROW()<=B$3,INDEX(FP!F:F,B$2+ROW()-1),"") ->  | F51: =IF(ROW()<=B$3,INDEX(FP!G:G,B$2+ROW()-1),"") ->  | H51: =IF(ROW()<=B$3,INDEX(FP!C:C,B$2+ROW()-1),"") ->  | L51: 99 | M51: =$A50 ->  | N51: 99
A52: =IF(ROW()<=B$3,INDEX(FP!F:F,B$2+ROW()-1)&" - "&INDEX(FP!C:C,B$2+ROW()-1),"") ->  | C52: =IF(ROW()<=B$3,INDEX(FP!E:E,B$2+ROW()-1),"") ->  | D52: =IF(ROW()<=B$3,INDEX(FP!F:F,B$2+ROW()-1),"") ->  | F52: =IF(ROW()<=B$3,INDEX(FP!G:G,B$2+ROW()-1),"") ->  | H52: =IF(ROW()<=B$3,INDEX(FP!C:C,B$2+ROW()-1),"") ->  | L52: 99 | M52: AAA | N52: HHH
A53: =IF(ROW()<=B$3,INDEX(FP!F:F,B$2+ROW()-1)&" - "&INDEX(FP!C:C,B$2+ROW()-1),"") ->  | C53: =IF(ROW()<=B$3,INDEX(FP!E:E,B$2+ROW()-1),"") ->  | D53: =IF(ROW()<=B$3,INDEX(FP!F:F,B$2+ROW()-1),"") ->  | F53: =IF(ROW()<=B$3,INDEX(FP!G:G,B$2+ROW()-1),"") ->  | H53: =IF(ROW()<=B$3,INDEX(FP!C:C,B$2+ROW()-1),"") ->  | L53: 99 | M53: =$A52 ->  | N53: 99
A54: =IF(ROW()<=B$3,INDEX(FP!F:F,B$2+ROW()-1)&" - "&INDEX(FP!C:C,B$2+ROW()-1),"") ->  | C54: =IF(ROW()<=B$3,INDEX(FP!E:E,B$2+ROW()-1),"") ->  | D54: =IF(ROW()<=B$3,INDEX(FP!F:F,B$2+ROW()-1),"") ->  | F54: =IF(ROW()<=B$3,INDEX(FP!G:G,B$2+ROW()-1),"") ->  | H54: =IF(ROW()<=B$3,INDEX(FP!C:C,B$2+ROW()-1),"") ->  | L54: 99 | M54: AAA | N54: HHH
A55: =IF(ROW()<=B$3,INDEX(FP!F:F,B$2+ROW()-1)&" - "&INDEX(FP!C:C,B$2+ROW()-1),"") ->  | C55: =IF(ROW()<=B$3,INDEX(FP!E:E,B$2+ROW()-1),"") ->  | D55: =IF(ROW()<=B$3,INDEX(FP!F:F,B$2+ROW()-1),"") ->  | F55: =IF(ROW()<=B$3,INDEX(FP!G:G,B$2+ROW()-1),"") ->  | H55: =IF(ROW()<=B$3,INDEX(FP!C:C,B$2+ROW()-1),"") ->  | L55: 99 | M55: =$A54 ->  | N55: 99
A56: =IF(ROW()<=B$3,INDEX(FP!F:F,B$2+ROW()-1)&" - "&INDEX(FP!C:C,B$2+ROW()-1),"") ->  | C56: =IF(ROW()<=B$3,INDEX(FP!E:E,B$2+ROW()-1),"") ->  | D56: =IF(ROW()<=B$3,INDEX(FP!F:F,B$2+ROW()-1),"") ->  | F56: =IF(ROW()<=B$3,INDEX(FP!G:G,B$2+ROW()-1),"") ->  | H56: =IF(ROW()<=B$3,INDEX(FP!C:C,B$2+ROW()-1),"") ->  | L56: 99 | M56: AAA | N56: HHH
A57: =IF(ROW()<=B$3,INDEX(FP!F:F,B$2+ROW()-1)&" - "&INDEX(FP!C:C,B$2+ROW()-1),"") ->  | C57: =IF(ROW()<=B$3,INDEX(FP!E:E,B$2+ROW()-1),"") ->  | D57: =IF(ROW()<=B$3,INDEX(FP!F:F,B$2+ROW()-1),"") ->  | F57: =IF(ROW()<=B$3,INDEX(FP!G:G,B$2+ROW()-1),"") ->  | H57: =IF(ROW()<=B$3,INDEX(FP!C:C,B$2+ROW()-1),"") ->  | L57: 99 | M57: =$A56 ->  | N57: 99
A58: =IF(ROW()<=B$3,INDEX(FP!F:F,B$2+ROW()-1)&" - "&INDEX(FP!C:C,B$2+ROW()-1),"") ->  | C58: =IF(ROW()<=B$3,INDEX(FP!E:E,B$2+ROW()-1),"") ->  | D58: =IF(ROW()<=B$3,INDEX(FP!F:F,B$2+ROW()-1),"") ->  | F58: =IF(ROW()<=B$3,INDEX(FP!G:G,B$2+ROW()-1),"") ->  | H58: =IF(ROW()<=B$3,INDEX(FP!C:C,B$2+ROW()-1),"") ->  | L58: 99 | M58: AAA | N58: HHH
A59: =IF(ROW()<=B$3,INDEX(FP!F:F,B$2+ROW()-1)&" - "&INDEX(FP!C:C,B$2+ROW()-1),"") ->  | C59: =IF(ROW()<=B$3,INDEX(FP!E:E,B$2+ROW()-1),"") ->  | D59: =IF(ROW()<=B$3,INDEX(FP!F:F,B$2+ROW()-1),"") ->  | F59: =IF(ROW()<=B$3,INDEX(FP!G:G,B$2+ROW()-1),"") ->  | H59: =IF(ROW()<=B$3,INDEX(FP!C:C,B$2+ROW()-1),"") ->  | L59: 99 | M59: =$A58 ->  | N59: 99
A60: =IF(ROW()<=B$3,INDEX(FP!F:F,B$2+ROW()-1)&" - "&INDEX(FP!C:C,B$2+ROW()-1),"") ->  | C60: =IF(ROW()<=B$3,INDEX(FP!E:E,B$2+ROW()-1),"") ->  | D60: =IF(ROW()<=B$3,INDEX(FP!F:F,B$2+ROW()-1),"") ->  | F60: =IF(ROW()<=B$3,INDEX(FP!G:G,B$2+ROW()-1),"") ->  | H60: =IF(ROW()<=B$3,INDEX(FP!C:C,B$2+ROW()-1),"") ->  | L60: 99 | M60: AAA | N60: HHH
A61: =IF(ROW()<=B$3,INDEX(FP!F:F,B$2+ROW()-1)&" - "&INDEX(FP!C:C,B$2+ROW()-1),"") ->  | C61: =IF(ROW()<=B$3,INDEX(FP!E:E,B$2+ROW()-1),"") ->  | D61: =IF(ROW()<=B$3,INDEX(FP!F:F,B$2+ROW()-1),"") ->  | F61: =IF(ROW()<=B$3,INDEX(FP!G:G,B$2+ROW()-1),"") ->  | H61: =IF(ROW()<=B$3,INDEX(FP!C:C,B$2+ROW()-1),"") ->  | L61: 99 | M61: =$A60 ->  | N61: 99
A62: =IF(ROW()<=B$3,INDEX(FP!F:F,B$2+ROW()-1)&" - "&INDEX(FP!C:C,B$2+ROW()-1),"") ->  | C62: =IF(ROW()<=B$3,INDEX(FP!E:E,B$2+ROW()-1),"") ->  | D62: =IF(ROW()<=B$3,INDEX(FP!F:F,B$2+ROW()-1),"") ->  | F62: =IF(ROW()<=B$3,INDEX(FP!G:G,B$2+ROW()-1),"") ->  | H62: =IF(ROW()<=B$3,INDEX(FP!C:C,B$2+ROW()-1),"") ->  | L62: 99 | M62: AAA | N62: HHH
A63: =IF(ROW()<=B$3,INDEX(FP!F:F,B$2+ROW()-1)&" - "&INDEX(FP!C:C,B$2+ROW()-1),"") ->  | C63: =IF(ROW()<=B$3,INDEX(FP!E:E,B$2+ROW()-1),"") ->  | D63: =IF(ROW()<=B$3,INDEX(FP!F:F,B$2+ROW()-1),"") ->  | F63: =IF(ROW()<=B$3,INDEX(FP!G:G,B$2+ROW()-1),"") ->  | H63: =IF(ROW()<=B$3,INDEX(FP!C:C,B$2+ROW()-1),"") ->  | L63: 99 | M63: =$A62 ->  | N63: 99
A64: =IF(ROW()<=B$3,INDEX(FP!F:F,B$2+ROW()-1)&" - "&INDEX(FP!C:C,B$2+ROW()-1),"") ->  | C64: =IF(ROW()<=B$3,INDEX(FP!E:E,B$2+ROW()-1),"") ->  | D64: =IF(ROW()<=B$3,INDEX(FP!F:F,B$2+ROW()-1),"") ->  | F64: =IF(ROW()<=B$3,INDEX(FP!G:G,B$2+ROW()-1),"") ->  | H64: =IF(ROW()<=B$3,INDEX(FP!C:C,B$2+ROW()-1),"") ->  | L64: 99 | M64: AAA | N64: HHH
A65: =IF(ROW()<=B$3,INDEX(FP!F:F,B$2+ROW()-1)&" - "&INDEX(FP!C:C,B$2+ROW()-1),"") ->  | C65: =IF(ROW()<=B$3,INDEX(FP!E:E,B$2+ROW()-1),"") ->  | D65: =IF(ROW()<=B$3,INDEX(FP!F:F,B$2+ROW()-1),"") ->  | F65: =IF(ROW()<=B$3,INDEX(FP!G:G,B$2+ROW()-1),"") ->  | H65: =IF(ROW()<=B$3,INDEX(FP!C:C,B$2+ROW()-1),"") ->  | J65: =IF(ROW()<=B$3,SUMIFS(I$103:I$50042,A$103:A$50042,K65,J$103:J$50042,L65),"") ->  | L65: 99 | M65: =$A64 ->  | N65: 99
A66: =IF(ROW()<=B$3,INDEX(FP!F:F,B$2+ROW()-1)&" - "&INDEX(FP!C:C,B$2+ROW()-1),"") ->  | C66: =IF(ROW()<=B$3,INDEX(FP!E:E,B$2+ROW()-1),"") ->  | D66: =IF(ROW()<=B$3,INDEX(FP!F:F,B$2+ROW()-1),"") ->  | F66: =IF(ROW()<=B$3,INDEX(FP!G:G,B$2+ROW()-1),"") ->  | H66: =IF(ROW()<=B$3,INDEX(FP!C:C,B$2+ROW()-1),"") ->  | L66: 99 | M66: AAA | N66: HHH
A67: =IF(ROW()<=B$3,INDEX(FP!F:F,B$2+ROW()-1)&" - "&INDEX(FP!C:C,B$2+ROW()-1),"") ->  | C67: =IF(ROW()<=B$3,INDEX(FP!E:E,B$2+ROW()-1),"") ->  | D67: =IF(ROW()<=B$3,INDEX(FP!F:F,B$2+ROW()-1),"") ->  | F67: =IF(ROW()<=B$3,INDEX(FP!G:G,B$2+ROW()-1),"") ->  | H67: =IF(ROW()<=B$3,INDEX(FP!C:C,B$2+ROW()-1),"") ->  | K67: =$A67 ->  | L67: 99 | M67: =$A66 ->  | N67: 99
A68: =IF(ROW()<=B$3,INDEX(FP!F:F,B$2+ROW()-1)&" - "&INDEX(FP!C:C,B$2+ROW()-1),"") ->  | C68: =IF(ROW()<=B$3,INDEX(FP!E:E,B$2+ROW()-1),"") ->  | D68: =IF(ROW()<=B$3,INDEX(FP!F:F,B$2+ROW()-1),"") ->  | F68: =IF(ROW()<=B$3,INDEX(FP!G:G,B$2+ROW()-1),"") ->  | H68: =IF(ROW()<=B$3,INDEX(FP!C:C,B$2+ROW()-1),"") ->  | L68: 99 | M68: AAA | N68: HHH
A69: =IF(ROW()<=B$3,INDEX(FP!F:F,B$2+ROW()-1)&" - "&INDEX(FP!C:C,B$2+ROW()-1),"") ->  | C69: =IF(ROW()<=B$3,INDEX(FP!E:E,B$2+ROW()-1),"") ->  | D69: =IF(ROW()<=B$3,INDEX(FP!F:F,B$2+ROW()-1),"") ->  | F69: =IF(ROW()<=B$3,INDEX(FP!G:G,B$2+ROW()-1),"") ->  | H69: =IF(ROW()<=B$3,INDEX(FP!C:C,B$2+ROW()-1),"") ->  | L69: 99 | M69: =$A68 ->  | N69: 99
A70: =IF(ROW()<=B$3,INDEX(FP!F:F,B$2+ROW()-1)&" - "&INDEX(FP!C:C,B$2+ROW()-1),"") ->  | C70: =IF(ROW()<=B$3,INDEX(FP!E:E,B$2+ROW()-1),"") ->  | D70: =IF(ROW()<=B$3,INDEX(FP!F:F,B$2+ROW()-1),"") ->  | F70: =IF(ROW()<=B$3,INDEX(FP!G:G,B$2+ROW()-1),"") ->  | H70: =IF(ROW()<=B$3,INDEX(FP!C:C,B$2+ROW()-1),"") ->  | L70: 99 | M70: AAA | N70: HHH
A71: =IF(ROW()<=B$3,INDEX(FP!F:F,B$2+ROW()-1)&" - "&INDEX(FP!C:C,B$2+ROW()-1),"") ->  | C71: =IF(ROW()<=B$3,INDEX(FP!E:E,B$2+ROW()-1),"") ->  | D71: =IF(ROW()<=B$3,INDEX(FP!F:F,B$2+ROW()-1),"") ->  | F71: =IF(ROW()<=B$3,INDEX(FP!G:G,B$2+ROW()-1),"") ->  | H71: =IF(ROW()<=B$3,INDEX(FP!C:C,B$2+ROW()-1),"") ->  | I71: =IF(ROW()<=B$3,SUMIF(A$107:A$10042,A71,I$107:I$10042),"") ->  | L71: 99 | M71: =$A70 ->  | N71: 99
A72: =IF(ROW()<=B$3,INDEX(FP!F:F,B$2+ROW()-1)&" - "&INDEX(FP!C:C,B$2+ROW()-1),"") ->  | C72: =IF(ROW()<=B$3,INDEX(FP!E:E,B$2+ROW()-1),"") ->  | D72: =IF(ROW()<=B$3,INDEX(FP!F:F,B$2+ROW()-1),"") ->  | F72: =IF(ROW()<=B$3,INDEX(FP!G:G,B$2+ROW()-1),"") ->  | H72: =IF(ROW()<=B$3,INDEX(FP!C:C,B$2+ROW()-1),"") ->  | L72: 99 | M72: AAA | N72: HHH
A73: =IF(ROW()<=B$3,INDEX(FP!F:F,B$2+ROW()-1)&" - "&INDEX(FP!C:C,B$2+ROW()-1),"") ->  | C73: =IF(ROW()<=B$3,INDEX(FP!E:E,B$2+ROW()-1),"") ->  | D73: =IF(ROW()<=B$3,INDEX(FP!F:F,B$2+ROW()-1),"") ->  | F73: =IF(ROW()<=B$3,INDEX(FP!G:G,B$2+ROW()-1),"") ->  | H73: =IF(ROW()<=B$3,INDEX(FP!C:C,B$2+ROW()-1),"") ->  | L73: 99 | M73: =$A72 ->  | N73: 99
A74: =IF(ROW()<=B$3,INDEX(FP!F:F,B$2+ROW()-1)&" - "&INDEX(FP!C:C,B$2+ROW()-1),"") ->  | C74: =IF(ROW()<=B$3,INDEX(FP!E:E,B$2+ROW()-1),"") ->  | D74: =IF(ROW()<=B$3,INDEX(FP!F:F,B$2+ROW()-1),"") ->  | F74: =IF(ROW()<=B$3,INDEX(FP!G:G,B$2+ROW()-1),"") ->  | H74: =IF(ROW()<=B$3,INDEX(FP!C:C,B$2+ROW()-1),"") ->  | L74: 99 | M74: AAA | N74: HHH
A75: =IF(ROW()<=B$3,INDEX(FP!F:F,B$2+ROW()-1)&" - "&INDEX(FP!C:C,B$2+ROW()-1),"") ->  | C75: =IF(ROW()<=B$3,INDEX(FP!E:E,B$2+ROW()-1),"") ->  | D75: =IF(ROW()<=B$3,INDEX(FP!F:F,B$2+ROW()-1),"") ->  | F75: =IF(ROW()<=B$3,INDEX(FP!G:G,B$2+ROW()-1),"") ->  | H75: =IF(ROW()<=B$3,INDEX(FP!C:C,B$2+ROW()-1),"") ->  | L75: 99 | M75: =$A74 ->  | N75: 99
A76: =IF(ROW()<=B$3,INDEX(FP!F:F,B$2+ROW()-1)&" - "&INDEX(FP!C:C,B$2+ROW()-1),"") ->  | C76: =IF(ROW()<=B$3,INDEX(FP!E:E,B$2+ROW()-1),"") ->  | D76: =IF(ROW()<=B$3,INDEX(FP!F:F,B$2+ROW()-1),"") ->  | F76: =IF(ROW()<=B$3,INDEX(FP!G:G,B$2+ROW()-1),"") ->  | H76: =IF(ROW()<=B$3,INDEX(FP!C:C,B$2+ROW()-1),"") ->  | L76: 99 | M76: AAA | N76: HHH
A77: =IF(ROW()<=B$3,INDEX(FP!F:F,B$2+ROW()-1)&" - "&INDEX(FP!C:C,B$2+ROW()-1),"") ->  | C77: =IF(ROW()<=B$3,INDEX(FP!E:E,B$2+ROW()-1),"") ->  | D77: =IF(ROW()<=B$3,INDEX(FP!F:F,B$2+ROW()-1),"") ->  | F77: =IF(ROW()<=B$3,INDEX(FP!G:G,B$2+ROW()-1),"") ->  | H77: =IF(ROW()<=B$3,INDEX(FP!C:C,B$2+ROW()-1),"") ->  | L77: 99 | M77: =$A76 ->  | N77: 99
A78: =IF(ROW()<=B$3,INDEX(FP!F:F,B$2+ROW()-1)&" - "&INDEX(FP!C:C,B$2+ROW()-1),"") ->  | C78: =IF(ROW()<=B$3,INDEX(FP!E:E,B$2+ROW()-1),"") ->  | D78: =IF(ROW()<=B$3,INDEX(FP!F:F,B$2+ROW()-1),"") ->  | F78: =IF(ROW()<=B$3,INDEX(FP!G:G,B$2+ROW()-1),"") ->  | H78: =IF(ROW()<=B$3,INDEX(FP!C:C,B$2+ROW()-1),"") ->  | L78: 99 | M78: AAA | N78: HHH
A79: =IF(ROW()<=B$3,INDEX(FP!F:F,B$2+ROW()-1)&" - "&INDEX(FP!C:C,B$2+ROW()-1),"") ->  | C79: =IF(ROW()<=B$3,INDEX(FP!E:E,B$2+ROW()-1),"") ->  | D79: =IF(ROW()<=B$3,INDEX(FP!F:F,B$2+ROW()-1),"") ->  | F79: =IF(ROW()<=B$3,INDEX(FP!G:G,B$2+ROW()-1),"") ->  | H79: =IF(ROW()<=B$3,INDEX(FP!C:C,B$2+ROW()-1),"") ->  | L79: 99 | M79: =$A78 ->  | N79: 99
A80: =IF(ROW()<=B$3,INDEX(FP!F:F,B$2+ROW()-1)&" - "&INDEX(FP!C:C,B$2+ROW()-1),"") ->  | C80: =IF(ROW()<=B$3,INDEX(FP!E:E,B$2+ROW()-1),"") ->  | D80: =IF(ROW()<=B$3,INDEX(FP!F:F,B$2+ROW()-1),"") ->  | F80: =IF(ROW()<=B$3,INDEX(FP!G:G,B$2+ROW()-1),"") ->  | H80: =IF(ROW()<=B$3,INDEX(FP!C:C,B$2+ROW()-1),"") ->  | L80: 99 | M80: AAA | N80: HHH
A81: =IF(ROW()<=B$3,INDEX(FP!F:F,B$2+ROW()-1)&" - "&INDEX(FP!C:C,B$2+ROW()-1),"") ->  | C81: =IF(ROW()<=B$3,INDEX(FP!E:E,B$2+ROW()-1),"") ->  | D81: =IF(ROW()<=B$3,INDEX(FP!F:F,B$2+ROW()-1),"") ->  | F81: =IF(ROW()<=B$3,INDEX(FP!G:G,B$2+ROW()-1),"") ->  | H81: =IF(ROW()<=B$3,INDEX(FP!C:C,B$2+ROW()-1),"") ->  | L81: 99 | M81: =$A80 ->  | N81: 99
A82: =IF(ROW()<=B$3,INDEX(FP!F:F,B$2+ROW()-1)&" - "&INDEX(FP!C:C,B$2+ROW()-1),"") ->  | C82: =IF(ROW()<=B$3,INDEX(FP!E:E,B$2+ROW()-1),"") ->  | D82: =IF(ROW()<=B$3,INDEX(FP!F:F,B$2+ROW()-1),"") ->  | F82: =IF(ROW()<=B$3,INDEX(FP!G:G,B$2+ROW()-1),"") ->  | H82: =IF(ROW()<=B$3,INDEX(FP!C:C,B$2+ROW()-1),"") ->  | L82: 99 | M82: AAA | N82: HHH
A83: =IF(ROW()<=B$3,INDEX(FP!F:F,B$2+ROW()-1)&" - "&INDEX(FP!C:C,B$2+ROW()-1),"") ->  | C83: =IF(ROW()<=B$3,INDEX(FP!E:E,B$2+ROW()-1),"") ->  | D83: =IF(ROW()<=B$3,INDEX(FP!F:F,B$2+ROW()-1),"") ->  | F83: =IF(ROW()<=B$3,INDEX(FP!G:G,B$2+ROW()-1),"") ->  | H83: =IF(ROW()<=B$3,INDEX(FP!C:C,B$2+ROW()-1),"") ->  | L83: 99 | M83: =$A82 ->  | N83: 99
A84: =IF(ROW()<=B$3,INDEX(FP!F:F,B$2+ROW()-1)&" - "&INDEX(FP!C:C,B$2+ROW()-1),"") ->  | C84: =IF(ROW()<=B$3,INDEX(FP!E:E,B$2+ROW()-1),"") ->  | D84: =IF(ROW()<=B$3,INDEX(FP!F:F,B$2+ROW()-1),"") ->  | F84: =IF(ROW()<=B$3,INDEX(FP!G:G,B$2+ROW()-1),"") ->  | H84: =IF(ROW()<=B$3,INDEX(FP!C:C,B$2+ROW()-1),"") ->  | L84: 99 | M84: AAA | N84: HHH
A85: =IF(ROW()<=B$3,INDEX(FP!F:F,B$2+ROW()-1)&" - "&INDEX(FP!C:C,B$2+ROW()-1),"") ->  | C85: =IF(ROW()<=B$3,INDEX(FP!E:E,B$2+ROW()-1),"") ->  | D85: =IF(ROW()<=B$3,INDEX(FP!F:F,B$2+ROW()-1),"") ->  | F85: =IF(ROW()<=B$3,INDEX(FP!G:G,B$2+ROW()-1),"") ->  | H85: =IF(ROW()<=B$3,INDEX(FP!C:C,B$2+ROW()-1),"") ->  | L85: 99 | M85: =$A84 ->  | N85: 99
A86: =IF(ROW()<=B$3,INDEX(FP!F:F,B$2+ROW()-1)&" - "&INDEX(FP!C:C,B$2+ROW()-1),"") ->  | C86: =IF(ROW()<=B$3,INDEX(FP!E:E,B$2+ROW()-1),"") ->  | D86: =IF(ROW()<=B$3,INDEX(FP!F:F,B$2+ROW()-1),"") ->  | F86: =IF(ROW()<=B$3,INDEX(FP!G:G,B$2+ROW()-1),"") ->  | H86: =IF(ROW()<=B$3,INDEX(FP!C:C,B$2+ROW()-1),"") ->  | L86: 99 | M86: AAA | N86: HHH
A87: =IF(ROW()<=B$3,INDEX(FP!F:F,B$2+ROW()-1)&" - "&INDEX(FP!C:C,B$2+ROW()-1),"") ->  | C87: =IF(ROW()<=B$3,INDEX(FP!E:E,B$2+ROW()-1),"") ->  | D87: =IF(ROW()<=B$3,INDEX(FP!F:F,B$2+ROW()-1),"") ->  | F87: =IF(ROW()<=B$3,INDEX(FP!G:G,B$2+ROW()-1),"") ->  | H87: =IF(ROW()<=B$3,INDEX(FP!C:C,B$2+ROW()-1),"") ->  | L87: 99 | M87: =$A86 ->  | N87: 99
A88: =IF(ROW()<=B$3,INDEX(FP!F:F,B$2+ROW()-1)&" - "&INDEX(FP!C:C,B$2+ROW()-1),"") ->  | C88: =IF(ROW()<=B$3,INDEX(FP!E:E,B$2+ROW()-1),"") ->  | D88: =IF(ROW()<=B$3,INDEX(FP!F:F,B$2+ROW()-1),"") ->  | F88: =IF(ROW()<=B$3,INDEX(FP!G:G,B$2+ROW()-1),"") ->  | H88: =IF(ROW()<=B$3,INDEX(FP!C:C,B$2+ROW()-1),"") ->  | L88: 99 | M88: AAA | N88: HHH
A89: =IF(ROW()<=B$3,INDEX(FP!F:F,B$2+ROW()-1)&" - "&INDEX(FP!C:C,B$2+ROW()-1),"") ->  | C89: =IF(ROW()<=B$3,INDEX(FP!E:E,B$2+ROW()-1),"") ->  | D89: =IF(ROW()<=B$3,INDEX(FP!F:F,B$2+ROW()-1),"") ->  | F89: =IF(ROW()<=B$3,INDEX(FP!G:G,B$2+ROW()-1),"") ->  | H89: =IF(ROW()<=B$3,INDEX(FP!C:C,B$2+ROW()-1),"") ->  | L89: 99 | M89: =$A88 ->  | N89: 99
A90: =IF(ROW()<=B$3,INDEX(FP!F:F,B$2+ROW()-1)&" - "&INDEX(FP!C:C,B$2+ROW()-1),"") ->  | C90: =IF(ROW()<=B$3,INDEX(FP!E:E,B$2+ROW()-1),"") ->  | D90: =IF(ROW()<=B$3,INDEX(FP!F:F,B$2+ROW()-1),"") ->  | F90: =IF(ROW()<=B$3,INDEX(FP!G:G,B$2+ROW()-1),"") ->  | H90: =IF(ROW()<=B$3,INDEX(FP!C:C,B$2+ROW()-1),"") ->  | L90: 99 | M90: AAA | N90: HHH
A91: =IF(ROW()<=B$3,INDEX(FP!F:F,B$2+ROW()-1)&" - "&INDEX(FP!C:C,B$2+ROW()-1),"") ->  | C91: =IF(ROW()<=B$3,INDEX(FP!E:E,B$2+ROW()-1),"") ->  | D91: =IF(ROW()<=B$3,INDEX(FP!F:F,B$2+ROW()-1),"") ->  | F91: =IF(ROW()<=B$3,INDEX(FP!G:G,B$2+ROW()-1),"") ->  | H91: =IF(ROW()<=B$3,INDEX(FP!C:C,B$2+ROW()-1),"") ->  | L91: 99 | M91: =$A90 ->  | N91: 99
A92: =IF(ROW()<=B$3,INDEX(FP!F:F,B$2+ROW()-1)&" - "&INDEX(FP!C:C,B$2+ROW()-1),"") ->  | C92: =IF(ROW()<=B$3,INDEX(FP!E:E,B$2+ROW()-1),"") ->  | D92: =IF(ROW()<=B$3,INDEX(FP!F:F,B$2+ROW()-1),"") ->  | F92: =IF(ROW()<=B$3,INDEX(FP!G:G,B$2+ROW()-1),"") ->  | H92: =IF(ROW()<=B$3,INDEX(FP!C:C,B$2+ROW()-1),"") ->  | L92: 99 | M92: AAA | N92: HHH
A93: =IF(ROW()<=B$3,INDEX(FP!F:F,B$2+ROW()-1)&" - "&INDEX(FP!C:C,B$2+ROW()-1),"") ->  | C93: =IF(ROW()<=B$3,INDEX(FP!E:E,B$2+ROW()-1),"") ->  | D93: =IF(ROW()<=B$3,INDEX(FP!F:F,B$2+ROW()-1),"") ->  | F93: =IF(ROW()<=B$3,INDEX(FP!G:G,B$2+ROW()-1),"") ->  | H93: =IF(ROW()<=B$3,INDEX(FP!C:C,B$2+ROW()-1),"") ->  | L93: 99 | M93: =$A92 ->  | N93: 99
A94: =IF(ROW()<=B$3,INDEX(FP!F:F,B$2+ROW()-1)&" - "&INDEX(FP!C:C,B$2+ROW()-1),"") ->  | C94: =IF(ROW()<=B$3,INDEX(FP!E:E,B$2+ROW()-1),"") ->  | D94: =IF(ROW()<=B$3,INDEX(FP!F:F,B$2+ROW()-1),"") ->  | F94: =IF(ROW()<=B$3,INDEX(FP!G:G,B$2+ROW()-1),"") ->  | H94: =IF(ROW()<=B$3,INDEX(FP!C:C,B$2+ROW()-1),"") ->  | L94: 99 | M94: AAA | N94: HHH
F95: =IF(ROW()<=B$3,INDEX(FP!G:G,B$2+ROW()-1),"") ->  | M95: =$A94 ->  | N95: 99
F96: Organizácia podujatia názov podujatia (napr. Kongres ISF, Svetový pohár ICU): miesto konania (napr. Komjatice): termín (od-do) (napr. 1.5.-15.5.2013): počet aktívnych účastníkov (napr. 223): počet odpracovaných hodín spolu: (napr. 690): hrubé mzdy vyplatené osobám v súvislosti s podujatím vrátane odvodov zamestnávateľa spolu (dohody, zmluvy, faktúry, a pod.) v eur:
F97: Hrubé mzdy vyplatené osobám (zamestnancom) vrátane odvodov zamestnávateľa počet fyzických osôb (napr. 3): obdobie (napr. január - marec):
F98: Služobné motorové vozidlo EČV (napr. BB 123 AK): Obdobie (napr. 3.7.-28.7.2013): Najazdené kilometre (napr. 1 211 km):
F99: Pracovná cesta (napr. výjazd na výkonný výbor, na majstrovstvá) Názov (napr. majstrovstvá sveta, sústredenie, kongres, zasadnutie komisie): Termín (napr. 1.5.-3.6.2013): Miesto - mesto a štát (napr. Palermo, Taliansko): Spôsob dopravy (napr. letecky): Počet všetkých osôb na pracovnej ceste (napr. 17) z toho: - športovci (+ navádzači): 12 - tréneri + rozhodcovia + vedúci výpravy + administratívni pracovníci + lekár + fyzioterapeut + masér + ): 2 - ostatné osoby (napr. sponzori, hostia): 3
A100: Priebežné čerpanie a vyúčtovanie finančných prostriedkov poskytnutých zo štátneho rozpočtu v oblasti športu v roku 2024 | I100: V2
I101: 2024-07-16
A102: Názov prijímateľa prostriedkov: | B102: 85
A103: AAA | B103: BBB | C103: CCC | D103: DDD | F103: EEE | H103: FFF | I103: GGG | J103: HHH
A104: Účel úhrady (vyberte zo zoznamu, inak automatické vyhodnocovanie nebude fungovať) | B104: Interné číslo účtovného dokladu | C104: Číslo externého (originálneho) účtovného dokladu | D104: Dátum skutočnej úhrady účtovného dokladu | E104: Dátum refundácie účtovného dokladu | F104: Popis úhrady (vyberte z rozbaľovacieho zoznamu, alebo zadajte voľný text) | G104: IČO dodávateľa plnenia | H104: Dodávateľ plnenia | I104: Skutočne uhradená suma (eur) | J104: AK
A105: ÚDAJE ZORADIŤ PODĽA ÚČELU ÚHRADY A V RÁMCI JEDNÉHO ÚČELU PODĽA POPISU ÚHRADY
A107: j - Zabezpečenie finále školských športových súťaží (Trenčín 2024) v súťažiach kategórie "A" vo florbale stredných škôl | B107: ID: 24 520 | C107: ID: 24 520 | D107: 2024-05-29 | F107: Náhrada dobrovoľníkovi na základe Dobrovoľníckej zmluvy - rozhodovanie zápasov organizovaných SZFB - školská súťaž Finále stredných škôl vo florbale Obdobie: 29.04. a 30.4.2024 Počet osôb: 1 | H107: R 29 - rozhodca Samuel Čimo Pavol | I107: 144 | J107: 10
A108: j - Zabezpečenie finále školských športových súťaží (Trenčín 2024) v súťažiach kategórie "A" vo florbale stredných škôl | B108: ID: 24 520 | C108: ID: 24 520 | D108: 2024-05-29 | F108: Náhrada dobrovoľníkovi na základe Dobrovoľníckej zmluvy - rozhodovanie zápasov organizovaných SZFB - školská súťaž Finále stredných škôl vo florbale Obdobie: 29.04. a 30.4.2024 Počet osôb: 1 | H108: R 22- rozhodca Tomáš Bulejčík | I108: 144 | J108: 10
A109: j - Zabezpečenie finále školských športových súťaží (Trenčín 2024) v súťažiach kategórie "A" vo florbale stredných škôl | B109: ID: 24 520 | C109: ID: 24 520 | D109: 2024-05-29 | F109: Náhrada dobrovoľníkovi na základe Dobrovoľníckej zmluvy - rozhodovanie zápasov organizovaných SZFB - školská súťaž Finále stredných škôl vo florbale Obdobie: 29.04. a 30.4.2024 Počet osôb: 1 | H109: R 41 - rozhodca Mário Haluška | I109: 144 | J109: 10
A110: j - Zabezpečenie finále školských športových súťaží (Trenčín 2024) v súťažiach kategórie "A" vo florbale stredných škôl | B110: ID: 24 520 | C110: ID: 24 520 | D110: 2024-05-29 | F110: Náhrada dobrovoľníkovi na základe Dobrovoľníckej zmluvy - rozhodovanie zápasov organizovaných SZFB - školská súťaž Finále stredných škôl vo florbale Obdobie: 29.04. a 30.4.2024 Počet osôb: 1 | H110: R 91 - rozhodca Peter Ján Riečický | I110: 144 | J110: 10
A111: j - Zabezpečenie finále školských športových súťaží (Trenčín 2024) v súťažiach kategórie "A" vo florbale stredných škôl | B111: ID: 24 520 | C111: ID: 24 520 | D111: 2024-05-29 | F111: Náhrada dobrovoľníkovi na základe Dobrovoľníckej zmluvy - rozhodovanie zápasov organizovaných SZFB - školská súťaž Finále stredných škôl vo florbale Obdobie: 29.04. a 30.4.2024 Počet osôb: 1 | H111: R 84 - rozhodca Richard Obert | I111: 144 | J111: 10
A112: j - Zabezpečenie finále školských športových súťaží (Trenčín 2024) v súťažiach kategórie "A" vo florbale stredných škôl | B112: ID: 24 520 | C112: ID: 24 520 | D112: 2024-05-29 | F112: Náhrada dobrovoľníkovi na základe Dobrovoľníckej zmluvy - rozhodovanie zápasov organizovaných SZFB - školská súťaž Finále stredných škôl vo florbale Obdobie: 29.04. a 30.4.2024 Počet osôb: 1 | H112: R 123 - rozhodca Adam Žiško | I112: 144 | J112: 10
A113: j - Zabezpečenie finále školských športových súťaží (Trenčín 2024) v súťažiach kategórie "A" vo florbale stredných škôl | B113: ID:24 521 | C113: ID:24 521 | D113: 2024-05-29 | F113: školská súťaž vo florbale stredné školy - mzda - dohoda o vykonní práce za mesiac apríl 2024 | H113: ZD - 1 | I113: 437.99 | J113: 10
A114: j - Zabezpečenie finále školských športových súťaží (Trenčín 2024) v súťažiach kategórie "A" vo florbale stredných škôl | B114: ID:24 521 | C114: ID:24 521 | D114: 2024-05-29 | E114: 2024-05-07 | F114: Odvody z dohody o vykonaní práce, daň preddavková za mesiac apríl 2024 - refundácia | G114: 31795421 | H114: Slovenský zväz florbalu, Junácka 6, 832 80 Bratislava (Dodávateľ: Daňový úrad Bratislava) | I114: 102.73 | J114: 10
A115: j - Zabezpečenie finále školských športových súťaží (Trenčín 2024) v súťažiach kategórie "A" vo florbale stredných škôl | B115: ID:24 521 | C115: ID:24 521 | D115: 2024-05-29 | E115: 2024-05-07 | F115: Odvody z dohody o vykonaní práce, sociálne poistenie za mesiac apríl 2024 - refundácia | G115: 31795421 | H115: Slovenský zväz florbalu, Junácka 6, 832 80 Bratislava (Dodávateľ: Sociálna poisťovňa Bratislava, iČO: 30807484) | I115: 172.08 | J115: 10
A116: j - Zabezpečenie finále školských športových súťaží (Trenčín 2024) v súťažiach kategórie "A" vo florbale stredných škôl | B116: ID:24 521 | C116: ID:24 521 | D116: 2024-05-29 | E116: 2024-05-07 | F116: Odvody z dohody o vykonaní práce, zdravotné poistenie za mesiac apríl 2024 - refundácia | G116: 31795421 | H116: Slovenský zväz florbalu, Junácka 6, 832 80 Bratislava (Dodávateľ: Všeobecná zdravotná poisťovňa, a.s., Panónska cesta 2, 851 04 Bratislava, IČO: 35937874) | I116: 90 | J116: 10
A117: j - Zabezpečenie finále školských športových súťaží (Trenčín 2024) v súťažiach kategórie "A" vo florbale stredných škôl | B117: ID: 24 522 | C117: ID: 24 522 | D117: 2024-05-29 | F117: Názov podujatia: Finále Super Florbal Pohár stredných škôl 2024 cestovné Miesto konania: Trenčín Termín: 28.04.- 30.04.2024 Počet účastníkov: 1 | H117: Miroslav Kunštek - koordinátor pre školské súťaže | I117: 317.13 | J117: 10
A118: j - Zabezpečenie finále školských športových súťaží (Trenčín 2024) v súťažiach kategórie "A" vo florbale stredných škôl | B118: ID: 24 522 | C118: ID: 24 522 | D118: 2024-05-29 | F118: Názov podujatia: Finále Super Florbal Pohár stredných škôl 2024 cestovné Miesto konania: Trenčín Termín: 29.04.- 30.04.2024 Počet účastníkov: 1 | H118: Martin Kopejtko - asistent koordinátora pre školské súťaže | I118: 125.4 | J118: 10
A119: j - Zabezpečenie finále školských športových súťaží (Trenčín 2024) v súťažiach kategórie "A" vo florbale základných škôl | B119: 024 249 | C119: 247027 | D119: 2024-05-29 | F119: Školská súťaž - Finále školskej súťaže - základné školy: 20 ks nálepka na roll-up, 4 ks nálepka na pop -up stenu, 10 ks nálepka na plastovú tabuľku, 10 ks nálepka na mantinel, 3 ks nálepka | G119: 45242445 | H119: GRAFIS REKLAMA SK, s.r.o., Čiernovodská 6, 821 07 Bratislava 214 | I119: 455.88 | J119: 10
A120: j - Zabezpečenie finále školských športových súťaží (Trenčín 2024) v súťažiach kategórie "A" vo florbale stredných škôl | B120: 024 250 | C120: 247025 | D120: 2024-05-29 | F120: Školská súťaž - Finále školskej súťaže - stredné školy: 20 ks nálepka na roll-up, 6 ks nálepka na pop -up stenu, 10 ks nálepka na plastovú tabuľku, 10 ks nálepka na mantinel, 3 ks nálepka | G120: 45242445 | H120: GRAFIS REKLAMA SK, s.r.o., Čiernovodská 6, 821 07 Bratislava 214 | I120: 464.9 | J120: 10
A121: j - Zabezpečenie finále školských športových súťaží (Trenčín 2024) v súťažiach kategórie "A" vo florbale základných škôl | B121: 024 251 | C121: 240241 | D121: 2024-05-29 | F121: Materiál pre školské súťaže a vecné ceny pre finále školskej súťaže - základné školy : 90 ks florbalová hokejka, 240 ks florbalová loptička, 240 účastnícky silikónový náramok | G121: 31617310 | H121: INSPO spol. s r.o., Vieska 71, 020 01 Púchov | I121: 1944 | J121: 10
A122: j - Zabezpečenie finále školských športových súťaží (Trenčín 2024) v súťažiach kategórie "A" vo florbale stredných škôl | B122: 024 252 | C122: 240242 | D122: 2024-05-29 | F122: Materiál pre školské súťaže a vecné ceny pre finále školskej súťaže - stredné školy : 90 ks florbalová hokejka, 240 ks florbalová loptička, 240 účastnícky silikónový náramok | G122: 31617310 | H122: INSPO spol. s r.o., Vieska 71, 020 01 Púchov | I122: 1944 | J122: 10
A123: j - Zabezpečenie finále školských športových súťaží (Trenčín 2024) v súťažiach kategórie "A" vo florbale stredných škôl | B123: 024 253 | C123: 247029 | D123: 2024-05-29 | F123: Školská súťaž - Finále školskej súťaže - stredné školy: 10 ks nálepka na roll-up, 3 ks nálepka na pop -up stenu, 10 ks nálepka na plastovú tabuľku, 5 ks nálepka na mantinel | G123: 45242445 | H123: GRAFIS REKLAMA SK, s.r.o., Čiernovodská 6, 821 07 Bratislava 214 | I123: 78.63 | J123: 10
A124: j - Zabezpečenie finále školských športových súťaží (Trenčín 2024) v súťažiach kategórie "A" vo florbale základných škôl | B124: 024 254 | C124: 247030 | D124: 2024-05-29 | F124: Školská súťaž - Finále školskej súťaže - základné školy: 10 ks nálepka na roll-up, 2 ks nálepka na pop -up stenu, 10 ks nálepka na plastovú tabuľku, 5 ks nálepka na mantinel | G124: 45242445 | H124: GRAFIS REKLAMA SK, s.r.o., Čiernovodská 6, 821 07 Bratislava 214 | I124: 74.12 | J124: 10
A125: j - Zabezpečenie finále školských športových súťaží (Trenčín 2024) v súťažiach kategórie "A" vo florbale stredných škôl | B125: 024 255 | C125: 240034 | D125: 2024-05-29 | F125: Názov podujatia: Finále Super Florbal Pohár - stredné školy 2024 ubytovanie Miesto konania: Trenčín Termín: 29.04. - 30.04.2024 Počet účastníkov: 71 (z toho 7 pedagógov, 64 žiakov - športovcov) | G125: 51110393 | H125: PRIM SK, s.r.o., Gen. M. R. Štefánika 3759/32, 911 01 Trenčín | I125: 2556 | J125: 10
A126: j - Zabezpečenie finále školských športových súťaží (Trenčín 2024) v súťažiach kategórie "A" vo florbale stredných škôl | B126: 024 256 | C126: 24VF00144 | D126: 2024-05-29 | F126: Názov podujatia: Finále Super Florbal Pohár - stredné školy 2024 ubytovanie Miesto konania: Trenčín Termín: 29.04. - 30.04.2024 Počet účastníkov: 27 (z toho 2 pedagógovia, 25 žiakov - športovcov) | G126: 53341121 | H126: DELORIS s.r.o., Palackého 98/23, 911 01 Trenčín, prevádzka: penzión Deloris | I126: 1176 | J126: 10
A127: j - Zabezpečenie finále školských športových súťaží (Trenčín 2024) v súťažiach kategórie "A" vo florbale stredných škôl | B127: 024 257 | C127: 2320240112 | D127: 2024-05-29 | F127: Názov podujatia: Finále Super Florbal Pohár - stredné školy 2024 ubytovanie Miesto konania: Trenčín Termín: 29.04. - 30.04.2024 Počet účastníkov: 32 (z toho 3 pedagógovia, 29 žiakov - športovcov) | G127: 5291076 | H127: Penzión Branecký, Geni loci s.r.o., Palackého 7/87, 911 01 Trenčín | I127: 1288 | J127: 10
A128: j - Zabezpečenie finále školských športových súťaží (Trenčín 2024) v súťažiach kategórie "A" vo florbale stredných škôl | B128: 024 258 | C128: 24010105 | D128: 2024-05-29 | F128: Názov podujatia: Finále Super Florbal Pohár - stredné školy 2024 ubytovanie Miesto konania: Trenčín Termín: 29.04. - 30.04.2024 Počet účastníkov: 50 (z toho 5 pedagógov, 39 žiakov - športovcov, 6 rozhodcov ) | G128: 31416608 | H128: MŠPORT s r. o., Ostrov 363, 911 05 Trenčín - Zamarovce | I128: 1300 | J128: 10
A129: j - Zabezpečenie finále školských športových súťaží (Trenčín 2024) v súťažiach kategórie "A" vo florbale stredných škôl | B129: 024 259 | C129: 1000061324 | D129: 2024-05-29 | F129: Ocenenia pre školské súťaže -finále školskej súťaž - stredné školy: 16 ks sklenená trofej, 170 ks účastnícka medaila | G129: 35774282 | H129: Victory, spol. s r.o., Junácka 6, 831 04 Bratislava | I129: 671.92 | J129: 10
A130: j - Zabezpečenie finále školských športových súťaží (Trenčín 2024) v súťažiach kategórie "A" vo florbale základných škôl | B130: 024 260 | C130: 1000061224 | D130: 2024-05-29 | F130: Ocenenia pre školské súťaže - finále školskej súťaž - základné školy: 16 ks sklenená trofej, 170 ks účastnícka medaila | G130: 35774282 | H130: Victory, spol. s r.o., Junácka 6, 831 04 Bratislava | I130: 671.92 | J130: 10
A131: j - Zabezpečenie finále školských športových súťaží (Trenčín 2024) v súťažiach kategórie "A" vo florbale stredných škôl | B131: 024 261 | C131: OF008124 | D131: 2024-05-29 | F131: Názov podujatia: Finále Super Florbal Pohár - stredné školy 2024 ubytovanie Miesto konania: Trenčín Termín: 29.04. - 30.04.2024 Počet účastníkov: 42 (z toho 2 pedagógovia, 40 žiakov - športovcov) | G131: 36342165 | H131: MG RINK, s.r.o., Hodžova 6844, prevádzka: Obchodná 31, 911 05 Trenčín | I131: 1260 | J131: 10
A132: j - Zabezpečenie finále školských športových súťaží (Trenčín 2024) v súťažiach kategórie "A" vo florbale stredných škôl | B132: 024 262 | C132: 2024006 | D132: 2024-05-29 | F132: Fotografické práce a dodanie fotografií zo súťaže Super Florbal pohár stredné školy - Finále Trenčín 2024, 29.04.-30.04.2024 | G132: 51987686 | H132: Mgr. Michal Tarabík - Frame it, Dlhé Pole 701, 013 32 Dlhé Pole | I132: 700 | J132: 10
A133: j - Zabezpečenie finále školských športových súťaží (Trenčín 2024) v súťažiach kategórie "A" vo florbale stredných škôl | B133: 024 263 | C133: 2024007 | D133: 2024-05-29 | F133: Kameramanské práce a dodanie video zostrihu zo súťaže Super Florbal pohár stredné školy - Finále Trenčín 2024, 29.04.-30.04.2024 | G133: 51987686 | H133: Mgr. Michal Tarabík - Frame it, Dlhé Pole 701, 013 32 Dlhé Pole | I133: 500 | J133: 10
A134: j - Zabezpečenie finále školských športových súťaží (Trenčín 2024) v súťažiach kategórie "A" vo florbale stredných škôl | B134: 024 264 | C134: 24028 | D134: 2024-05-29 | F134: Športový materiál pre Finále Super Florbal Pohár - stredné školy 2024 72 ks tričko, 30 ks tričko | G134: 36430790 | H134: ITS PLUS, s.r.o., Necpaly 183, 038 12 Necpaly | I134: 1794.24 | J134: 10
A135: j - Zabezpečenie finále školských športových súťaží (Trenčín 2024) v súťažiach kategórie "A" vo florbale základných škôl | B135: 024 265 | C135: 24030 | D135: 2024-05-29 | F135: Športový materiál pre Finále Super Florbal Pohár - základné školy 2024 72 ks tričko, 30 ks tričko | G135: 36430790 | H135: ITS PLUS, s.r.o., Necpaly 183, 038 12 Necpaly | I135: 1817.09 | J135: 10
A136: j - Zabezpečenie finále školských športových súťaží (Trenčín 2024) v súťažiach kategórie "A" vo florbale stredných škôl | B136: 024 266 | C136: 282405 | D136: 2024-05-31 | F136: Názov podujatia: Finále Super Florbal Pohár - stredné školy 2024 prenájom športovej haly Miesto konania: Trenčín Termín: 28.04.- 30.04.2024 | G136: 3792114 | H136: Športový klub 1. FBC Trenčín, Inovecká 3, 91 01 Trenčín | I136: 4240 | J136: 10
A137: j - Zabezpečenie finále školských športových súťaží (Trenčín 2024) v súťažiach kategórie "A" vo florbale stredných škôl | B137: 024 267 | C137: 242004 | D137: 2024-05-31 | F137: Názov podujatia: Finále Super Florbal Pohár - stredné školy 2024 stravovanie Miesto konania: Trenčín Termín: 29.04.- 30.04.2024 Počet účastníkov: 264 ( 29.4.2024 obed - z toho 25 pedagórov, 210 žiakov- športovcov, 6 rozhodcov, 6 pozvaní hostia, 5 zdravotníci, 12 členov realizačného tímu, Počet účastníkov: 258 (večera, obed,olovrant - z toho 25 pedagórov, 210 žiakov- športovcov, 6 rozhodcov, 5 zdravotníci, 12 členov realizačného tímu) | G137: 45335681 | H137: MERS PLUS s. r. o., Na Zongorke 7292 /12 B, 911 01 Trenčín, prevádzka: Mládežnícka 1, 911 01 Trenčín | I137: 6626.33 | J137: 10
A138: j - Zabezpečenie finále školských športových súťaží (Trenčín 2024) v súťažiach kategórie "A" vo florbale stredných škôl | B138: 024 268 | C138: 242005 | D138: 2024-05-31 | F138: Názov podujatia: Finále Super Florbal Pohár - stredné školy 2024 občerstvenie - pitný režim Miesto konania: Trenčín Termín: 29.04.- 30.04.2024 Počet účastníkov: 258 (z toho 25 pedagórov, 210 žiakov - športovcov, 6 rozhodcov, 5 zdravotníci, 12 členov realizačného tímu) | G138: 45335681 | H138: MERS PLUS s. r. o., Na Zongorke 7292 /12 B, 911 01 Trenčín, prevádzka: Mládežnícka 1, 911 01 Trenčín | I138: 372.24 | J138: 10
A139: j - Zabezpečenie finále školských športových súťaží (Trenčín 2024) v súťažiach kategórie "A" vo florbale stredných škôl | B139: 024 269 | C139: 249006 | D139: 2024-05-31 | F139: Názov podujatia: Finále Super Florbal Pohár - stredné školy 2024 videozáznamy a produkcia z podujatia Miesto konania: Trenčín Termín: 29.04.- 30.04.2024 | G139: 45335702 | H139: SÁGA SERVICE s.r.o., servisná agentúra, Inovecká 1132/3, 911 01 Trenčín | I139: 1800 | J139: 10
A140: j - Zabezpečenie finále školských športových súťaží (Trenčín 2024) v súťažiach kategórie "A" vo florbale stredných škôl | B140: 024 270 | C140: 282406 | D140: 2024-05-31 | F140: Organizáčné a technické zabezpečenie, usporiadanie školskej súťaže: "Finále Super florbal pohár stredných škôl žiakov a žiačok 2024" Miesto Konania: Trenčín Termín:29.04.-30.04.2024 | G140: 3792114 | H140: Športový klub 1. FBC Trenčín, Inovecká 3, 91 01 Trenčín | I140: 2020 | J140: 10
A141: j - Zabezpečenie finále školských športových súťaží (Trenčín 2024) v súťažiach kategórie "A" vo florbale stredných škôl | B141: 024 285 | C141: 20240501 | D141: 2024-06-04 | F141: Názov podujatia: Finále Super Florbal Pohár - stredné školy 2024 administratívne práce - spracovanie, vyhodnotenie, a zverejnenie výsledkov súťaže žiakov a žiačok SŠ - 29.04.-30.04.2024 Trenčín | G141: 45014426 | H141: Miroslav Bukviš, Farebná 592/9, 900 41 Rovinka | I141: 400 | J141: 10
A142: j - Zabezpečenie finále školských športových súťaží (Trenčín 2024) v súťažiach kategórie "A" vo florbale stredných škôl | B142: 024 286 | C142: 20240005 | D142: 2024-06-04 | F142: Grafické práce pre projekt" Národný športový projekt 2024 - Finále škoských športových súťaží vo florbale - stredné školy:úprava diplomov, pozvánky, nálepky | G142: 35307382 | H142: Oto Divinský - 98 PROMOTION, Slovenská 17, 901 01 Malacky | I142: 130 | J142: 10
A143: j - Zabezpečenie finále školských športových súťaží (Trenčín 2024) v súťažiach kategórie "A" vo florbale stredných škôl | B143: 024 294 | C143: 20240737 | D143: 2024-06-07 | F143: Školská súťaž: Finále Super Florbal Pohár - stredné školy 2024 ocenenia: 102 ks medaila, 6 ks trofej | G143: 5242526 | H143: 3D SLOVÍČKA s.r.o., 1. mája 43, 985 59 Vidiná | I143: 368.41 | J143: 10
A144: j - Zabezpečenie finále školských športových súťaží (Trenčín 2024) v súťažiach kategórie "A" vo florbale základných škôl | B144: 024295 | C144: 240059 | D144: 2024-06-07 | F144: Názov podujatia: Finále Super Florbal Pohár - základné školy 2024 ubytovanie Miesto konania: Trenčín Termín: 4.06. - 5.06.2024 Počet účastníkov: 68 (z toho 8 pedagógov, 59 žiakov - športovcov, 1 člen realizačného tímu) | G144: 51110393 | H144: PRIM SK, s.r.o., Gen. M. R. Štefánika 3759/32, 911 01 Trenčín | I144: 2448 | J144: 10
A145: j - Zabezpečenie finále školských športových súťaží (Trenčín 2024) v súťažiach kategórie "A" vo florbale základných škôl | B145: 024 296 | C145: 24VF00199 | D145: 2024-06-07 | F145: Názov podujatia: Finále Super Florbal Pohár - základné školy 2024 ubytovanie Miesto konania: Trenčín Termín: 4.06. - 5.06.2024 Počet účastníkov: 17 (z toho 2 pedagógovia, 15 žiakov - športovcov) | G145: 53341121 | H145: DELORIS s.r.o., Palackého 98/23, 911 01 Trenčín, prevádzka: penzión Deloris | I145: 748 | J145: 10
A146: j - Zabezpečenie finále školských športových súťaží (Trenčín 2024) v súťažiach kategórie "A" vo florbale základných škôl | B146: 024297 | C146: 2320240153 | D146: 2024-06-07 | F146: Názov podujatia: Finále Super Florbal Pohár - základné školy 2024 ubytovanie Miesto konania: Trenčín Termín: 4.06. - 5.06.2024 Počet účastníkov: 28 (z toho 4 pedagógovia, 24 žiakov - športovcov) | G146: 5291076 | H146: Penzión Branecký, Geni loci s.r.o., Palackého 7/87, 911 01 Trenčín | I146: 1240 | J146: 10
A147: j - Zabezpečenie finále školských športových súťaží (Trenčín 2024) v súťažiach kategórie "A" vo florbale základných škôl | B147: 024 298 | C147: 24010141 | D147: 2024-06-07 | F147: Názov podujatia: Finále Super Florbal Pohár - základné školy 2024 prenájom športovej haly Miesto konania: Trenčín Termín: 4.06.- 5.06.2024 | G147: 31416608 | H147: MŠPORT s r. o., Ostrov 363, 911 05 Trenčín - Zamarovce | I147: 2000 | J147: 10
A148: j - Zabezpečenie finále školských športových súťaží (Trenčín 2024) v súťažiach kategórie "A" vo florbale základných škôl | B148: 024 299 | C148: 24010140 | D148: 2024-06-07 | F148: Názov podujatia: Finále Super Florbal Pohár - základné školy 2024 ubytovanie Miesto konania: Trenčín Termín: 4.06. - 5.06.2024 Počet účastníkov: 49 (z toho 5 pedagógov, 38 žiakov - športovcov, 6 rozhodcov) | G148: 31416608 | H148: MŠPORT s r. o., Ostrov 363, 911 05 Trenčín - Zamarovce | I148: 1274 | J148: 10
A149: j - Zabezpečenie finále školských športových súťaží (Trenčín 2024) v súťažiach kategórie "A" vo florbale základných škôl | B149: 024 300 | C149: 20240745 | D149: 2024-06-07 | F149: Školská súťaž: Finále Super Florbal Pohár - základné školy 2024 ocenenia: 102 ks medaila, 6 ks trofej | G149: 5242526 | H149: 3D SLOVÍČKA s.r.o., 1. mája 43, 985 59 Vidiná | I149: 374.1 | J149: 10
A150: j - Zabezpečenie finále školských športových súťaží (Trenčín 2024) v súťažiach kategórie "A" vo florbale základných škôl | B150: ID: 24 606 | C150: ID: 24 606 | D150: 2024-06-07 | E150: 2024-05-07 | F150: Názov podujatia: Finále Super Florbal Pohár - základné školy 2024 občerstvenie - pitný režim Miesto konania: Trenčín Termín: 4.06. - 5.06.2024 Počet účastníkov: 262 (z toho 32 pedagórov, 206 žiakov- športovcov, 6 rozhodcov, 5 zdravotníci, 13 členov realizačného tímu) | H150: Juraj Matejka - usporiadateľ Finále Základný škôl (Dodávateľ: Trenčianske minerálne vody, a.s., Trenčianske Mitice 323, 913 22 Trenčianske Mitice, IČO: 35867159) | I150: 192.5 | J150: 10
A151: j - Zabezpečenie finále školských športových súťaží (Trenčín 2024) v súťažiach kategórie "A" vo florbale základných škôl | B151: ID: 24 607 | C151: ID: 24 607 | D151: 2024-06-07 | F151: Názov podujatia: Finále Super Florbal Pohár základných škôl 2024 cestovné Miesto konania: Trenčín Termín: 3.06.- 5.06.2024 Počet účastníkov: 1 | H151: Miroslav Kunštek - koordinátor pre školské súťaže | I151: 351.03 | J151: 10
A152: j - Zabezpečenie finále školských športových súťaží (Trenčín 2024) v súťažiach kategórie "A" vo florbale základných škôl | B152: 024 314 | C152: 20240025 | D152: 2024-06-13 | F152: Názov podujatia: Finále Super Florbal Pohár - základné školy 2024 stravovanie Miesto konania: Trenčín Termín: 4.06.- 5.06.2024 Počet účastníkov: 262 (z toho 32 pedagórov, 206 žiakov - športovcov, 6 rozhodcov, 5 zdravotníci, 13 členov realizačného tímu) | G152: 36832219 | H152: MAHOMI, s.r.o., I. Krasku 667/2, 911 01 Trenčín, Prevádzka: Ostrov 363, Zamaroce | I152: 7809 | J152: 10
A153: j - Zabezpečenie finále školských športových súťaží (Trenčín 2024) v súťažiach kategórie "A" vo florbale základných škôl | B153: 024 319 | C153: 2024005 | D153: 2024-06-19 | F153: Organizáčné a technické zabezpečenie, usporiadanie školskej súťaže: "Finále Super florbal pohár základných škôl žiakov a žiačok 2024" Miesto Konania: Trenčín Termín: 4.06.-5.06.2024 | G153: 42017840 | H153: Florbalový klub AS Trenčín, Kubrická 3/109, 911 01 Trenčín | I153: 2020 | J153: 10
A154: j - Zabezpečenie finále školských športových súťaží (Trenčín 2024) v súťažiach kategórie "A" vo florbale základných škôl | B154: 024 324 | C154: OF10924 | D154: 2024-06-20 | F154: Názov podujatia: Finále Super Florbal Pohár - základné školy 2024 ubytovanie Miesto konania: Trenčín Termín: 4.06. - 5.06.2024 Počet účastníkov: 43 (z toho 6 pedagógov, 37 žiakov - športovcov, 6 rozhodcov) | G154: 36342165 | H154: MG RINK, s.r.o., Hodžova 6844, prevádzka: Obchodná 31, 911 05 Trenčín | I154: 1306 | J154: 10
A155: j - Zabezpečenie finále školských športových súťaží (Trenčín 2024) v súťažiach kategórie "A" vo florbale základných škôl | B155: 024 325 | C155: 2024007 | D155: 2024-06-23 | F155: Názov podujatia: Finále Super Florbal Pohár - základné školy 2024 prenájom mantinelov a bránok, montáž a demontáž ihrísk Miesto konania: Trenčín Termín: 4.06.- 5.06.2024 | G155: 42017840 | H155: Florbalový klub AS Trenčín, Kubrická 3/109, 911 01 Trenčín | I155: 1100 | J155: 10
A156: j - Zabezpečenie finále školských športových súťaží (Trenčín 2024) v súťažiach kategórie "A" vo florbale základných škôl | B156: ID: 24 616 | C156: ID: 24 616 | D156: 2024-06-27 | F156: Názov podujatia: Finále Super Florbal Pohár základných škôl 2024 cestovné Miesto konania: Trenčín Termín: 4.06.2024 Počet účastníkov: 1 | H156: Juraj Hvozdík - asistent koordinátora pre školské súťaže | I156: 55.86 | J156: 10
A157: j - Zabezpečenie finále školských športových súťaží (Trenčín 2024) v súťažiach kategórie "A" vo florbale základných škôl | B157: 024 332 | C157: 2024007 | D157: 2024-06-30 | F157: Názov podujatia: Finále Super Florbal Pohár - základné školy 2024 Administratívne práce, vytvorenie systému školskej súťaže žiačok a žiakov základných škôl s časovým rozpisom, spracovanie a zverejnenie rozpisov školskej súťaže na webovej stránke szfb | G157: 40231801 | H157: Mgr. Helena Kunšteková - ELÁČIK, Pifflova 8, 851 01 Bratislava | I157: 1000 | J157: 10
A158: j - Zabezpečenie finále školských športových súťaží (Trenčín 2024) v súťažiach kategórie "A" vo florbale základných škôl | B158: 024 333 | C158: 2024009 | D158: 2024-06-30 | F158: Fotografické práce a dodanie fotografií zo súťaže Super Florbal pohár základné školy - Finále Trenčín 2024, 4.06.-5.06.2024 | G158: 51987686 | H158: Mgr. Michal Tarabík - Frame it, Dlhé Pole 701, 013 32 Dlhé Pole | I158: 700 | J158: 10
A159: j - Zabezpečenie finále školských športových súťaží (Trenčín 2024) v súťažiach kategórie "A" vo florbale základných škôl | B159: 024 334 | C159: 2024010 | D159: 2024-06-30 | F159: Kameramanské práce a dodanie video zostrihu zo súťaže Super Florbal pohár základné školy - Finále Trenčín 2024, 4.06.-5.06.2024 | G159: 51987686 | H159: Mgr. Michal Tarabík - Frame it, Dlhé Pole 701, 013 32 Dlhé Pole | I159: 500 | J159: 10
A160: j - Zabezpečenie finále školských športových súťaží (Trenčín 2024) v súťažiach kategórie "A" vo florbale základných škôl | B160: 024 335 | C160: 20240504 | D160: 2024-06-30 | F160: Názov podujatia: Finále Super Florbal Pohár - základné školy 2024 administratívne práce - spracovanie, vyhodnotenie, a zverejnenie výsledkov súťaže žiakov a žiačok ZŠ - 4.06.-5.06.2024 Trenčín | G160: 45014426 | H160: Miroslav Bukviš, Farebná 592/9, 900 41 Rovinka | I160: 400 | J160: 10
A161: j - Zabezpečenie finále školských športových súťaží (Trenčín 2024) v súťažiach kategórie "A" vo florbale základných škôl | B161: ID:24 618 | C161: ID: 24618 | D161: 2024-06-30 | F161: školská súťaž fo florbale základné školy - mzda - dohoda o vykonaní práce za mesiac jún 2024 | H161: ZD - 1 | I161: 443.88 | J161: 10
A162: j - Zabezpečenie finále školských športových súťaží (Trenčín 2024) v súťažiach kategórie "A" vo florbale základných škôl | B162: ID:24 618 | C162: ID: 24618 | D162: 2024-06-30 | F162: Odvody za dohody o vykonaní práce, daň preddavková za mesiac jún 2024 | H162: Daňový úrad Bratislava | I162: 104.12 | J162: 10
A163: j - Zabezpečenie finále školských športových súťaží (Trenčín 2024) v súťažiach kategórie "A" vo florbale základných škôl | B163: ID:24 618 | C163: ID: 24618 | D163: 2024-06-30 | F163: Odvody za dohody o vykonaní práce, sociálne poistenie za mesiac jún 2024 | G163: 30807484 | H163: Sociálna poisťovňa Bratislava | I163: 122.66 | J163: 10
A164: j - Zabezpečenie finále školských športových súťaží (Trenčín 2024) v súťažiach kategórie "A" vo florbale základných škôl | B164: ID:24 618 | C164: ID: 24618 | D164: 2024-06-30 | F164: Odvody za dohody o vykonaní práce, zdravotné poistenie za mesiac jún 2024 | G164: 35937874 | H164: Všeobecná zdravotná poisťovňa, a.s., Panónska cesta 2, 851 04 Bratislava | I164: 90 | J164: 10
A165: j - Zabezpečenie finále školských športových súťaží (Trenčín 2024) v súťažiach kategórie "A" vo florbale základných škôl | B165: ID:24 619 | C165: ID:24 619 | D165: 2024-06-30 | F165: Náhrada dobrovoľníkovi na základe Dobrovoľníckej zmluvy - rozhodovanie zápasov organizovaných SZFB - školská súťaž Finále základných škôl vo florbale Obdobie: 4.06.-5.06.2024 Počet osôb: 1 | H165: R 29 - rozhodca Samuel Čimo Pavol | I165: 144 | J165: 10
A166: j - Zabezpečenie finále školských športových súťaží (Trenčín 2024) v súťažiach kategórie "A" vo florbale základných škôl | B166: ID:24 619 | C166: ID:24 619 | D166: 2024-06-30 | F166: Náhrada dobrovoľníkovi na základe Dobrovoľníckej zmluvy - rozhodovanie zápasov organizovaných SZFB - školská súťaž Finále základných škôl vo florbale Obdobie: 4.06.-5.06.2024 Počet osôb: 1 | H166: R 22- rozhodca Tomáš Bulejčík | I166: 144 | J166: 10
A167: j - Zabezpečenie finále školských športových súťaží (Trenčín 2024) v súťažiach kategórie "A" vo florbale základných škôl | B167: ID:24 619 | C167: ID:24 619 | D167: 2024-06-30 | F167: Náhrada dobrovoľníkovi na základe Dobrovoľníckej zmluvy - rozhodovanie zápasov organizovaných SZFB - školská súťaž Finále základných škôl vo florbale Obdobie: 4.06.-5.06.2024 Počet osôb: 1 | H167: R 41 - rozhodca Mário Haluška | I167: 144 | J167: 10
A168: j - Zabezpečenie finále školských športových súťaží (Trenčín 2024) v súťažiach kategórie "A" vo florbale základných škôl | B168: ID:24 619 | C168: ID:24 619 | D168: 2024-06-30 | F168: Náhrada dobrovoľníkovi na základe Dobrovoľníckej zmluvy - rozhodovanie zápasov organizovaných SZFB - školská súťaž Finále základných škôl vo florbale Obdobie: 4.06.-5.06.2024 Počet osôb: 1 | H168: R 91 - rozhodca Peter Ján Riečický | I168: 144 | J168: 10
A169: j - Zabezpečenie finále školských športových súťaží (Trenčín 2024) v súťažiach kategórie "A" vo florbale základných škôl | B169: ID:24 619 | C169: ID:24 619 | D169: 2024-06-30 | F169: Náhrada dobrovoľníkovi na základe Dobrovoľníckej zmluvy - rozhodovanie zápasov organizovaných SZFB - školská súťaž Finále základných škôl vo florbale Obdobie: 4.06.-5.06.2024 Počet osôb: 1 | H169: R 85 - rozhodca Šimon Ondrášik | I169: 144 | J169: 10
A170: j - Zabezpečenie finále školských športových súťaží (Trenčín 2024) v súťažiach kategórie "A" vo florbale základných škôl | B170: ID:24 619 | C170: ID:24 619 | D170: 2024-06-30 | F170: Náhrada dobrovoľníkovi na základe Dobrovoľníckej zmluvy - rozhodovanie zápasov organizovaných SZFB - školská súťaž Finále základných škôl vo florbale Obdobie: 4.06.-5.06.2024 Počet osôb: 1 | H170: R 102 - rozhodca Bystrík Šálek | I170: 144 | J170: 10
A171: j - Zabezpečenie finále školských športových súťaží (Trenčín 2024) v súťažiach kategórie "A" vo florbale základných škôl | B171: 024 336 | C171: 247065 | D171: 2024-06-30 | F171: Finále Super Florbal Pohár - základné školy 2024 - materiál: 8 ks Beach flag, 272 ks šnúrky na krk, 30 ks tričko | G171: 45242445 | H171: GRAFIS REKLAMA SK, s.r.o., Čiernovodská 6, 821 07 Bratislava 214 | I171: 1693.84 | J171: 10
A172: a - florbal - bežné transfery | B172: 024 003 | C172: 20240154 | D172: 2024-01-29 | F172: Názov podujatia: Polish CUP Juniorky 2024, Poľsko letenka pre hráčku RD junioriek Miesto konania: Poľsko Termín: 29.01. a 6.02.2024 Počet účastníkov: 1 | G172: 45329753 | H172: NADOSAH, spol. s r.o., Weberova 6967/2, 080 01 Prešov | I172: 316 | J172: 2
A173: a - florbal - bežné transfery | B173: 024 004 | C173: 20240150 | D173: 2024-01-29 | F173: Názov podujatia: Kvalifikácia na MS mužov 2024, Poľsko letenka pre hráča RD mužov Miesto konania: Poľsko Termín: 30.01. a 5.02.2024 Počet účastníkov: 1 | G173: 45329753 | H173: NADOSAH, spol. s r.o., Weberova 6967/2, 080 01 Prešov | I173: 222 | J173: 3
A174: a - florbal - bežné transfery | B174: 024 005 | C174: 50240005 | D174: 2024-01-29 | F174: nájomné za kanceláriu 2/2024 | G174: 35862289 | H174: Dom športu , s. r. o., Junácka 6, 831 04 Bratislava | I174: 1868.67 | J174: 4
A175: a - florbal - bežné transfery | B175: 024 006 | C175: 50240006 | D175: 2024-01-29 | F175: nájomné 2/2024 - služby, energie, prevádzkové náklady | G175: 35862289 | H175: Dom športu , s. r. o., Junácka 6, 831 04 Bratislava | I175: 545.94 | J175: 4
A176: a - florbal - bežné transfery | B176: 024 007 | C176: 24272100008 | D176: 2024-01-29 | F176: Kvalifikácia na MS mužov 2024: 28 ks zápasový dres a trenky biele, 28 ks zápasový dres a trenky modré | G176: 01998960 | H176: EXE SPORT s.r.o., V Břízách 808, 289 24 Milovice,ČR | I176: 2277.4 | J176: 3
A177: a - florbal - bežné transfery | B177: 024 008 | C177: 24001507 | D177: 2024-01-29 | F177: Polish Cup Juniorky 2024: 1 ks chladiaci spray, 5 ks instantný ľad, 7 ks kineziologický tape, 72 ks magnezium gel, 2 ks masážny olej, 6ks pevný tejp | G177: 24758493 | H177: TEJPY.cz s. r. o., Pohnertova 1724/4, 182 00 Praha, ČR | I177: 130.47 | J177: 2
A178: a - florbal - bežné transfery | B178: 024 009 | C178: 2240047 | D178: 2024-01-29 | F178: 3 ks kapitánske zástavky k zápasom pre RD Junioriek SZFB, Polish Cup junioriek 2024 | G178: 35802987 | H178: TEX-PRINT v.d., Továrenská 1066, 900 61 Gajary | I178: 36 | J178: 2
A179: a - florbal - bežné transfery | B179: 024 009 | C179: 2240047 | D179: 2024-01-29 | F179: 4 ks kapitánske zástavky k zápasom pre RD mužov SZFB, Kvalifikácia na MS mužov 2024 | G179: 35802987 | H179: TEX-PRINT v.d., Továrenská 1066, 900 61 Gajary | I179: 48 | J179: 3
A180: a - florbal - bežné transfery | B180: 024 010 | C180: 24037 | D180: 2024-01-30 | F180: Platba IFF - členské 2024 | G180: CHE 473.509.307 | H180: International Floorball Federation c/o International World Games Association, Avenue de la Gare 12, CH-10003 Lausanne, Switzerland | I180: 9880.34 | J180: 5
A181: a - florbal - bežné transfery | C181: Výpis z TU č. 1/2024 | D181: 2024-01-30 | F181: Poplatok za zahraničnú platbu | G181: 00151653 | H181: Slovenská Sporiteľňa, a.s., Tomášikova 48, 832 37 Bratislava | I181: 30 | J181: 4
A182: a - florbal - bežné transfery | B182: 024 011 | C182: WFCQ24 refs:SVK | D182: 2024-01-30 | F182: Platba IFF - rozhodcovia "Kvalifikácia na MS mužov 2024, Poľsko" | G182: CHE 473.509.307 | H182: International Floorball Federation c/o International World Games Association, Avenue de la Gare 12, CH-10003 Lausanne, Switzerland | I182: 1866.29 | J182: 5
A183: a - florbal - bežné transfery | C183: Výpis z TU č. 1/2024 | D183: 2024-01-30 | F183: Poplatok za zahraničnú platbu | G183: 00151653 | H183: Slovenská Sporiteľňa, a.s., Tomášikova 48, 832 37 Bratislava | I183: 20 | J183: 4
A184: a - florbal - bežné transfery | B184: 024 012 | D184: 2024-01-30 | F184: Názov podujatia:Kvalifikácia na MS mužov 2024 ubytovanie a stravovanie Miesto konania: Lochow, Poľsko Termín: 30.01 - 5.02.2024 Počet účastníkov: 30 (z toho 1 tréner, 1 asistent trénera, 1vedúci družstva, 1 fyzioterapeant, 1 masér, 1 lekár, 2 členovia RT, 22 športovcov) | G184: 9571143909 | H184: Polski Unikokej Spolka z Organiczona odpowiedzialnoscia, Al. Zwyciestwa 51, 80-213 Gdansk, Poľsko | I184: 14390.31 | J184: 3
A185: a - florbal - bežné transfery | C185: Výpis z TU č. 1/2024 | D185: 2024-01-30 | F185: Poplatok za zahraničnú platbu | G185: 00151653 | H185: Slovenská Sporiteľňa, a.s., Tomášikova 48, 832 37 Bratislava | I185: 30 | J185: 4
A186: a - florbal - bežné transfery | B186: 024 013 | D186: 2024-01-30 | F186: Názov podujatia: Polish Cup juniorky 2024 ubytovanie a stravovanie Miesto konania: Zbasyn, Poľsko Termín: 31.01 - 4.02.2024 Počet účastníkov: 31 (z toho 1 tréner,1 asistent trénera, 1 vedúci družstva, 1 fyzioterapeant, 1 masér,1 kondičný tréner, 1 lekár,1 člen RT, 23 športovcov) | G186: 9571143909 | H186: Polski Unikokej Spolka z Organiczona odpowiedzialnoscia, Al. Zwyciestwa 51, 80-213 Gdansk, Poľsko | I186: 8659.53 | J186: 2
A187: a - florbal - bežné transfery | C187: Výpis z TU č. 1/2024 | D187: 2024-01-30 | F187: Poplatok za zahraničnú platbu | G187: 00151653 | H187: Slovenská Sporiteľňa, a.s., Tomášikova 48, 832 37 Bratislava | I187: 30 | J187: 4
A188: a - florbal - bežné transfery | C188: Výpis z TU č. 1/2024 | D188: 2024-01-31 | F188: Poplatok za vedenie účtu | G188: 00151653 | H188: Slovenská Sporiteľňa, a.s., Tomášikova 48, 832 37 Bratislava | I188: 5 | J188: 4
A189: a - florbal - bežné transfery | C189: Výpis z TU č. 1/2024 | D189: 2024-01-31 | F189: Poplatok za zverejňovanie účtu | G189: 00151653 | H189: Slovenská Sporiteľňa, a.s., Tomášikova 48, 832 37 Bratislava | I189: 5 | J189: 4
A190: a - florbal - bežné transfery | B190: ID:24 201 | C190: ID:24 201 | D190: 2024-02-02 | F190: cestovné náhrady prezidenta SZFB Termín: 8.01., 15.01., 17.01.2024 | H190: Martin Kopejtko - prezident SZFB | I190: 507.3 | J190: 4
A191: a - florbal - bežné transfery | B191: ID:24 201 | C191: ID:24 201 | D191: 2024-02-02 | F191: Rozhodovanie zápasov SR súťaží - cestovné náhrady rozhodcov Termín: 13.01.2024 Počet účastníkov: 1 | H191: Viliam Knap - rozhodca | I191: 38.57 | J191: 5
A192: a - florbal - bežné transfery | B192: ID:24 201 | C192: ID:24 201 | D192: 2024-02-02 | F192: Rozhodovanie zápasov SR súťaží - cestovné náhrady rozhodcov Termín: 13.01. a 20.01.2024 Počet účastníkov: 1 | H192: Kristán Marso - rozhodca | I192: 26.98 | J192: 5
A193: a - florbal - bežné transfery | B193: ID:24 202 | C193: ID:24 202 | D193: 2024-02-02 | E193: 2024-01-30 | F193: Sústredenie RD juniorov SZFB 2.02.- 4.02.2024 Doplnenie lekárničky: 3 ks magnezium | H193: Juraj Kašuba - koordinátor pre RD SZFB (Dodávateľ: dm drogerie markt s.r.o., Na pántoch 18, 831 06 Bratislava - Mestská časť Rača, Vajnorská ul. 100, 831 04 Bratislava, IČO: 31393781) | I193: 12.45 | J193: 2
A194: a - florbal - bežné transfery | B194: 024 037 | C194: 24010021 | D194: 2024-02-02 | F194: Názov podujatia: Sústredenie RD junioriek SZFB pred Polish Cup junioriek 2024 Poľsko ubytovanie a stravovanie Miesto konania: Trenčín Termín: 30.01 -31.1.2024 Počet účastníkov: 29 (z toho 1 tréner, 1 asisteni trénera, 1kondičný tréner, 1 vedúci družstva, 1 fyzioterapeant, 1 masér, 23 športovcov) | G194: 31416608 | H194: MŠPORT s r. o., Ostrov 363, 911 05 Trenčín - Zamarovce | I194: 522 | J194: 2
A195: a - florbal - bežné transfery | B195: 024 038 | C195: 24010022 | D195: 2024-02-02 | F195: Názov podujatia: Sústredenie RD junioriek SZFB pred Polish Cup junioriek 2024 Poľsko prenájom športovej haly Miesto konania: Trenčín Termín: 30.1.2024 | G195: 31416608 | H195: MŠPORT s r. o., Ostrov 363, 911 05 Trenčín - Zamarovce | I195: 90 | J195: 2
A196: a - florbal - bežné transfery | B196: 024 039 | C196: 2472100004 | D196: 2024-02-02 | F196: športové oblečenie pre RD mužov a žien SZFB: 71 ks štulpne, 5 ks tričko, 3 ks mikina, 2 ks taška stredná, 2 ks taška veľká | G196: 01998960 | H196: EXE SPORT s.r.o., V Břízách 808, 289 24 Milovice,ČR | I196: 612 | J196: 3
A197: a - florbal - bežné transfery | B197: 024 039 | C197: 2472100004 | D197: 2024-02-02 | F197: športové oblečenie pre RD juniorov a junioriek SZFB: 71 ks štulpne, 5 ks tričko, 2 ks taška stredná, 2 ks taška veľká, 1 ks brankársky dres | G197: 01998960 | H197: EXE SPORT s.r.o., V Břízách 808, 289 24 Milovice,ČR | I197: 612 | J197: 2
A198: a - florbal - bežné transfery | B198: ID:24 203 | C198: ID:24 203 | D198: 2024-02-03 | F198: Odvody za zamestnancov, zdravotné poistenie za mesiac január 2024 | G198: 35937874 | H198: Všeobecná zdravotná poisťovňa, a.s., Panónska cesta 2, 851 04 Bratislava | I198: 865.9 | J198: 4
A199: a - florbal - bežné transfery | B199: ID:24 203 | C199: ID:24 203 | D199: 2024-02-03 | F199: Odvody za zamestnancov, zdravotné poistenie za mesiac január 2024 | G199: 35942436 | H199: Dôvera zdravotná poisťovňa, Digital Park II., Einsteinova 25, 851 01 Bratislava | I199: 223.1 | J199: 4
A200: a - florbal - bežné transfery | B200: ID:24 203 | C200: ID:24 203 | D200: 2024-02-03 | F200: Odvody za zamestnancov, sociálne poistenie za mesiac január 2024 | G200: 30807484 | H200: Sociálna poisťovňa Bratislava | I200: 2511.67 | J200: 4
A201: a - florbal - bežné transfery | B201: ID:24 203 | C201: ID:24 203 | D201: 2024-02-03 | F201: Odvody za zamestnancov, daň preddavková za mesiac január 2024 | H201: Daňový úrad Bratislava | I201: 557.05 | J201: 4
... 2550 more rows

Sheet Adr (hidden)
A1: IČO | B1: Subjekt | C1: Právna forma | D1: Ulica a číslo domu | E1: Mesto | F1: PSČ | G1: Webové sídlo | H1: E-mail | I1: Štatutárny zástupca | J1: Štatutár - funkcia | K1: Kontakná osoba | L1: Kontakt telefón | M1: IBAN 1 | N1: IBAN PUŠ 2 | O1: IBAN TOP | P1: IBAN DOT
A2: 53623517 | B2: Breaking Slovakia, o.z. | C2: občianske združenie | D2: Astrová 6493/17 | E2: Banská Bystrica | F2: 974 01 | G2: https://breaking.sk/ | H2: info@breaking.sk | I2: Ing. Miroslav Križan | J2: predseda | K2: Ing. Michal Roháč | L2: 421903806331 | M2: SK39 1100 0000 0029 4011 6168 | R2: =A2 -> 53623517
A3: 42254388 | B3: Deaflympijský výbor Slovenska | C3: občianske združenie | D3: Kýčerského 7 | E3: Bratislava 1 | F3: 811 05 | G3: www.deaflympic.sk | H3: office@deaflympic.sk | I3: Peter Birka | J3: prezident | K3: Milena Fabšičová | L3: 421911370554 | M3: SK30 1100 0000 0029 2988 5740 | R3: =A3 -> 42254388
A4: 50642804 | B4: iCompete Natural Slovakia | C4: občianske združenie | D4: Jesenského 71 | E4: Zvolen | F4: 960 01 | G4: www.icn.sk | H4: icn@icn.sk | I4: René Tomášek | J4: prezident | K4: René Tomášek | L4: 421905819613 | M4: SK84 7500 0000 0040 3183 7581 | R4: 50642804
A5: 31788394 | B5: Karloveské tanečné centrum | C5: občianske združenie | D5: Molecova 2 | E5: Bratislava | F5: 841 04 | G5: www.ktc.sk | H5: office@ktc.sk | I5: Miroslav Balún | J5: riaditeľ | K5: Barbora Taragelová | L5: 421911025050 | M5: SK94 1100 0000 0029 2285 0342 | R5: 31788394
A6: 31940803 | B6: Klub plaveckých športov Nereus Žilina o.z. | C6: občianske združenie | D6: Vysokoškolákov 1765/8 | E6: Žilina | F6: 010 08 | G6: https://zilinskytriatlon.nereus.sk/ | H6: klub@nereus.sk | I6: Tomáš Jurkovič | J6: predseda klubu | K6: Tomáš Jurkovič | L6: 421904457419 | M6: SK88 5600 0000 0056 8519 1008 | R6: 31940803
A7: 00688312 | B7: Klub slovenských turistov | C7: občianske združenie | D7: Záborského 33 | E7: Bratislava 3 | F7: 831 03 | G7: www.kst.sk | H7: ustredie@kst.sk | I7: Peter Švec | J7: predseda | K7: Ida Ovečková | L7: 421903705119 | M7: SK34 0900 0000 0001 7152 7595 | R7: 00688312
A8: 47845660 | B8: Košická Futbalová Aréna a. s. | C8: akciová spoločnosť | D8: Pri prachárni 13 | E8: Košice – mestská časť Juh | F8: 040 11 | G8: www.kosickafutbalovaarena.sk | H8: office@kosickafutbalovaarena.sk | I8: Marcel Gibóda, Stanislav Petráš | J8: predseda predstavenstva, člen predstavenstva | M8: SK89 0200 0000 0035 8891 0657 | R8: 47845660
A9: 42269423 | B9: MAMMAL - Slovenský zväz MMA | C9: občianske združenie | D9: Židovská 298/19 | E9: Bratislava 1 | F9: 811 01 | G9: www.mammal.sk | H9: info@mammal.sk; marek.herda@mammal.sk | I9: Marek Herda | J9: prezident | K9: Jana Gurová | L9: 421903555547 | M9: SK31 0200 0000 0031 8656 0551 | R9: 42269423
A10: 00630616 | B10: Maratón klub Rajec | C10: občianske združenie | D10: Mudrochova 909/4 | E10: Rajec | F10: 015 01 | G10: www.rajeckymaraton.sk | H10: pavol.uhlarik@gmail.com | I10: Pavol Uhlárik | J10: predseda klubu | K10: Pavol Uhlárik | L10: 421903175665 | M10: SK29 0900 0000 0000 7651 0656 | R10: 00630616
A11: 00595209 | B11: Maratónsky klub Košice | C11: občianske združenie | D11: Žriedlová 3444/30 | E11: Košice | F11: 040 01 | G11: www.kosicemarathon.com | H11: klub@kosicemarathon.com | I11: Ján Sudzina | J11: prezident | M11: SK53 0900 0000 0051 8854 0107 | R11: 00595209
A12: 35994134 | B12: Mládežnícka basketbalová akadémia Prievidza | C12: občianske združenie | D12: Sama Chalupku 312/12 | E12: Prievidza | F12: 971 01 | G12: https://www.mbaprievidza.sk/ | H12: marekbulik23@gmail.com | I12: Marek Bulík | J12: Predseda správnej rady | K12: Marek Bulík | L12: 421917659092 | M12: SK30 0900 0000 0050 6603 0491 | R12: 35994134
A13: 42296901 | B13: Občianske združenie Street Dance Academy | C13: občianske združenie | D13: Kvačalova 1011/51 | E13: Bratislava 2 | F13: 821 08 | G13: www.streetdance.sk | H13: stanka@streetdance.sk | I13: Ladislav Neuschl | J13: predseda | K13: Stanislava Matejová | L13: 421911472299 | M13: SK67 0900 0000 0051 8102 0512 | R13: 42296901
A14: 42255171 | B14: OZ za zdravší život | C14: občianske združenie | D14: Komárnicka 11 | E14: Bratislava 2 | F14: 821 33 | G14: www.zdravachrbtica.sk | H14: info@zdravachrbtica.sk | I14: Róbert Rusnák | J14: predseda | K14: Zuzana Hrčková | L14: 421918149068 | M14: SK12 1100 0000 0029 4307 8646 | R14: 42255171
A15: 42136971 | B15: PERUN o.z. | C15: občianske združenie | D15: Hečkova 24 | E15: Bratislava | F15: 831 51 | G15: www.racianskykros.sk | H15: racianskykros@gmail.com | I15: Rastislav Uličný | J15: riaditeľ | K15: Rastislav Uličný | L15: 421907397379 | M15: SK09 8330 0000 0025 0082 7935 | R15: 42136971
A16: 53500423 | B16: Pomáhame pohybom | C16: občianske združenie | D16: Prievozská 1326/34 | E16: Bratislava 2 | F16: 821 05 | G16: https://www.falcon1crossfit.sk/sk/obcianske-zdruzenie/ | H16: pomahamepohybom@gmail.com | I16: Róbert Rybanský | J16: podpredseda | K16: Róbert Rybanský | L16: 421917614884 | M16: SK25 1100 0000 0029 4511 8904 | R16: 53500423
A17: 30787009 | B17: Slovenská asociácia amerického futbalu, o.z. | C17: občianske združenie | D17: Nevädzová 17211/6B | E17: Bratislava | F17: 821 01 | G17: www.saaf.sk | H17: info@saaf.sk | I17: Michal Slašťan | J17: prezident | K17: Michal Slašťan | L17: 421908868248 | M17: SK90 8330 0000 0021 0189 0697 | R17: 30787009
A18: 50897152 | B18: Slovenská Asociácia Bandy, skrátený názov SAB | C18: občianske združenie | D18: Trenčianske Teplice 611/2 | E18: Trenčianske Teplice | F18: 914 51 | G18: www.slovakbandy.sk | H18: slovakbandy@gmail.com | I18: Lukáš Vepy | J18: predseda | K18: Ľudovít Vepy | L18: 421917626568 | M18: SK62 0900 0000 0051 3067 7020 | R18: 50897152
A19: 00631655 | B19: Slovenská asociácia boccie | C19: občianske združenie | D19: Ulica Vajanského 874/46 | E19: Lučenec | F19: 984 01 | G19: www.bocce.sk | H19: slovenska.asociacia.bocce@gmail.com | I19: Ján Macko, Lukáš Bolla, Richard Čonka | J19: prezident, predseda, predseda | K19: Ján Macko | L19: 421919188236 | M19: SK92 8330 0000 0026 0113 7730 | R19: 00631655
A20: 42019541 | B20: Slovenská asociácia čínskeho wushu | C20: občianske združenie | D20: Ladislava Dérera 35 | E20: Bratislava | F20: 831 01 | G20: www.wushuslovakia.sk | H20: email@wushuslovakia.sk | I20: Ľubomír France | J20: prezident | K20: Ľubomír France | L20: 421905948422 | M20: SK12 8330 0000 0024 0152 5392 | R20: 42019541
A21: 30810108 | B21: Slovenská Asociácia Dynamickej Streľby | C21: občianske združenie | D21: Skautská 2 | E21: Košice | F21: 040 01 | G21: www.sads.sk | H21: prezident@sads.sk | I21: Bystrík Zachar | J21: prezident | K21: Bystrík Zachar | L21: 421915184709 | M21: SK75 3100 0000 0040 0020 5012 | R21: 30810108
A22: 30842069 | B22: Slovenská asociácia fitnes, kulturistiky a silového trojboja | C22: občianske združenie | D22: Olympijské námestie 14290/1 | E22: Bratislava | F22: 832 80 | G22: www.safkst.sk | H22: sekretariat@safkst.sk | I22: Boris Mlsna | J22: prezident | K22: Boris Mlsna | L22: 421908965156 | M22: SK77 0900 0000 0051 7589 2912 | R22: 30842069
A23: 31749852 | B23: Slovenská asociácia Frisbee | C23: občianske združenie | D23: Eisnerova 6131/13 | E23: Bratislava | F23: 841 07 | G23: www.szf.sk | H23: safslovakia@gmail.com | I23: Juraj Turan | J23: predseda | K23: Martin Keseg | L23: 421905998953 | M23: SK62 0200 0000 0000 7763 5012 | R23: 31749852
A24: 30844711 | B24: Slovenská asociácia go | C24: občianske združenie | D24: Olympijské námestie 14290/1 | E24: Bratislava | F24: 832 80 | G24: www.sago.sk | H24: slovakgo@gmail.com | I24: Martin Lukáč | J24: prezident | K24: Martin Lukáč | L24: 421903187087 | M24: SK31 8330 0000 0025 0173 0318 | R24: 30844711
A25: 31940668 | B25: Slovenská asociácia korfbalu | C25: občianske združenie | D25: Makovického 6/2 | E25: Prievidza | F25: 971 01 | G25: www.korfbal.sk | H25: martinsonoga@gmail.com | I25: Martin Sonoga | J25: prezident | K25: Martin Sonoga | L25: 421911361044 | M25: SK91 3100 0000 0040 0116 2405 | R25: 31940668
A26: 31824021 | B26: Slovenská asociácia motoristického športu | C26: občianske združenie | D26: Fatranská 3 | E26: Nitra | F26: 949 01 | G26: www.sams-asn.sk | H26: samssk@nextra.sk | I26: Dušan Koblišek | J26: prezident | K26: Vojtech Ruisl | L26: 421903403105 | M26: SK29 3100 0000 0042 2012 1718 | R26: 31824021
A27: 45009660 | B27: Slovenská asociácia naturálnej kulturistiky | C27: občianske združenie | D27: Štefániková 3509/20 | E27: Michalovce | F27: 071 01 | G27: www.sank.sk | H27: rigosank@gmail.com | I27: Viliam Rigo | J27: prezident | K27: Viliam Rigo | L27: 421917812810 | M27: SK83 0900 0000 0051 5460 0722 | R27: 45009660
A28: 42340594 | B28: Slovenská asociácia Nordic Walking | C28: občianske združenie | D28: Rudolfa Mocka 2/A | E28: Bratislava 4 | F28: 841 04 | G28: www.snwa.sk | H28: info@snwa.sk | I28: Lucia Turaz Okoličány | J28: prezidentka | K28: Lucia Okoličányová | M28: SK19 1100 0000 0029 2589 3903 | R28: 42340594
A29: 30811686 | B29: Slovenská asociácia pretláčania rukou | C29: občianske združenie | D29: Vavrečka 311 | E29: Námestovo | F29: 029 01 | G29: www.armsport.sk | H29: sekretariat@armsport.sk | I29: Ján Germánus | J29: prezident | K29: Dagmar Petrová | L29: 421905162424 | M29: SK46 0900 0000 0000 1147 3305 | R29: 30811686
A30: 30814910 | B30: Slovenská asociácia taekwondo WT | C30: občianske združenie | D30: Stará spišská cesta 2166/38 | E30: Košice | F30: 040 01 | G30: new.satkd.sk | H30: satkd.office@gmail.com | I30: Mário Švec | J30: prezident | K30: Pavel Ižarik | L30: 421902901640 | M30: SK19 8330 0000 0021 0142 0070 | R30: 30814910
A31: 17316731 | B31: Slovenská asociácia univerzitného športu | C31: občianske združenie | D31: Trnavská cesta 37 | E31: Bratislava 3 | F31: 831 04 | G31: www.saus.sk | H31: saus@saus.sk | I31: Július Dubovský | J31: prezident | K31: Michaela Masárová | L31: 421907696186 | M31: SK51 1100 0000 0026 2902 3663 | R31: 17316731
A32: 30841798 | B32: Slovenská asociácia zrakovo postihnutých športovcov | C32: občianske združenie | D32: Rosina 497 | E32: Rosina | F32: 013 22 | G32: www.sazps.sk | H32: sazps@sazps.sk | I32: Peter Ďuroška | J32: predseda | K32: Peter Ďuroška | L32: 421907253794 | M32: SK95 8330 0000 0021 0076 9190 | R32: 30841798
A33: 30844568 | B33: Slovenská baseballová federácia | C33: občianske združenie | D33: Olympijské námestie 14290/1 | E33: Bratislava | F33: 831 04 | G33: www.slovakiabaseball.com | H33: office@slovakiabaseball.com | I33: Mojmír Jankovič | J33: prezident | K33: František Bunta | L33: 421905294239 | M33: SK09 0200 0000 0017 8566 0854 | R33: 30844568
A34: 17315166 | B34: Slovenská basketbalová asociácia | C34: občianske združenie | D34: Trnavská cesta 37 | E34: Bratislava | F34: 831 04 | G34: www.slovakbasket.sk | H34: sekretariat@slovakbasket.sk | I34: Michal Ondruš | J34: prezident | K34: Štefan Kubík | L34: 421905504810 | M34: SK94 1100 0000 0029 2586 5005 | R34: 17315166
A35: 31744621 | B35: Slovenská boxerská federácia | C35: občianske združenie | D35: Dr. Vladimíra Clementisa 3222/10 | E35: Bratislava | F35: 821 02 | G35: www.sbf.sk | H35: sbf@sbf.sk | I35: Tomáš Kovács | J35: prezident | K35: Ivana Haršányová | L35: 421949246786 | M35: SK63 0200 0000 0017 8550 5555 | R35: 31744621
A36: 34056939 | B36: SLOVENSKÁ CYKLOTRIALOVÁ ÚNIA | C36: občianske združenie | D36: Štefánikova 4445 | E36: Poprad | F36: 058 01 | G36: www.slovakbiketrial.sk | H36: stefan@blackmail.sk | I36: Štefan Pčola | J36: prezident | K36: Štefan Pčola | L36: 421905607646 | M36: SK82 7500 0000 0040 2786 8668 | R36: 34056939
A37: 34003975 | B37: Slovenská federácia karate a bojových umení | C37: občianske združenie | D37: Miletičova 3/A | E37: Bratislava | F37: 821 08 | G37: www.karate-slovakia.sk | H37: info@karate-slovakia.sk | I37: Daniel Baran | J37: prezident | K37: Daniel Baran | L37: 421903919943 | M37: SK51 0200 0000 0011 8096 9955 | R37: 34003975
A38: 36064742 | B38: Slovenská federácia pétanque | C38: občianske združenie | D38: Karpatské námestie 10A | E38: Bratislava | F38: 831 06 | G38: www.sfp.sk | H38: peter.sury@gmail.com | I38: Peter Šúry | J38: prezident | K38: Peter Šúry | L38: 421903421644 | M38: SK28 8330 0000 0023 0103 3104 | R38: 36064742
A39: 42361885 | B39: Slovenská footgolfová asociácia | C39: občianske združenie | D39: Medveďovej 13 | E39: Bratislava | F39: 851 04 | G39: www.sfga.sk | H39: info@sfga.sk | I39: Viliam Nemčko | J39: prezident | K39: Tomáš Bartko | L39: 421903204367 | M39: SK72 1111 0000 0014 6314 7011 | R39: 42361885
A40: 50284363 | B40: Slovenská golfová asociácia | C40: občianske združenie | D40: Kukučínova 26 | E40: Bratislava | F40: 831 02 | G40: www.skga.sk | H40: skga@skga.sk | I40: Rastislav Antala, Miroslav Rusnák | J40: Prezident, viceprezident | K40: Kamil Balga | L40: 421903446366 | M40: SK42 0900 0000 0052 1113 2866 | R40: 50284363
A41: 00688321 | B41: Slovenská gymnastická federácia | C41: občianske združenie | D41: Olympijské námestie 14290/1 | E41: Bratislava | F41: 832 80 | G41: www.sgf.sk | H41: office@sgf.sk | I41: Silvia Ruščinová | J41: generálna sekretárka | K41: Silvia Ruščinová | L41: 421915177492 | M41: SK53 0900 0000 0051 0865 8667 | R41: 00688321
A42: 00603091 | B42: Slovenská hokejbalová únia | C42: občianske združenie | D42: Olympijské námestie 14290/1 | E42: Bratislava | F42: 832 80 | G42: www.hokejbal.sk | H42: hokejbal@hokejbal.sk | I42: Miroslav Dragun | J42: prezident | K42: Miroslav Dragun | L42: 421908145184 | M42: SK77 0200 0000 0017 8572 3456 | R42: 00603091
A43: 54041368 | B43: SLOVENSKÁ CHEERLEADING ÚNIA | C43: občianske združenie | D43: Novozámocká 3212/22 | E43: Zvolen | F43: 960 01 | G43: www.scu.sk | H43: sekretariatscu@scu.sk | I43: Zuzana Niščáková | J43: prezidentka | K43: Zuzana Niščáková | L43: 421905380634 | M43: SK09 8330 0000 0026 0266 7944 | R43: 54041368
A44: 31787801 | B44: SLOVENSKÁ JAZDECKÁ FEDERÁCIA | C44: občianske združenie | D44: Olympijské námestie 14290/1 | E44: Bratislava | F44: 832 80 | G44: www.sjf.sk | H44: baciak.masarykova@sjf.sk | I44: Vladimír Chovan | J44: predseda | K44: Zuzana Bačiak Masaryková | L44: 421907100191 | M44: SK06 0900 0000 0001 7426 1462 | R44: 31787801
A45: 50434101 | B45: Slovenská kanoistika | C45: občianske združenie | D45: Olympijské námestie 14290/1 | E45: Bratislava | F45: 831 04 | G45: www.canoe.sk | H45: canoe@canoe.sk | I45: Miroslav Haviar | J45: prezident | K45: Boris Bergendi | L45: 421905659739 | M45: SK77 0900 0000 0051 1559 0728 | R45: 50434101
A46: 30853427 | B46: Slovenská Lakrosová Federácia | C46: občianske združenie | D46: Jarabinková 6/B | E46: Bratislava | F46: 821 09 | G46: www.lacrosse.sk | H46: eminentasro@gmail.com | I46: Igor Moravčík | J46: prezident | K46: Igor Moravčík | L46: 421905620961 | M46: SK65 0200 0000 0041 7252 5557 | R46: 30853427
A47: 36075809 | B47: Slovenská lukostrelecká asociácia 3D | C47: občianske združenie | D47: Trnovec nad Váhom 1040 | E47: Trnovec nad Váhom | F47: 825 71 | G47: www.archery3d.sk | H47: info@archery3d.sk | I47: Peter Málek | J47: predseda | K47: Peter Málek | L47: 421944644533 | M47: SK63 8330 0000 0020 0175 2748 | R47: 36075809
A48: 30813883 | B48: Slovenská motocyklová federácia | C48: občianske združenie | D48: Športovcov 340 | E48: Považská Bystrica | F48: 017 01 | G48: www.smf.sk | H48: smf@smf.sk | I48: Peter Lazar | J48: prezident | K48: Tatiana Kašlíková | L48: 421905601243 | M48: SK96 0900 0000 0003 6178 9457 | R48: 30813883
A49: 34057587 | B49: Slovenská Muaythai asociácia | C49: občianske združenie | D49: Lermontovova 3 | E49: Bratislava | F49: 811 05 | G49: www.smta.sk | H49: office@smta.sk | I49: Róbert Kajánek | J49: prezident | K49: Róbert Kajánek | L49: 421903584555 | M49: SK64 1100 0000 0029 4704 5980 | R49: 34057587
A50: 30806887 | B50: Slovenská nohejbalová asociácia | C50: občianske združenie | D50: Olympijské námestie 14290/1 | E50: Bratislava 3 | F50: 832 80 | G50: www.nohejbalsk.com | H50: nohejbal.sna@gmail.com | I50: Miroslav Kováč | J50: prezident | K50: Miroslav Kováč | L50: 421917800004 | M50: SK75 0200 0000 0017 8646 8258 | R50: 30806887
A51: 36068764 | B51: Slovenská plavecká federácia | C51: občianske združenie | D51: Za kasárňou 315/1 | E51: Bratislava | F51: 831 03 | G51: www.swimmsvk.sk | H51: prezident@swimmsvk.sk | I51: Ivan Šulek | J51: prezident | K51: Ivan Šulek | L51: 421905297832 | M51: SK13 0200 0000 0030 7422 5951 | R51: 36068764
A52: 31813283 | B52: Slovenská rope skippingová asociácia | C52: občianske združenie | D52: Olympijské námestie 14290/1 | E52: Bratislava 3 | F52: 831 04 | G52: www.srsa.sk | H52: srsa@srsa.sk | I52: Martin Kolčák | J52: predseda | K52: Pavlína Hadová | L52: 421905790607 | M52: SK73 8330 0000 0024 0111 2432 | R52: 31813283
A53: 30851459 | B53: Slovenská rugbyová únia | C53: občianske združenie | D53: Hrobákova 1 | E53: Bratislava | F53: 851 02 | G53: www.slovakrugby.sk | H53: jex.simona@gmail.com | I53: Eduard Krützner | J53: prezident | K53: Katarína Kubalová | L53: 421911977728 | M53: SK14 0200 0000 0028 4751 3556 | R53: 30851459
A54: 37998919 | B54: Slovenská skialpinistická asociácia | C54: občianske združenie | D54: Jalovec 98 | E54: Bobrovec | F54: 032 21 | G54: www.slovakskimo.sk | H54: info@slovakskimo.sk | I54: Michaela Babčanová | J54: podpredseda | K54: Michaela Babčanová | L54: 421915156717 | M54: SK69 1100 0000 0026 2009 8466 | R54: 37998919
A55: 17316723 | B55: Slovenská softballová asociácia | C55: občianske združenie | D55: Olympijské námestie 14290/1 | E55: Bratislava | F55: 831 04 | G55: www.slovakiasoftball.com | H55: office@softballslovakia.com | I55: Lenka Gunišová | J55: prezident | K55: František Bunta | L55: 421905294239 | M55: SK37 0200 0000 0017 8559 5554 | R55: 17316723
A56: 30807018 | B56: Slovenská squashová asociácia | C56: občianske združenie | D56: Olympijské námestie 14290/1 | E56: Bratislava | F56: 832 80 | G56: www.squashtour.sk | H56: gs@squash.sk | I56: Dávid Kubiček | J56: generálny sekretár | K56: Dávid Kubiček | L56: 421908447934 | M56: SK75 0200 0000 0017 8581 8455 | R56: 30807018
A57: 31745466 | B57: Slovenská triatlonová únia | C57: občianske združenie | D57: Olympijské námestie 14290/1 | E57: Bratislava | F57: 832 80 | G57: www.triathlon.sk | H57: triathlon@triathlon.sk | I57: Jozef Jurášek | J57: prezident | K57: Peter Dobiaš | L57: 421918234840 | M57: SK41 0200 0000 0017 8359 4857 | R57: 31745466
A58: 00688819 | B58: Slovenská volejbalová federácia | C58: občianske združenie | D58: Kalinčiakova 33 | E58: Bratislava | F58: 831 04 | G58: www.svf.sk | H58: svf@svf.sk | I58: Marek Rojko | J58: prezident | K58: Jozef Mihalco | L58: 421911427222 | M58: SK03 0200 0000 0017 7219 1251 | R58: 00688819
A59: 36063835 | B59: Slovenský atletický zväz | C59: občianske združenie | D59: Olympijské námestie 14290/1 | E59: Bratislava | F59: 831 04 | G59: www.atletika.sk | H59: office@atletika.sk | I59: Peter Korčok, Vladimír Gubrický | J59: prezident, generálny sekretár | K59: Vladimír Gubrický | L59: 421905278836 | M59: SK17 0200 0000 0017 8547 1754 | R59: 36063835
A60: 31753825 | B60: Slovenský biliardový zväz | C60: občianske združenie | D60: Olympijské námestie 14290/1 | E60: Bratislava | F60: 832 80 | G60: www.biliard.online | H60: koniar@sbiz.sk; sbiz1994@gmail.com | I60: Samuel Koniar | J60: predseda | K60: Samuel Koniar | L60: 421907194669 | M60: SK40 0200 0000 0017 8851 0253 | R60: 31753825
A61: 36128147 | B61: Slovenský bowlingový zväz | C61: občianske združenie | D61: Dunajská 12 | E61: Košice | F61: 040 11 | G61: www.slovakbowling.sk | H61: merkovskyv@gmail.com | I61: Vladimír Merkovský | J61: prezident | K61: Vladimír Merkovský | L61: 421903712927 | M61: SK70 1100 0000 0026 2878 1403 | R61: 36128147
A62: 31770908 | B62: Slovenský bridžový zväz | C62: občianske združenie | D62: Lopenícka 1/A | E62: Bratislava | F62: 831 02 | G62: www.bridgeclub.sk | H62: sbz@bridgeclub.sk | I62: Peter Belčák | J62: prezident | K62: Peter Belčák | L62: 421908672270 | M62: SK65 0900 0000 0001 7666 9007 | R62: 31770908
A63: 37841866 | B63: Slovenský curlingový zväz | C63: občianske združenie | D63: Zahradnícka 27 | E63: Bratislava | F63: 811 07 | G63: www.curling.sk | H63: office@curling.sk | I63: Pavol Pitoňák | J63: predseda | K63: Pavel Kocian | L63: 421918824449 | M63: SK82 0200 0000 0017 0714 0853 | R63: 37841866
A64: 34009388 | B64: Slovenský cykloklub | C64: občianske združenie | D64: Námestie slobody 1716/6 | E64: Piešťany | F64: 921 01 | G64: www.cykloklub.sk | H64: office@cykloklub.sk | I64: Michal Hlatký | J64: predseda | K64: Michal Hlatký | L64: 421903996977 | M64: SK76 0200 0000 0014 3822 4951 | R64: 34009388
A65: 00687308 | B65: Slovenský futbalový zväz | C65: občianske združenie | D65: Tomášikova 30C | E65: Bratislava | F65: 821 01 | G65: www.futbalsfz.sk | H65: msvvas@futbalsfz.sk | I65: Ján Kováčik | J65: prezident | K65: Marcel Korinek | L65: 421907984638 | M65: SK80 0900 0000 0051 1021 1442 | R65: 00687308
A66: 00586455 | B66: Slovenský horolezecký spolok JAMES | C66: občianske združenie | D66: Olympijské námestie 14290/1 | E66: Bratislava | F66: 832 80 | G66: www.james.sk | H66: office@james.sk | I66: Anton Pacek | J66: predseda | K66: Anton Pacek | L66: 421911597705 | M66: SK53 0200 0000 0017 7177 3057 | R66: 00586455
A67: 31771688 | B67: Slovenský kolkársky zväz | C67: občianske združenie | D67: Štúrova 1158/22 | E67: Piešťany | F67: 921 01 | G67: www.kolky.sk | H67: sekretariat@kolky.sk | I67: Štefan Kočan | J67: prezident | K67: Eva Ondrejkovičová | L67: 421905762340 | M67: SK56 0200 0000 0017 8579 0958 | R67: =A67 -> 31771688
A68: 31805540 | B68: Slovenský krasokorčuliarsky zväz | C68: občianske združenie | D68: Záhradnícka 752/95 | E68: Bratislava | F68: 821 08 | G68: www.kraso.sk | H68: slovakskating@kraso.sk | I68: Peter Majerník | J68: predseda | K68: Jozef Beständig | L68: 421905504040 | M68: SK14 0200 0000 0017 8521 4758 | R68: 31805540
A69: 30793009 | B69: Slovenský lukostrelecký zväz | C69: občianske združenie | D69: Olympijské námestie 14290/1 | E69: Bratislava | F69: 832 80 | G69: www.archerysvk.sk | H69: office@archerysvk.sk | I69: Vladimír Bužek | J69: predseda | K69: Vladimír Bužek | L69: 421903202270 | M69: SK53 0900 0000 0051 1920 0627 | R69: 30793009
A70: 00677604 | B70: Slovenský národný aeroklub generála Milana Rastislava Štefánika | C70: občianske združenie | D70: Pri Rajčianke 49 | E70: Žilina | F70: 010 01 | G70: www.sna.sk | H70: sna@sna.sk | I70: Miroslav Gábor | J70: prezident | K70: Marcela Nagyová | L70: 421911928826 | M70: SK61 0900 0000 0051 8920 0921 | R70: 00677604
A71: 30811082 | B71: Slovenský olympijský a športový výbor | C71: občianske združenie | D71: Olympijské námestie 14290/1 | E71: Bratislava 3 | F71: 831 04 | G71: www.olympic.sk | H71: office@olympic.sk | I71: Anton Siekel | J71: prezident | K71: Gábor Asványi; Patrik Hrbek | L71: 421903584992; 421911090490 | M71: SK07 1100 0000 0026 2702 3539 | R71: 30811082
A72: 31745661 | B72: Slovenský paralympijský výbor | C72: občianske združenie | D72: Benediktiho 5 | E72: Bratislava 1 | F72: 811 05 | G72: www.spv.sk | H72: spcoffice@spv.sk | I72: Ján Riapoš | J72: predseda | K72: Ján Riapoš; Maroš Čambal | L72: 421905788436; 421257789713 | M72: SK62 8120 0000 0014 1226 2060 | R72: 31745661
A73: 30688060 | B73: Slovenský rýchlokorčuliarsky zväz | C73: občianske združenie | D73: T.Vansovej 2171/1 | E73: Spišská Nová Ves | F73: 052 01 | G73: www.speedskating.sk | H73: info@speedskating.sk | I73: Ivana Iliašová | J73: predseda | K73: Ján Magdoško | L73: 421903601379 | M73: SK49 5600 0000 0075 0146 2002 | R73: 30688060
A74: 30806836 | B74: Slovenský stolnotenisový zväz | C74: občianske združenie | D74: Černockého 6 | E74: Bratislava | F74: 831 53 | G74: www.sstz.sk | H74: sstz1@sstz.sk | I74: Anton Hamran | J74: predseda | K74: Ivica Hatalová | L74: 421903370792 | M74: SK09 0900 0000 0051 6511 8018 | R74: 30806836
A75: 00603341 | B75: SLOVENSKÝ STRELECKÝ ZVÄZ | C75: občianske združenie | D75: Wolkrova 4 | E75: Bratislava | F75: 851 01 | G75: www.shooting.sk | H75: ssz@shooting.sk | I75: Miloslav Benca | J75: prezident | K75: Ján Kulich | L75: 421905795511 | M75: SK12 0900 0000 0001 1080 4827 | R75: 00603341
A76: 17310571 | B76: Slovenský šachový zväz | C76: občianske združenie | D76: Bernolákovo námestie 25 | E76: Nové Zámky | F76: 940 01 | G76: www.chess.sk | H76: sekretariat@chess.sk | I76: Milan Roman | J76: prezident | K76: Vladimír Szűcs | L76: 421903363993 | M76: SK71 1111 0000 0066 0114 7013 | R76: 17310571
A77: 30806437 | B77: Slovenský šermiarsky zväz | C77: občianske združenie | D77: Trnavská cesta 39 | E77: Bratislava | F77: 831 04 | G77: ww.slovak-fencing.sk | H77: slovak-fencing@slovak-fencing.sk | I77: Attila Érsek | J77: prezident | K77: Gabriela Geršiová | L77: 421903740961 | M77: SK15 0200 0000 0017 8550 2151 | R77: 30806437
A78: 30811384 | B78: Slovenský tenisový zväz | C78: občianske združenie | D78: Príkopova 6 | E78: Bratislava | F78: 831 03 | G78: www.stz.sk | H78: stz@stz.sk | I78: Miloslav Mečíř | J78: prezident | K78: Ivan Greguška | L78: 421903714918 | M78: SK34 0900 0000 0052 0010 1394 | R78: 30811384
A79: 00688304 | B79: Slovenský veslársky zväz | C79: občianske združenie | D79: FTVŠ, Nábrežie armádneho generála Ludvíka Svobodu 4298/9 | E79: Bratislava | F79: 814 69 | G79: www.veslovanie.sk | H79: rowingslovakia@gmail.com | I79: Ján Žiška | J79: predseda | K79: Stanislava Vičanová | L79: 421918882990 | M79: SK97 0200 0000 0017 8584 7256 | R79: 00688304
A80: 31791981 | B80: SLOVENSKÝ ZÁPASNÍCKY ZVÄZ | C80: občianske združenie | D80: Olympijské námestie 14290/1 | E80: Bratislava | F80: 832 80 | G80: www.slovenskezapasenie.sk | H80: szz@zapasenie.sk | I80: Štefánia Galandová | J80: generálna sekretárka | K80: Štefánia Galandová | L80: 421917476268 | M80: SK64 0200 0000 0017 8575 3954 | R80: 31791981
A81: 30811546 | B81: Slovenský zväz bedmintonu | C81: občianske združenie | D81: Slovenská 19 | E81: Prešov | F81: 080 01 | G81: www.bedminton.sk | H81: sekretar@bedminton.sk | I81: Zuzana Rajdugová | J81: generálna sekretárka | K81: Zuzana Rajdugová | L81: 421905193404 | M81: SK47 5600 0000 0008 5511 7001 | R81: 30811546
A82: 35656743 | B82: Slovenský zväz biatlonu | C82: občianske združenie | D82: Partizánska cesta 3501/71 | E82: Banská Bystrica | F82: 974 01 | G82: www.biathlon.sk | H82: svk@biathlon.sk | I82: Peter Vozár | J82: prezident | K82: Zuzana Donovalová | L82: 421902902970 | M82: SK28 0900 0000 0051 1924 9092 | R82: 35656743
A83: 36067580 | B83: Slovenský zväz bobistov | C83: občianske združenie | D83: Líščie údolie 134 | E83: Bratislava | F83: 841 01 | G83: www.boby.sk | H83: szb@boby.sk | I83: Milan Majtán | J83: predseda | K83: Zdenka Jagnešáková | L83: 421903262626 | M83: SK97 1100 0000 0026 2153 0361 | R83: 36067580
A84: 00684112 | B84: Slovenský zväz cyklistiky | C84: občianske združenie | D84: Kukuričná 13 | E84: Bratislava | F84: 831 03 | G84: www.cyklistikaszc.sk | H84: szc@cyklistikaszc.sk | I84: Peter Privara, Katarína Jakubová | J84: prezident, generálna sekretárka | K84: Michal Rohoň | L84: 421902228191 | M84: SK29 0200 0000 0017 8455 9156 | R84: 00684112
A85: 31806431 | B85: Slovenský zväz dráhového golfu | C85: občianske združenie | D85: Olympijské námestie 14290/1 | E85: Bratislava | F85: 832 80 | G85: www.minigolfsport.sk | H85: manager@minigolfsport.sk | I85: František Drgoň | J85: prezident | K85: René Šimanský | L85: 421905305338 | M85: SK44 0200 0000 0017 8760 5656 | R85: 31806431
A86: 31795421 | B86: Slovenský zväz florbalu | C86: občianske združenie | D86: Olympijské námestie 14290/1 | E86: Bratislava | F86: 832 80 | G86: www.szfb.sk | H86: info@szfb.sk | I86: Martin Kopejtko | J86: prezident | K86: Oto Divinský | L86: 421908979442 | M86: SK09 0900 0000 0051 0969 4061 | R86: 31795421
A87: 30774772 | B87: Slovenský zväz hádzanej | C87: občianske združenie | D87: Olympijské námestie 14290/1 | E87: Bratislava | F87: 831 04 | G87: www.slovakhandball.sk | H87: szh@slovakhandball.sk | I87: Jaroslav Holeša | J87: prezident | K87: Ivan Sabovik | L87: 421903708275 | M87: SK81 8420 0000 0001 7512 8786 | R87: 30774772
A88: 30793211 | B88: Slovenský zväz jachtingu | C88: občianske združenie | D88: Olympijské námestie 14290/1 | E88: Bratislava | F88: 832 80 | G88: www.sailing.sk | H88: szj@sailing.sk | I88: Martin Mydlík | J88: predseda | K88: Zuzana Vargová | L88: 421918529304 | M88: SK82 1100 0000 0029 4803 1855 | R88: 30793211
A89: 17308518 | B89: Slovenský zväz Judo | C89: občianske združenie | D89: Olympijské námestie 14290/1 | E89: Bratislava | F89: 832 80 | G89: www.judo.sk | H89: szj@judo.sk | I89: Jozef Tománek ml., Pavel Zvara | J89: predseda, podpredseda | K89: Sophia Kanátová | L89: 421944318444 | M89: SK08 0200 0000 0017 8526 0359 | R89: 17308518
A90: 30811571 | B90: Slovenský Zväz Karate | C90: občianske združenie | D90: Olympijské námestie 14290/1 | E90: Bratislava | F90: 832 80 | G90: www.karate.sk | H90: karate@karate.sk | I90: Daniel Líška | J90: prezident | K90: Leopold Roman | L90: 421903692095 | M90: SK51 0200 0000 0017 8666 3854 | R90: 30811571
A91: 31119247 | B91: Slovenský zväz kickboxu | C91: občianske združenie | D91: Olympijské námestie 14290/1 | E91: Bratislava | F91: 832 80 | G91: www.slovak-kickboxing.sk | H91: onuscak@kickboxing.sk | I91: Jozef Kolozsy | J91: prezident | K91: Viliam Sabol | L91: 421915499077 | M91: SK90 0200 0000 0017 8509 1655 | R91: 31119247
A92: 30845386 | B92: Slovenský zväz ľadového hokeja | C92: občianske združenie | D92: Trnavská cesta 27/B | E92: Bratislava | F92: 831 04 | G92: www.hockeyslovakia.sk | H92: hujo@szlh.sk | I92: Miroslav Lažo | J92: generálny sekretár | K92: Andrea Urbanová | L92: 421905234323 | M92: SK58 0200 0000 0013 0803 9053 | R92: 30845386
A93: 30865930 | B93: Slovenský zväz malého futbalu | C93: občianske združenie | D93: Ružinovská 28 | E93: Bratislava 2 | F93: 821 03 | G93: www.malyfutbal.sk | H93: peter.kralik@malyfutbal.sk | I93: Peter Králik | J93: prezident | K93: Peter Králik | L93: 421915902632 | M93: SK19 1100 0000 0029 4108 0902 | R93: 30865930
A94: 30788714 | B94: Slovenský zväz moderného päťboja | C94: občianske združenie | D94: Olympijské námestie 14290/1 | E94: Bratislava | F94: 832 80 | G94: www.pentathlon.sk | H94: smpa@pentathlon.sk | I94: Dušan Poláček ml. | J94: predseda | K94: Dušan Poláček st. | L94: 421905650170 | M94: SK71 0200 0000 0017 8531 6455 | R94: 30788714
A95: 30806518 | B95: Slovenský zväz orientačných športov | C95: občianske združenie | D95: Olympijské námestie 14290/1 | E95: Bratislava | F95: 832 80 | G95: www.orienteering.sk | H95: slovakia@orienteering.sk | I95: Andrej Patráš | J95: predseda | K95: Milan Mazúr | L95: 421903636503 | M95: SK88 1100 0000 0026 2876 2843 | R95: 30806518
A96: 31751075 | B96: Slovenský zväz pozemného hokeja | C96: občianske združenie | D96: Jurkovičova 5 | E96: Bratislava | F96: 831 06 | G96: www.szph.sk | H96: szph@szph.sk | I96: Ľudmila Pastorová | J96: predseda | K96: Matej Boho | L96: 421917263316 | M96: SK12 0200 0000 0017 8578 5251 | R96: 31751075
A97: 37818058 | B97: Slovenský zväz psích záprahov | C97: občianske združenie | D97: M.R.Štefánika 217 | E97: Vranov nad Topľou | F97: 093 01 | G97: www.mushing.sk | H97: igorpribula11@gmail.com | I97: Igor Pribula | J97: prezident | K97: Igor Pribula | L97: 421905486716 | M97: SK61 5600 0000 0012 2522 5002 | R97: 37818058
A98: 00896896 | B98: Slovenský zväz rádioamatérov | C98: občianske združenie | D98: Mlynská 4 | E98: Stupava | F98: 900 31 | G98: www.hamradio.sk | H98: szr@szr.sk | I98: Roman Kudláč | J98: prezident | M98: SK41 0200 0000 0037 9716 9551 | R98: 00896896
A99: 31871526 | B99: Slovenský zväz rybolovnej techniky | C99: občianske združenie | D99: Svornosti 69 | E99: Nové Zámky | F99: 940 77 | G99: www.szrtnz.sk | H99: szrtnz@szm.sk | I99: Juraj Mészáros | J99: prezident | K99: Juraj Mészáros | L99: 421905235472 | M99: SK93 0200 0000 3500 2413 6172 | R99: 31871526
A100: 31989373 | B100: Slovenský zväz sánkarov | C100: občianske združenie | D100: Starý Smokovec 18074 | E100: Vysoké Tatry | F100: 062 01 | G100: www.sane.sk | H100: sane@sane.sk | I100: Viera Bachárová Findurová | J100: predseda | K100: Viera Bachárová Findurová | L100: 421905970041 | M100: SK77 7500 0000 0006 1310 1613 | R100: 31989373
A101: 17326087 | B101: Slovenský zväz športovcov s mentálnym postihnutím | C101: občianske združenie | D101: SNP 90 | E101: Košice-Lorinčík | F101: 040 11 | G101: www.szsmp.sk | H101: robert@cassovianet.sk | I101: Róbert Luby | J101: Funkciapredseda | L101: 421907953701 | R101: 17326087
A102: 42219922 | B102: Slovenský zväz športového ju-jitsu | C102: občianske združenie | D102: Sládkovičova 454/16 | E102: Martin | F102: 036 01 | G102: www.szsjj.sk | H102: predseda@szsjj.sk | I102: Miroslav Ševčík | J102: predseda | K102: Miroslav Ševčík | L102: 421915879583 | M102: SK04 1100 0000 0029 4113 5395 | R102: 42219922
A103: 51118831 | B103: Slovenský zväz športového rybolovu | C103: občianske združenie | D103: Andreja Kmeťa 314/20 | E103: Žilina | F103: 010 01 | G103: www.szsr.sk | H103: sekretariatszsr@gmail.com | I103: Jaroslav Sámela | J103: prezident | K103: Mária Sprušanská | L103: 421918711548 | M103: SK96 0200 0000 0041 7420 1353 | R103: 51118831
A104: 37938941 | B104: Slovenský zväz Taekwon-Do ITF | C104: občianske združenie | D104: Trnavská 18 | E104: Smolenice | F104: 919 04 | G104: www.sztkd-itf.sk | H104: sztkditf@gmail.com | I104: Matej Košalko | J104: prezident | K104: Ladislav Huňady | L104: 421908553335 | M104: SK27 1100 0000 0026 2903 9227 | R104: 37938941
A105: 00684767 | B105: Slovenský zväz tanečných športov | C105: občianske združenie | D105: Olympijské námestie 14290/1 | E105: Bratislava | F105: 832 80 | G105: www.szts.sk | H105: szts@szts.sk | I105: Peter Ivanič | J105: prezident | K105: Peter Ivanič | L105: 421905245008 | M105: SK50 0200 0000 0019 7814 8953 | R105: 00684767
A106: 22665234 | B106: Slovenský zväz telesne postihnutých športovcov | C106: občianske združenie | D106: Benediktiho 5 | E106: Bratislava 1 | F106: 811 05 | G106: www.sztps.sk | H106: tps@sztps.sk | I106: Ján Riapoš | J106: predseda | K106: Ján Riapoš Martina Balcová | L106: 421905788436; 421918940356 | M106: SK47 8120 0000 0014 1246 5060 | R106: 22665234
A107: 30793203 | B107: Slovenský zväz vodného lyžovania a wakeboardingu | C107: občianske združenie | D107: Olympijské námestie 14290/1 | E107: Bratislava | F107: 832 80 | G107: www.waterski.sk | H107: waterski@waterski.sk | I107: Alexander Vaško | J107: predseda | K107: Denisa Oravcová | L107: 421918808923 | M107: SK65 0200 0000 0017 8165 3358 | R107: 30793203
A108: 00681768 | B108: Slovenský zväz vodného motorizmu | C108: občianske združenie | D108: Trnavská cesta 29 | E108: Bratislava | F108: 832 84 | G108: www.szvm.sk | H108: szvm@szvm.sk | I108: Marian Jung | J108: predseda | K108: Marian Jung | L108: 421905418010 | M108: SK48 0900 0000 0051 2383 8869 | R108: 00681768
A109: 31796079 | B109: Slovenský zväz vzpierania | C109: občianske združenie | D109: Olympijské námestie 14290/1 | E109: Bratislava | F109: 832 80 | G109: www.vzpieranie.sk | H109: chairmanswf@gmail.com | I109: Tomáš Chovanec | J109: predseda | K109: Tomáš Chovanec | L109: 421915282858 | M109: SK44 0200 0000 0017 8558 1654 | R109: 31796079
A110: 51806606 | B110: ST Relax o.z. | C110: občianske združenie | D110: Karpatské nám. 7770/8 | E110: Bratislava | F110: 831 06 | G110: www.strelax.sk | H110: hamran.anton@gmail.com | I110: Anton Hamran | J110: predseda | K110: Anton Hamran | L110: 421905245825 | M110: SK15 7500 0000 00402664 6510 | R110: 51806606
A111: 31807399 | B111: ŠK Sandberg, o.z. | C111: občianske združenie | D111: J. Smreka 10 | E111: Bratislava | F111: 841 08 | G111: http://sandberg.orienteering.sk/ | H111: jan.mazak@gmail.com | I111: Radoslav Jonáš | J111: predseda o. z. | K111: Ján Mazák | L111: 421902488202 | M111: SK90 8330 0000 0020 0178 4563 | R111: 31807399
A112: 30811406 | B112: Špeciálne olympiády Slovensko | C112: občianske združenie | D112: Trnavská cesta 37 | E112: Bratislava 3 | F112: 831 04 | G112: www.specialolympics.sk | H112: office@specialolympics.sk | I112: Eva Gažová | J112: Národná riaditeľka | K112: Eva Gažová | L112: 421917176673 | M112: SK31 0200 0000 0013 5172 7951 | R112: 30811406
A113: 42184827 | B113: Športová akadémia Mateja Tótha, o. z. | C113: občianske združenie | D113: Trnavská cesta 37 | E113: Bratislava 3 | F113: 831 04 | G113: www.akademiamatejatotha.sk | H113: bedlekova@akademiamatejatotha.sk | I113: Michal Tóth, Daniel Pastorek | J113: Vedúci člen predstavenstva a štatutár | K113: Mária Bedleková | L113: 421915165745 | M113: SK49 0900 0000 0051 2925 8435 | R113: 42184827
A114: 36102181 | B114: Športový klub DELFÍN Nitra | C114: občianske združenie | D114: Za Humnami 732/43 | E114: Nitra | F114: 949 01 | G114: www.slovakman.sk | H114: info@slovakman.sk | I114: Bc.Pavol Peciar | J114: predseda | K114: Ing. Marian Pavuk | L114: 421903777426 | M114: SK34 0900 0000 0051 4349 1030 | R114: 36102181
A115: 42250765 | B115: Športový klub polície Košice - ILYO Taekwondo | C115: občianske združenie | D115: Stará spišská cesta 2166/38 | E115: Košice | F115: 040 01 | G115: https://www.ilyo-tkd.com | H115: ilyo.kosice@gmail.com | I115: Ing. Pavel Ižarik | J115: predseda | K115: Bc. Gabriela Ižariková | M115: SK31 8330 0000 0028 0160 2326 | R115: 42250765
A116: 31794050 | B116: Športový klub SPC Častá | C116: občianske združenie | D116: Zámocká 237/20 | E116: Častá | F116: 900 89 | G116: www.spc.sk | H116: dominikdugovic@gmail.com | I116: Pavol Kovalčík | J116: predseda | K116: Dominik Dugovič | L116: 421917937501 | M116: SK37 0900 0000 0001 8049 6743 | R116: 31794050
A117: 31997449 | B117: Športový klub Zemplín, oddiel judo o.z. | C117: občianske združenie | D117: Športová 3830/31 | E117: Michalovce | F117: 071 01 | G117: www.judomichalovce.com | H117: judomichalovce@gmail.com | I117: Viliam Kohút | J117: predseda o.z. | K117: Bc. Gabriel Čopák | L117: 421949335971 | M117: SK98 0900 0000 0051 8616 2894 | R117: 31997449
A118: 31785131 | B118: TANEČNO ŠPORTOVÝ KLUB M+M BRATISLAVA pri ZŠ Ostredková | C118: občianske združenie | D118: Ostredková 3234/14 | E118: Bratislava-Ružinov | F118: 821 02 | G118: www.tskmm.sk | H118: milan_spanik@tskmm.sk | I118: Mgr.Milan Špánik, PhD. | J118: predseda klubu | K118: Mgr.Milan Špánik, PhD. | L118: 421903851953 | M118: SK17 7500 0000 0040 0803 4502 | R118: 31785131
A119: 00592129 | B119: Telovýchovná jednota Nižná | C119: občianske združenie | D119: Lesná 1006 | E119: Nižná | F119: 027 43 | G119: www.cykloklubnizna.sk | H119: kubos.milos@gmail.com | I119: Bc. Zuzana Oriešková | J119: štatutárny zástupca | K119: Miloš Kuboš | L119: 421911466881 | M119: SK 78 0900 0000 0000 5418 8037 | R119: 00592129
A120: 14220059 | B120: Telovýchovná jednota Športový klub Podbiel | C120: občianske združenie | D120: Podčervencie 351 | E120: Podbiel | F120: 027 42 | H120: drevodomsitek@gmail.com | I120: Ing. Ján Sitek | J120: predseda TJ ŠK Podbiel | K120: Ing. Ján Sitek | L120: 421903543319 | M120: SK04 0200 0000 0024 8430 9555 | R120: 14220059
A121: 53007344 | B121: Teqballová federácia Slovensko | C121: občianske združenie | D121: Jazdecká 13198/1A | E121: Prešov | F121: 080 01 | G121: www.teq.sk | H121: info@teq.sk | I121: Artúr Benes | J121: prezident | K121: Artúr Benes | L121: 421918648073 | M121: SK21 1111 0000 0016 2429 8006 | R121: 53007344
A122: 00896063 | B122: TJ Sokol SOŠ Trebišov | C122: občianske združenie | D122: Komenského 12 | E122: Trebišov | F122: 075 01 | G122: www.sokolnaslovensku.sk | H122: tassova@centrum.sk | I122: Alžbeta Taššová | J122: starostka | K122: Alžbeta Taššová | L122: 421903641332 | M122: SK14 0900 0000 0001 0583 1310 | R122: 00896063
A123: 54750342 | B123: Yacht Club Fun Sailing | C123: občianske združenie | D123: Humenská 3553/5 | E123: Michalovce | F123: 071 01 | H123: yachtclubfunsailing@gmail.com | I123: Peter Kincel | J123: predseda | K123: Peter Kincel | L123: 421950678050 | M123: SK25 8330 0000 0022 0289 5833 | R123: 54750342
A124: 30227151 | B124: Zápasnícky klub Baník Prievidza, o.z. | C124: občianske združenie | D124: Olympionikov 4 | E124: Prievidza | F124: 971 01 | G124: https://www.facebook.com/groups/202767165548 | H124: wrestlingprievidza@gmail.com | I124: Vladimír LACO | J124: prezident ZK | K124: Vlasta Švikruhová | L124: 421915867076 | M124: SK32 1100 0000 0026 2484 8834 | R124: 30227151
A125: 42103908 | B125: Zápasnícky klub Košice 1904 o.z. | C125: občianske združenie | D125: Werferova 2582/1 | E125: Košice | F125: 040 11 | G125: http://www.zapasenie-kosice.sk/ | H125: zalepova@ekon-servis.sk | I125: JUDr. Ján Tokár | J125: Prezident zápasníckeho klubu | K125: Anna Zalepová | L125: 421903621957 | M125: SK48 1100 0000 0029 2982 7604 | R125: 42103908
A126: 35538015 | B126: Združenie šípkarských organizácií | C126: občianske združenie | D126: Szakkayho 1 | E126: Košice | F126: 040 01 | G126: www.slovakiadart.sk | H126: info@sipky.sk | I126: Karol Kirchner | J126: predseda | K126: Karol Kirchner | L126: 421905700790 | M126: SK26 0900 0000 0005 7536 2504 | R126: 35538015
A127: 00585319 | B127: Zväz potápačov Slovenska | C127: občianske združenie | D127: Wolkrova 4 | E127: Bratislava | F127: 851 01 | G127: www.zps-diving.sk | H127: zps@zps-diving.sk | I127: Roman Baláž | J127: prezident | K127: Zuzana Žecová | L127: 421918737877 | M127: SK26 0200 0000 0017 8515 2753 | R127: 00585319
A128: 42132690 | B128: Zväz slovenského kolieskového korčuľovania | C128: občianske združenie | D128: Trnavská 3273/37 | E128: Bratislava 3 | F128: 831 04 | G128: www.slovakskate.sk | H128: president@slovakskate.sk | I128: Štefan Pjontek | J128: predseda | K128: Štefan Pjontek | L128: 421903422249 | M128: SK68 0200 0000 0046 8802 7153 | R128: 42132690
A129: 50671669 | B129: Zväz slovenského lyžovania | C129: občianske združenie | D129: Galvaniho 16617/17A | E129: Bratislava | F129: 821 04 | G129: www.zsl.sk | H129: sekretariat@zsl.sk | I129: Martin Paško | J129: prezident | K129: Radovan Cagala | L129: 421905641479 | M129: SK72 0900 0000 0051 8522 2656 | R129: 50671669
R130: =A130 -> 0
R131: 0
R132: 0
R133: 0
R134: 0
R135: 0
R136: 0
R137: 0
R138: 0
R139: 0
R140: 0
R141: 0
R142: 0
R143: 0
R144: 0
R145: 0
R146: 0
R147: 0
R148: 0
R149: 0
R150: 0
R151: 0
R152: 0
R153: 0
R154: 0

Sheet FP (hidden)
A1: IČO | B1: Prijímateľ | C1: Predmet (názov, miesto, termín, parametre) | D1: Schválená (eur) | E1: SF (%) | F1: Účel | G1: PPG | H1: B/K | I1: ico+ucel | J1: ico+ppg | K1: Šport | L1: ICO+PPG+BK | M1: Zoraď | N1: ico+ucel+B/K
A2: 53623517 | B2: =VLOOKUP(A2,Adr!A:B,2,FALSE) -> Breaking Slovakia, o.z. | C2: The Legits Blast | D2: 10000 | E2: 0 | F2: m | G2: 026 03 | H2: B | I2: =A2&F2 -> 53623517m | J2: =A2&G2 -> 53623517026 03 | L2: =A2&G2&H2 -> 53623517026 03B | M2: =B2&F2&H2&C2 -> Breaking Slovakia, o.z. mBThe Legits Blast | N2: =+I2&H2 -> 53623517mB
A3: 42254388 | B3: =VLOOKUP(A3,Adr!A:B,2,FALSE) -> Deaflympijský výbor Slovenska | C3: zabezpečenie činnosti a úloh v roku 2024 | D3: 372141 | E3: 0 | F3: c | G3: 026 03 | H3: B | I3: 42254388c | J3: 42254388026 03 | L3: 42254388026 03B | M3: Deaflympijský výbor SlovenskacBzabezpečenie činnosti a úloh v roku 2024 | N3: 42254388cB
A4: 42254388 | B4: =VLOOKUP(A4,Adr!A:B,2,FALSE) -> Deaflympijský výbor Slovenska | C4: Antušeková Martina | D4: 20000 | E4: 0 | F4: d | G4: 026 03 | H4: B | I4: 42254388d | J4: 42254388026 03 | L4: 42254388026 03B | M4: Deaflympijský výbor SlovenskadBAntušeková Martina | N4: 42254388dB
A5: 42254388 | B5: =VLOOKUP(A5,Adr!A:B,2,FALSE) -> Deaflympijský výbor Slovenska | C5: Birošová Tereza | D5: 30000 | E5: 0 | F5: d | G5: 026 03 | H5: B | I5: 42254388d | J5: 42254388026 03 | L5: 42254388026 03B | M5: Deaflympijský výbor SlovenskadBBirošová Tereza | N5: 42254388dB
A6: 42254388 | B6: =VLOOKUP(A6,Adr!A:B,2,FALSE) -> Deaflympijský výbor Slovenska | C6: Ďuriš Matúš | D6: 20000 | E6: 0 | F6: d | G6: 026 03 | H6: B | I6: 42254388d | J6: 42254388026 03 | L6: 42254388026 03B | M6: Deaflympijský výbor SlovenskadBĎuriš Matúš | N6: 42254388dB
A7: 42254388 | B7: =VLOOKUP(A7,Adr!A:B,2,FALSE) -> Deaflympijský výbor Slovenska | C7: Jánošíková Jana | D7: 20000 | E7: 0 | F7: d | G7: 026 03 | H7: B | I7: 42254388d | J7: 42254388026 03 | L7: 42254388026 03B | M7: Deaflympijský výbor SlovenskadBJánošíková Jana | N7: 42254388dB
A8: 42254388 | B8: =VLOOKUP(A8,Adr!A:B,2,FALSE) -> Deaflympijský výbor Slovenska | C8: Jelínek Rastislav | D8: 40000 | E8: 0 | F8: d | G8: 026 03 | H8: B | I8: 42254388d | J8: 42254388026 03 | L8: 42254388026 03B | M8: Deaflympijský výbor SlovenskadBJelínek Rastislav | N8: 42254388dB
A9: 42254388 | B9: =VLOOKUP(A9,Adr!A:B,2,FALSE) -> Deaflympijský výbor Slovenska | C9: Keinath Thomas | D9: 50000 | E9: 0 | F9: d | G9: 026 03 | H9: B | I9: 42254388d | J9: 42254388026 03 | L9: 42254388026 03B | M9: Deaflympijský výbor SlovenskadBKeinath Thomas | N9: 42254388dB
A10: 42254388 | B10: =VLOOKUP(A10,Adr!A:B,2,FALSE) -> Deaflympijský výbor Slovenska | C10: Krištofičová Ivana | D10: 40000 | E10: 0 | F10: d | G10: 026 03 | H10: B | I10: 42254388d | J10: 42254388026 03 | L10: 42254388026 03B | M10: Deaflympijský výbor SlovenskadBKrištofičová Ivana | N10: 42254388dB
A11: 42254388 | B11: =VLOOKUP(A11,Adr!A:B,2,FALSE) -> Deaflympijský výbor Slovenska | C11: Lepótová Amália | D11: 20000 | E11: 0 | F11: d | G11: 026 03 | H11: B | I11: 42254388d | J11: 42254388026 03 | L11: 42254388026 03B | M11: Deaflympijský výbor SlovenskadBLepótová Amália | N11: 42254388dB
A12: 42254388 | B12: =VLOOKUP(A12,Adr!A:B,2,FALSE) -> Deaflympijský výbor Slovenska | C12: Novotná Eva | D12: 50000 | E12: 0 | F12: d | G12: 026 03 | H12: B | I12: 42254388d | J12: 42254388026 03 | L12: 42254388026 03B | M12: Deaflympijský výbor SlovenskadBNovotná Eva | N12: 42254388dB
A13: 42254388 | B13: =VLOOKUP(A13,Adr!A:B,2,FALSE) -> Deaflympijský výbor Slovenska | C13: Petrovič Peter | D13: 15000 | E13: 0 | F13: d | G13: 026 03 | H13: B | I13: 42254388d | J13: 42254388026 03 | L13: 42254388026 03B | M13: Deaflympijský výbor SlovenskadBPetrovič Peter | N13: 42254388dB
A14: 42254388 | B14: =VLOOKUP(A14,Adr!A:B,2,FALSE) -> Deaflympijský výbor Slovenska | C14: Štetková Ema | D14: 15000 | E14: 0 | F14: d | G14: 026 03 | H14: B | I14: 42254388d | J14: 42254388026 03 | L14: 42254388026 03B | M14: Deaflympijský výbor SlovenskadBŠtetková Ema | N14: 42254388dB
A15: 42254388 | B15: =VLOOKUP(A15,Adr!A:B,2,FALSE) -> Deaflympijský výbor Slovenska | C15: Vaco Marek | D15: 17500 | E15: 0 | F15: d | G15: 026 03 | H15: B | I15: 42254388d | J15: 42254388026 03 | L15: 42254388026 03B | M15: Deaflympijský výbor SlovenskadBVaco Marek | N15: 42254388dB
A16: 50642804 | B16: =VLOOKUP(A16,Adr!A:B,2,FALSE) -> iCompete Natural Slovakia | C16: rozvoj športov, ktoré nie sú uznanými podľa zákona č. 440/2015 Z. z. | D16: 30300 | E16: 0 | F16: g | G16: 026 03 | H16: B | I16: 50642804g | J16: 50642804026 03 | L16: 50642804026 03B | M16: iCompete Natural SlovakiagBrozvoj športov, ktoré nie sú uznanými podľa zákona č. 440/2015 Z. z. | N16: 50642804gB
A17: 31788394 | B17: =VLOOKUP(A17,Adr!A:B,2,FALSE) -> Karloveské tanečné centrum | C17: Grand Prix Tyrnavia 2024 | D17: 10000 | E17: 0 | F17: m | G17: 026 03 | H17: B | I17: 31788394m | J17: 31788394026 03 | L17: 31788394026 03B | M17: Karloveské tanečné centrum mBGrand Prix Tyrnavia 2024 | N17: 31788394mB
A18: 31940803 | B18: =VLOOKUP(A18,Adr!A:B,2,FALSE) -> Klub plaveckých športov Nereus Žilina o.z. | C18: Žilinský triatlonový festival - M-SR+ČR v olympijskom triatlone | D18: 10000 | E18: 0 | F18: m | G18: 026 03 | H18: B | I18: 31940803m | J18: 31940803026 03 | L18: 31940803026 03B | M18: Klub plaveckých športov Nereus Žilina o.z. mBŽilinský triatlonový festival - M-SR+ČR v olympijskom triatlone | N18: 31940803mB
A19: 00688312 | B19: =VLOOKUP(A19,Adr!A:B,2,FALSE) -> Klub slovenských turistov | C19: značenie turistických trás | D19: 120000 | E19: 0 | F19: f | G19: 026 01 | H19: B | I19: 00688312f | J19: 00688312026 01 | L19: 00688312026 01B | M19: Klub slovenských turistovfBznačenie turistických trás | N19: 00688312fB
A20: 42269423 | B20: =VLOOKUP(A20,Adr!A:B,2,FALSE) -> MAMMAL - Slovenský zväz MMA | C20: rozvoj športov, ktoré nie sú uznanými podľa zákona č. 440/2015 Z. z. | D20: 36300 | E20: 0 | F20: g | G20: 026 03 | H20: B | I20: 42269423g | J20: 42269423026 03 | L20: 42269423026 03B | M20: MAMMAL - Slovenský zväz MMAgBrozvoj športov, ktoré nie sú uznanými podľa zákona č. 440/2015 Z. z. | N20: 42269423gB
A21: 00630616 | B21: =VLOOKUP(A21,Adr!A:B,2,FALSE) -> Maratón klub Rajec | C21: 41. Ročník Rajeckého maratónu | D21: 10000 | E21: 0 | F21: m | G21: 026 03 | H21: B | I21: 00630616m | J21: 00630616026 03 | L21: 00630616026 03B | M21: Maratón klub Rajec mB41. Ročník Rajeckého maratónu | N21: 00630616mB
A22: 00595209 | B22: =VLOOKUP(A22,Adr!A:B,2,FALSE) -> Maratónsky klub Košice | C22: Medzinárodný maratón mieru | D22: 60000 | E22: 0 | F22: e | G22: 026 03 | H22: B | I22: 00595209e | J22: 00595209026 03 | L22: 00595209026 03B | M22: Maratónsky klub KošiceeBMedzinárodný maratón mieru | N22: 00595209eB
A23: 35994134 | B23: =VLOOKUP(A23,Adr!A:B,2,FALSE) -> Mládežnícka basketbalová akadémia Prievidza | C23: DODO CUP | D23: 9700 | E23: 0 | F23: m | G23: 026 03 | H23: B | I23: 35994134m | J23: 35994134026 03 | L23: 35994134026 03B | M23: Mládežnícka basketbalová akadémia Prievidza mBDODO CUP | N23: 35994134mB
A24: 42136971 | B24: =VLOOKUP(A24,Adr!A:B,2,FALSE) -> PERUN o.z. | C24: Račiansky kros LETO 2024 | D24: 5940 | E24: 0 | F24: m | G24: 026 03 | H24: B | I24: 42136971m | J24: 42136971026 03 | L24: 42136971026 03B | M24: PERUN o.z. mBRačiansky kros LETO 2024 | N24: 42136971mB
A25: 30787009 | B25: =VLOOKUP(A25,Adr!A:B,2,FALSE) -> Slovenská asociácia amerického futbalu, o.z. | C25: americký futbal - bežné transfery | D25: 32026 | E25: 0 | F25: a | G25: 026 02 | H25: B | I25: 30787009a | J25: 30787009026 02 | K25: americký futbal | L25: 30787009026 02B | M25: Slovenská asociácia amerického futbalu, o.z.aBamerický futbal - bežné transfery | N25: 30787009aB
A26: 30787009 | B26: =VLOOKUP(A26,Adr!A:B,2,FALSE) -> Slovenská asociácia amerického futbalu, o.z. | C26: americký futbal - 20 % navýšenie | D26: 6032 | E26: 0 | F26: f | G26: 026 03 | H26: B | I26: 30787009f | J26: 30787009026 03 | L26: 30787009026 03B | M26: Slovenská asociácia amerického futbalu, o.z.fBamerický futbal - 20 % navýšenie | N26: 30787009fB
A27: 50897152 | B27: =VLOOKUP(A27,Adr!A:B,2,FALSE) -> Slovenská Asociácia Bandy, skrátený názov SAB | C27: rozvoj športov, ktoré nie sú uznanými podľa zákona č. 440/2015 Z. z. | D27: 36300 | E27: 0 | F27: g | G27: 026 03 | H27: B | I27: 50897152g | J27: 50897152026 03 | L27: 50897152026 03B | M27: Slovenská Asociácia Bandy, skrátený názov SABgBrozvoj športov, ktoré nie sú uznanými podľa zákona č. 440/2015 Z. z. | N27: 50897152gB
A28: 00631655 | B28: =VLOOKUP(A28,Adr!A:B,2,FALSE) -> Slovenská asociácia boccie | C28: boccia - bežné transfery | D28: 32026 | E28: 0 | F28: a | G28: 026 02 | H28: B | I28: 00631655a | J28: 00631655026 02 | K28: boccia | L28: 00631655026 02B | M28: Slovenská asociácia boccieaBboccia - bežné transfery | N28: 00631655aB
A29: 00631655 | B29: =VLOOKUP(A29,Adr!A:B,2,FALSE) -> Slovenská asociácia boccie | C29: boule lyonnaise - bežné transfery | D29: 32026 | E29: 0 | F29: a | G29: 026 02 | H29: B | I29: 00631655a | J29: 00631655026 02 | K29: boule lyonnaise | L29: 00631655026 02B | M29: Slovenská asociácia boccieaBboule lyonnaise - bežné transfery | N29: 00631655aB
A30: 00631655 | B30: =VLOOKUP(A30,Adr!A:B,2,FALSE) -> Slovenská asociácia boccie | C30: boccia - 20 % navýšenie | D30: 6032 | E30: 0 | F30: f | G30: 026 03 | H30: B | I30: 00631655f | J30: 00631655026 03 | L30: 00631655026 03B | M30: Slovenská asociácia bocciefBboccia - 20 % navýšenie | N30: 00631655fB
A31: 00631655 | B31: =VLOOKUP(A31,Adr!A:B,2,FALSE) -> Slovenská asociácia boccie | C31: boule lyonnaise - 20 % navýšenie | D31: 6032 | E31: 0 | F31: f | G31: 026 03 | H31: B | I31: 00631655f | J31: 00631655026 03 | L31: 00631655026 03B | M31: Slovenská asociácia bocciefBboule lyonnaise - 20 % navýšenie | N31: 00631655fB
A32: 42019541 | B32: =VLOOKUP(A32,Adr!A:B,2,FALSE) -> Slovenská asociácia čínskeho wushu | C32: wushu - bežné transfery | D32: 32026 | E32: 0 | F32: a | G32: 026 02 | H32: B | I32: 42019541a | J32: 42019541026 02 | K32: wushu | L32: 42019541026 02B | M32: Slovenská asociácia čínskeho wushuaBwushu - bežné transfery | N32: 42019541aB
A33: 42019541 | B33: =VLOOKUP(A33,Adr!A:B,2,FALSE) -> Slovenská asociácia čínskeho wushu | C33: wushu - 20 % navýšenie | D33: 6032 | E33: 0 | F33: f | G33: 026 03 | H33: B | I33: 42019541f | J33: 42019541026 03 | L33: 42019541026 03B | M33: Slovenská asociácia čínskeho wushufBwushu - 20 % navýšenie | N33: 42019541fB
A34: 30810108 | B34: =VLOOKUP(A34,Adr!A:B,2,FALSE) -> Slovenská Asociácia Dynamickej Streľby | C34: dynamická streľba - bežné transfery | D34: 53394 | E34: 0 | F34: a | G34: 026 02 | H34: B | I34: 30810108a | J34: 30810108026 02 | K34: dynamická streľba | L34: 30810108026 02B | M34: Slovenská Asociácia Dynamickej StreľbyaBdynamická streľba - bežné transfery | N34: 30810108aB
A35: 30810108 | B35: =VLOOKUP(A35,Adr!A:B,2,FALSE) -> Slovenská Asociácia Dynamickej Streľby | C35: dynamická streľba - 20 % navýšenie | D35: 10057 | E35: 0 | F35: f | G35: 026 03 | H35: B | I35: 30810108f | J35: 30810108026 03 | L35: 30810108026 03B | M35: Slovenská Asociácia Dynamickej StreľbyfBdynamická streľba - 20 % navýšenie | N35: 30810108fB
A36: 30842069 | B36: =VLOOKUP(A36,Adr!A:B,2,FALSE) -> Slovenská asociácia fitnes, kulturistiky a silového trojboja | C36: fitnes a kulturistika - bežné transfery | D36: 775379 | E36: 0 | F36: a | G36: 026 02 | H36: B | I36: 30842069a | J36: 30842069026 02 | K36: fitnes a kulturistika | L36: 30842069026 02B | M36: Slovenská asociácia fitnes, kulturistiky a silového trojbojaaBfitnes a kulturistika - bežné transfery | N36: 30842069aB
A37: 30842069 | B37: =VLOOKUP(A37,Adr!A:B,2,FALSE) -> Slovenská asociácia fitnes, kulturistiky a silového trojboja | C37: silové športy - bežné transfery | D37: 44417 | E37: 0 | F37: a | G37: 026 02 | H37: B | I37: 30842069a | J37: 30842069026 02 | K37: silové športy | L37: 30842069026 02B | M37: Slovenská asociácia fitnes, kulturistiky a silového trojbojaaBsilové športy - bežné transfery | N37: 30842069aB
A38: 30842069 | B38: =VLOOKUP(A38,Adr!A:B,2,FALSE) -> Slovenská asociácia fitnes, kulturistiky a silového trojboja | C38: Draganovská Martina | D38: 15000 | E38: 0 | F38: d | G38: 026 03 | H38: B | I38: 30842069d | J38: 30842069026 03 | L38: 30842069026 03B | M38: Slovenská asociácia fitnes, kulturistiky a silového trojbojadBDraganovská Martina | N38: 30842069dB
A39: 30842069 | B39: =VLOOKUP(A39,Adr!A:B,2,FALSE) -> Slovenská asociácia fitnes, kulturistiky a silového trojboja | C39: Dudušová Rebeka | D39: 15000 | E39: 0 | F39: d | G39: 026 03 | H39: B | I39: 30842069d | J39: 30842069026 03 | L39: 30842069026 03B | M39: Slovenská asociácia fitnes, kulturistiky a silového trojbojadBDudušová Rebeka | N39: 30842069dB
A40: 30842069 | B40: =VLOOKUP(A40,Adr!A:B,2,FALSE) -> Slovenská asociácia fitnes, kulturistiky a silového trojboja | C40: Horná Ivana | D40: 15000 | E40: 0 | F40: d | G40: 026 03 | H40: B | I40: 30842069d | J40: 30842069026 03 | L40: 30842069026 03B | M40: Slovenská asociácia fitnes, kulturistiky a silového trojbojadBHorná Ivana | N40: 30842069dB
A41: 30842069 | B41: =VLOOKUP(A41,Adr!A:B,2,FALSE) -> Slovenská asociácia fitnes, kulturistiky a silového trojboja | C41: Láskavá Bianka | D41: 5000 | E41: 0 | F41: d | G41: 026 03 | H41: B | I41: 30842069d | J41: 30842069026 03 | L41: 30842069026 03B | M41: Slovenská asociácia fitnes, kulturistiky a silového trojbojadBLáskavá Bianka | N41: 30842069dB
A42: 30842069 | B42: =VLOOKUP(A42,Adr!A:B,2,FALSE) -> Slovenská asociácia fitnes, kulturistiky a silového trojboja | C42: Sečkárová Barbora | D42: 5000 | E42: 0 | F42: d | G42: 026 03 | H42: B | I42: 30842069d | J42: 30842069026 03 | L42: 30842069026 03B | M42: Slovenská asociácia fitnes, kulturistiky a silového trojbojadBSečkárová Barbora | N42: 30842069dB
A43: 30842069 | B43: =VLOOKUP(A43,Adr!A:B,2,FALSE) -> Slovenská asociácia fitnes, kulturistiky a silového trojboja | C43: Silvester Silvia | D43: 15000 | E43: 0 | F43: d | G43: 026 03 | H43: B | I43: 30842069d | J43: 30842069026 03 | L43: 30842069026 03B | M43: Slovenská asociácia fitnes, kulturistiky a silového trojbojadBSilvester Silvia | N43: 30842069dB
A44: 30842069 | B44: =VLOOKUP(A44,Adr!A:B,2,FALSE) -> Slovenská asociácia fitnes, kulturistiky a silového trojboja | C44: Soták Ján | D44: 15000 | E44: 0 | F44: d | G44: 026 03 | H44: B | I44: 30842069d | J44: 30842069026 03 | L44: 30842069026 03B | M44: Slovenská asociácia fitnes, kulturistiky a silového trojbojadBSoták Ján | N44: 30842069dB
A45: 30842069 | B45: =VLOOKUP(A45,Adr!A:B,2,FALSE) -> Slovenská asociácia fitnes, kulturistiky a silového trojboja | C45: Stachová Jana | D45: 5000 | E45: 0 | F45: d | G45: 026 03 | H45: B | I45: 30842069d | J45: 30842069026 03 | L45: 30842069026 03B | M45: Slovenská asociácia fitnes, kulturistiky a silového trojbojadBStachová Jana | N45: 30842069dB
A46: 30842069 | B46: =VLOOKUP(A46,Adr!A:B,2,FALSE) -> Slovenská asociácia fitnes, kulturistiky a silového trojboja | C46: Tichá Aneta | D46: 20000 | E46: 0 | F46: d | G46: 026 03 | H46: B | I46: 30842069d | J46: 30842069026 03 | L46: 30842069026 03B | M46: Slovenská asociácia fitnes, kulturistiky a silového trojbojadBTichá Aneta | N46: 30842069dB
A47: 30842069 | B47: =VLOOKUP(A47,Adr!A:B,2,FALSE) -> Slovenská asociácia fitnes, kulturistiky a silového trojboja | C47: Wildová Diana | D47: 20000 | E47: 0 | F47: d | G47: 026 03 | H47: B | I47: 30842069d | J47: 30842069026 03 | L47: 30842069026 03B | M47: Slovenská asociácia fitnes, kulturistiky a silového trojbojadBWildová Diana | N47: 30842069dB
A48: 30842069 | B48: =VLOOKUP(A48,Adr!A:B,2,FALSE) -> Slovenská asociácia fitnes, kulturistiky a silového trojboja | C48: fitnes a kulturistika - 20 % navýšenie | D48: 146041 | E48: 0 | F48: f | G48: 026 03 | H48: B | I48: 30842069f | J48: 30842069026 03 | L48: 30842069026 03B | M48: Slovenská asociácia fitnes, kulturistiky a silového trojbojafBfitnes a kulturistika - 20 % navýšenie | N48: 30842069fB
A49: 30842069 | B49: =VLOOKUP(A49,Adr!A:B,2,FALSE) -> Slovenská asociácia fitnes, kulturistiky a silového trojboja | C49: silový trojboj - 20 % navýšenie | D49: 8366 | E49: 0 | F49: f | G49: 026 03 | H49: B | I49: 30842069f | J49: 30842069026 03 | L49: 30842069026 03B | M49: Slovenská asociácia fitnes, kulturistiky a silového trojbojafBsilový trojboj - 20 % navýšenie | N49: 30842069fB
A50: 31749852 | B50: =VLOOKUP(A50,Adr!A:B,2,FALSE) -> Slovenská asociácia Frisbee | C50: športy s lietajúcim diskom - bežné transfery | D50: 125374 | E50: 0 | F50: a | G50: 026 02 | H50: B | I50: 31749852a | J50: 31749852026 02 | K50: športy s lietajúcim diskom | L50: 31749852026 02B | M50: Slovenská asociácia FrisbeeaBšporty s lietajúcim diskom - bežné transfery | N50: 31749852aB
A51: 31749852 | B51: =VLOOKUP(A51,Adr!A:B,2,FALSE) -> Slovenská asociácia Frisbee | C51: športy s lietajúcim diskom - 20 % navýšenie | D51: 23614 | E51: 0 | F51: f | G51: 026 03 | H51: B | I51: 31749852f | J51: 31749852026 03 | L51: 31749852026 03B | M51: Slovenská asociácia FrisbeefBšporty s lietajúcim diskom - 20 % navýšenie | N51: 31749852fB
A52: 30844711 | B52: =VLOOKUP(A52,Adr!A:B,2,FALSE) -> Slovenská asociácia go | C52: go - bežné transfery | D52: 32026 | E52: 0 | F52: a | G52: 026 02 | H52: B | I52: 30844711a | J52: 30844711026 02 | K52: go | L52: 30844711026 02B | M52: Slovenská asociácia goaBgo - bežné transfery | N52: 30844711aB
A53: 30844711 | B53: =VLOOKUP(A53,Adr!A:B,2,FALSE) -> Slovenská asociácia go | C53: go - 20 % navýšenie | D53: 6032 | E53: 0 | F53: f | G53: 026 03 | H53: B | I53: 30844711f | J53: 30844711026 03 | L53: 30844711026 03B | M53: Slovenská asociácia gofBgo - 20 % navýšenie | N53: 30844711fB
A54: 31940668 | B54: =VLOOKUP(A54,Adr!A:B,2,FALSE) -> Slovenská asociácia korfbalu | C54: korfbal - bežné transfery | D54: 48259 | E54: 0 | F54: a | G54: 026 02 | H54: B | I54: 31940668a | J54: 31940668026 02 | K54: korfbal | L54: 31940668026 02B | M54: Slovenská asociácia korfbaluaBkorfbal - bežné transfery | N54: 31940668aB
A55: 31940668 | B55: =VLOOKUP(A55,Adr!A:B,2,FALSE) -> Slovenská asociácia korfbalu | C55: korfbal - 20 % navýšenie | D55: 9090 | E55: 0 | F55: f | G55: 026 03 | H55: B | I55: 31940668f | J55: 31940668026 03 | L55: 31940668026 03B | M55: Slovenská asociácia korfbalufBkorfbal - 20 % navýšenie | N55: 31940668fB
A56: 31824021 | B56: =VLOOKUP(A56,Adr!A:B,2,FALSE) -> Slovenská asociácia motoristického športu | C56: automobilový šport - bežné transfery | D56: 475622 | E56: 0 | F56: a | G56: 026 02 | H56: B | I56: 31824021a | J56: 31824021026 02 | K56: automobilový šport | L56: 31824021026 02B | M56: Slovenská asociácia motoristického športuaBautomobilový šport - bežné transfery | N56: 31824021aB
A57: 31824021 | B57: =VLOOKUP(A57,Adr!A:B,2,FALSE) -> Slovenská asociácia motoristického športu | C57: automobilový šport - kapitálové transfery | D57: 31000 | E57: 0 | F57: a | G57: 026 02 | H57: K | I57: 31824021a | J57: 31824021026 02 | K57: automobilový šport | L57: 31824021026 02K | M57: Slovenská asociácia motoristického športuaKautomobilový šport - kapitálové transfery | N57: 31824021aK
A58: 31824021 | B58: =VLOOKUP(A58,Adr!A:B,2,FALSE) -> Slovenská asociácia motoristického športu | C58: Preteky do vrchu na Pezinskej Babe | D58: 15000 | E58: 0 | F58: e | G58: 026 03 | H58: B | I58: 31824021e | J58: 31824021026 03 | L58: 31824021026 03B | M58: Slovenská asociácia motoristického športueBPreteky do vrchu na Pezinskej Babe | N58: 31824021eB
A59: 31824021 | B59: =VLOOKUP(A59,Adr!A:B,2,FALSE) -> Slovenská asociácia motoristického športu | C59: automobilový šport - 20 % navýšenie | D59: 95422 | E59: 0 | F59: f | G59: 026 03 | H59: B | I59: 31824021f | J59: 31824021026 03 | L59: 31824021026 03B | M59: Slovenská asociácia motoristického športufBautomobilový šport - 20 % navýšenie | N59: 31824021fB
A60: 30811686 | B60: =VLOOKUP(A60,Adr!A:B,2,FALSE) -> Slovenská asociácia pretláčania rukou | C60: pretláčanie rukou - bežné transfery | D60: 38932 | E60: 0 | F60: a | G60: 026 02 | H60: B | I60: 30811686a | J60: 30811686026 02 | K60: pretláčanie rukou | L60: 30811686026 02B | M60: Slovenská asociácia pretláčania rukouaBpretláčanie rukou - bežné transfery | N60: 30811686aB
A61: 30811686 | B61: =VLOOKUP(A61,Adr!A:B,2,FALSE) -> Slovenská asociácia pretláčania rukou | C61: Majstrovstvá Európy | D61: 51075 | E61: 0 | F61: e | G61: 026 03 | H61: B | I61: 30811686e | J61: 30811686026 03 | L61: 30811686026 03B | M61: Slovenská asociácia pretláčania rukoueBMajstrovstvá Európy | N61: 30811686eB
A62: 30811686 | B62: =VLOOKUP(A62,Adr!A:B,2,FALSE) -> Slovenská asociácia pretláčania rukou | C62: pretláčanie rukou - 20 % navýšenie | D62: 7333 | E62: 0 | F62: f | G62: 026 03 | H62: B | I62: 30811686f | J62: 30811686026 03 | L62: 30811686026 03B | M62: Slovenská asociácia pretláčania rukoufBpretláčanie rukou - 20 % navýšenie | N62: 30811686fB
A63: 30814910 | B63: =VLOOKUP(A63,Adr!A:B,2,FALSE) -> Slovenská asociácia taekwondo WT | C63: taekwondo - bežné transfery | D63: 85279 | E63: 0 | F63: a | G63: 026 02 | H63: B | I63: 30814910a | J63: 30814910026 02 | K63: taekwondo | L63: 30814910026 02B | M63: Slovenská asociácia taekwondo WTaBtaekwondo - bežné transfery | N63: 30814910aB
A64: 30814910 | B64: =VLOOKUP(A64,Adr!A:B,2,FALSE) -> Slovenská asociácia taekwondo WT | C64: zabezpečenie a rozvoj zdravotne postihnutých športovcov (SPV) | D64: 10804 | E64: 0 | F64: c | G64: 026 03 | H64: B | I64: 30814910c | J64: 30814910026 03 | L64: 30814910026 03B | M64: Slovenská asociácia taekwondo WTcBzabezpečenie a rozvoj zdravotne postihnutých športovcov (SPV) | N64: 30814910cB
A65: 30814910 | B65: =VLOOKUP(A65,Adr!A:B,2,FALSE) -> Slovenská asociácia taekwondo WT | C65: taekwondo - 20 % navýšenie | D65: 16062 | E65: 0 | F65: f | G65: 026 03 | H65: B | I65: 30814910f | J65: 30814910026 03 | L65: 30814910026 03B | M65: Slovenská asociácia taekwondo WTfBtaekwondo - 20 % navýšenie | N65: 30814910fB
A66: 17316731 | B66: =VLOOKUP(A66,Adr!A:B,2,FALSE) -> Slovenská asociácia univerzitného športu | C66: Aktivity a úlohy v oblasti univerzitného športu v roku 2024 | D66: 700840 | E66: 0 | F66: f | G66: 026 03 | H66: B | I66: =A66&F66 -> 17316731f | J66: =A66&G66 -> 17316731026 03 | L66: =A66&G66&H66 -> 17316731026 03B | M66: =B66&F66&H66&C66 -> Slovenská asociácia univerzitného športufBAktivity a úlohy v oblasti univerzitného športu v roku 2024 | N66: =+I66&H66 -> 17316731fB
A67: 30841798 | B67: =VLOOKUP(A67,Adr!A:B,2,FALSE) -> Slovenská asociácia zrakovo postihnutých športovcov | C67: zabezpečenie činnosti a úloh v roku 2024 | D67: 180069 | E67: 0 | F67: c | G67: 026 03 | H67: B | I67: 30841798c | J67: 30841798026 03 | L67: 30841798026 03B | M67: Slovenská asociácia zrakovo postihnutých športovcovcBzabezpečenie činnosti a úloh v roku 2024 | N67: 30841798cB
A68: 30844568 | B68: =VLOOKUP(A68,Adr!A:B,2,FALSE) -> Slovenská baseballová federácia | C68: baseball - bežné transfery | D68: 248397 | E68: 0 | F68: a | G68: 026 02 | H68: B | I68: 30844568a | J68: 30844568026 02 | K68: baseball | L68: 30844568026 02B | M68: Slovenská baseballová federáciaaBbaseball - bežné transfery | N68: 30844568aB
A69: 30844568 | B69: =VLOOKUP(A69,Adr!A:B,2,FALSE) -> Slovenská baseballová federácia | C69: baseball - 20 % navýšenie | D69: 46785 | E69: 0 | F69: f | G69: 026 03 | H69: B | I69: 30844568f | J69: 30844568026 03 | L69: 30844568026 03B | M69: Slovenská baseballová federáciafBbaseball - 20 % navýšenie | N69: 30844568fB
A70: 17315166 | B70: =VLOOKUP(A70,Adr!A:B,2,FALSE) -> Slovenská basketbalová asociácia | C70: basketbal - bežné transfery | D70: 1567670 | E70: 0 | F70: a | G70: 026 02 | H70: B | I70: 17315166a | J70: 17315166026 02 | K70: basketbal | L70: 17315166026 02B | M70: Slovenská basketbalová asociáciaaBbasketbal - bežné transfery | N70: 17315166aB
A71: 17315166 | B71: =VLOOKUP(A71,Adr!A:B,2,FALSE) -> Slovenská basketbalová asociácia | C71: basketbal - 20 % navýšenie | D71: 295268 | E71: 0 | F71: f | G71: 026 03 | H71: B | I71: 17315166f | J71: 17315166026 03 | L71: 17315166026 03B | M71: Slovenská basketbalová asociáciafBbasketbal - 20 % navýšenie | N71: 17315166fB
A72: 17315166 | B72: =VLOOKUP(A72,Adr!A:B,2,FALSE) -> Slovenská basketbalová asociácia | C72: Zabezpečenie finále školských športových súťaží (Piešťany 2024) v súťažiach kategórie "A" v basketbale stredných škôl | D72: 30600 | E72: 0 | F72: j | G72: 026 03 | H72: B | I72: 17315166j | J72: 17315166026 03 | L72: 17315166026 03B | M72: Slovenská basketbalová asociáciajBZabezpečenie finále školských športových súťaží (Piešťany 2024) v súťažiach kategórie "A" v basketbale stredných škôl | N72: 17315166jB
A73: 17315166 | B73: =VLOOKUP(A73,Adr!A:B,2,FALSE) -> Slovenská basketbalová asociácia | C73: Zabezpečenie finále školských športových súťaží (Šamorín 2024) v súťažiach kategórie "A" v basketbale základných škôl | D73: 19637 | E73: 0 | F73: j | G73: 026 03 | H73: B | I73: 17315166j | J73: 17315166026 03 | L73: 17315166026 03B | M73: Slovenská basketbalová asociáciajBZabezpečenie finále školských športových súťaží (Šamorín 2024) v súťažiach kategórie "A" v basketbale základných škôl | N73: 17315166jB
A74: 31744621 | B74: =VLOOKUP(A74,Adr!A:B,2,FALSE) -> Slovenská boxerská federácia | C74: box - bežné transfery | D74: 351911 | E74: 0 | F74: a | G74: 026 02 | H74: B | I74: 31744621a | J74: 31744621026 02 | K74: box | L74: 31744621026 02B | M74: Slovenská boxerská federáciaaBbox - bežné transfery | N74: 31744621aB
A75: 31744621 | B75: =VLOOKUP(A75,Adr!A:B,2,FALSE) -> Slovenská boxerská federácia | C75: box - kapitálové transfery | D75: 60000 | E75: 0 | F75: a | G75: 026 02 | H75: K | I75: 31744621a | J75: 31744621026 02 | K75: box | L75: 31744621026 02K | M75: Slovenská boxerská federáciaaKbox - kapitálové transfery | N75: 31744621aK
A76: 31744621 | B76: =VLOOKUP(A76,Adr!A:B,2,FALSE) -> Slovenská boxerská federácia | C76: Ďuríková Nicole | D76: 15000 | E76: 0 | F76: d | G76: 026 03 | H76: B | I76: 31744621d | J76: 31744621026 03 | L76: 31744621026 03B | M76: Slovenská boxerská federáciadBĎuríková Nicole | N76: 31744621dB
A77: 31744621 | B77: =VLOOKUP(A77,Adr!A:B,2,FALSE) -> Slovenská boxerská federácia | C77: Horváth Roman | D77: 10000 | E77: 0 | F77: d | G77: 026 03 | H77: B | I77: 31744621d | J77: 31744621026 03 | L77: 31744621026 03B | M77: Slovenská boxerská federáciadBHorváth Roman | N77: 31744621dB
A78: 31744621 | B78: =VLOOKUP(A78,Adr!A:B,2,FALSE) -> Slovenská boxerská federácia | C78: Jedináková Miroslava | D78: 26500 | E78: 0 | F78: d | G78: 026 03 | H78: B | I78: 31744621d | J78: 31744621026 03 | L78: 31744621026 03B | M78: Slovenská boxerská federáciadBJedináková Miroslava | N78: 31744621dB
A79: 31744621 | B79: =VLOOKUP(A79,Adr!A:B,2,FALSE) -> Slovenská boxerská federácia | C79: Kostúr Joseph | D79: 15000 | E79: 0 | F79: d | G79: 026 03 | H79: B | I79: 31744621d | J79: 31744621026 03 | L79: 31744621026 03B | M79: Slovenská boxerská federáciadBKostúr Joseph | N79: 31744621dB
A80: 31744621 | B80: =VLOOKUP(A80,Adr!A:B,2,FALSE) -> Slovenská boxerská federácia | C80: Kubalová Tamara | D80: 31800 | E80: 0 | F80: d | G80: 026 03 | H80: B | I80: 31744621d | J80: 31744621026 03 | L80: 31744621026 03B | M80: Slovenská boxerská federáciadBKubalová Tamara | N80: 31744621dB
A81: 31744621 | B81: =VLOOKUP(A81,Adr!A:B,2,FALSE) -> Slovenská boxerská federácia | C81: Lovašová Bibiana | D81: 15000 | E81: 0 | F81: d | G81: 026 03 | H81: B | I81: 31744621d | J81: 31744621026 03 | L81: 31744621026 03B | M81: Slovenská boxerská federáciadBLovašová Bibiana | N81: 31744621dB
A82: 31744621 | B82: =VLOOKUP(A82,Adr!A:B,2,FALSE) -> Slovenská boxerská federácia | C82: Tankó Viliam | D82: 15000 | E82: 0 | F82: d | G82: 026 03 | H82: B | I82: 31744621d | J82: 31744621026 03 | L82: 31744621026 03B | M82: Slovenská boxerská federáciadBTankó Viliam | N82: 31744621dB
A83: 31744621 | B83: =VLOOKUP(A83,Adr!A:B,2,FALSE) -> Slovenská boxerská federácia | C83: Triebeľová Jessica | D83: 15000 | E83: 0 | F83: d | G83: 026 03 | H83: B | I83: 31744621d | J83: 31744621026 03 | L83: 31744621026 03B | M83: Slovenská boxerská federáciadBTriebeľová Jessica | N83: 31744621dB
A84: 31744621 | B84: =VLOOKUP(A84,Adr!A:B,2,FALSE) -> Slovenská boxerská federácia | C84: Vymyslický Lukáš | D84: 10000 | E84: 0 | F84: d | G84: 026 03 | H84: B | I84: 31744621d | J84: 31744621026 03 | L84: 31744621026 03B | M84: Slovenská boxerská federáciadBVymyslický Lukáš | N84: 31744621dB
A85: 31744621 | B85: =VLOOKUP(A85,Adr!A:B,2,FALSE) -> Slovenská boxerská federácia | C85: box - 20 % navýšenie | D85: 77583 | E85: 0 | F85: f | G85: 026 03 | H85: B | I85: 31744621f | J85: 31744621026 03 | L85: 31744621026 03B | M85: Slovenská boxerská federáciafBbox - 20 % navýšenie | N85: 31744621fB
A86: 34056939 | B86: =VLOOKUP(A86,Adr!A:B,2,FALSE) -> SLOVENSKÁ CYKLOTRIALOVÁ ÚNIA | C86: rozvoj športov, ktoré nie sú uznanými podľa zákona č. 440/2015 Z. z. | D86: 36300 | E86: 0 | F86: g | G86: 026 03 | H86: B | I86: 34056939g | J86: 34056939026 03 | L86: 34056939026 03B | M86: SLOVENSKÁ CYKLOTRIALOVÁ ÚNIAgBrozvoj športov, ktoré nie sú uznanými podľa zákona č. 440/2015 Z. z. | N86: 34056939gB
A87: 34003975 | B87: =VLOOKUP(A87,Adr!A:B,2,FALSE) -> Slovenská federácia karate a bojových umení | C87: rozvoj športov, ktoré nie sú uznanými podľa zákona č. 440/2015 Z. z. | D87: 154300 | E87: 0 | F87: g | G87: 026 03 | H87: B | I87: 34003975g | J87: 34003975026 03 | L87: 34003975026 03B | M87: Slovenská federácia karate a bojových umenígBrozvoj športov, ktoré nie sú uznanými podľa zákona č. 440/2015 Z. z. | N87: 34003975gB
A88: 34003975 | B88: =VLOOKUP(A88,Adr!A:B,2,FALSE) -> Slovenská federácia karate a bojových umení | C88: XXVII. Slovakia open | D88: 6209.94 | E88: 0 | F88: m | G88: 026 03 | H88: B | I88: 34003975m | J88: 34003975026 03 | L88: 34003975026 03B | M88: Slovenská federácia karate a bojových umenímBXXVII. Slovakia open | N88: 34003975mB
A89: 36064742 | B89: =VLOOKUP(A89,Adr!A:B,2,FALSE) -> Slovenská federácia pétanque | C89: pétanque - bežné transfery | D89: 32026 | E89: 0 | F89: a | G89: 026 02 | H89: B | I89: 36064742a | J89: 36064742026 02 | K89: pétanque | L89: 36064742026 02B | M89: Slovenská federácia pétanqueaBpétanque - bežné transfery | N89: 36064742aB
A90: 36064742 | B90: =VLOOKUP(A90,Adr!A:B,2,FALSE) -> Slovenská federácia pétanque | C90: petanque - 20 % navýšenie | D90: 6032 | E90: 0 | F90: f | G90: 026 03 | H90: B | I90: 36064742f | J90: 36064742026 03 | L90: 36064742026 03B | M90: Slovenská federácia pétanquefBpetanque - 20 % navýšenie | N90: 36064742fB
A91: 42361885 | B91: =VLOOKUP(A91,Adr!A:B,2,FALSE) -> Slovenská footgolfová asociácia | C91: rozvoj športov, ktoré nie sú uznanými podľa zákona č. 440/2015 Z. z. | D91: 87300 | E91: 0 | F91: g | G91: 026 03 | H91: B | I91: 42361885g | J91: 42361885026 03 | L91: 42361885026 03B | M91: Slovenská footgolfová asociáciagBrozvoj športov, ktoré nie sú uznanými podľa zákona č. 440/2015 Z. z. | N91: 42361885gB
A92: 50284363 | B92: =VLOOKUP(A92,Adr!A:B,2,FALSE) -> Slovenská golfová asociácia | C92: golf - bežné transfery | D92: 506905 | E92: 0 | F92: a | G92: 026 02 | H92: B | I92: 50284363a | J92: 50284363026 02 | K92: golf | L92: 50284363026 02B | M92: Slovenská golfová asociáciaaBgolf - bežné transfery | N92: 50284363aB
A93: 50284363 | B93: =VLOOKUP(A93,Adr!A:B,2,FALSE) -> Slovenská golfová asociácia | C93: zabezpečenie a rozvoj zdravotne postihnutých športovcov (SPV) | D93: 5403 | E93: 0 | F93: c | G93: 026 03 | H93: B | I93: 50284363c | J93: 50284363026 03 | L93: 50284363026 03B | M93: Slovenská golfová asociáciacBzabezpečenie a rozvoj zdravotne postihnutých športovcov (SPV) | N93: 50284363cB
A94: 50284363 | B94: =VLOOKUP(A94,Adr!A:B,2,FALSE) -> Slovenská golfová asociácia | C94: Sabbatini Rory | D94: 40000 | E94: 0 | F94: d | G94: 026 03 | H94: B | I94: 50284363d | J94: 50284363026 03 | L94: 50284363026 03B | M94: Slovenská golfová asociáciadBSabbatini Rory | N94: 50284363dB
A95: 50284363 | B95: =VLOOKUP(A95,Adr!A:B,2,FALSE) -> Slovenská golfová asociácia | C95: European Young Masters | D95: 13120 | E95: 0 | F95: e | G95: 026 03 | H95: B | I95: 50284363e | J95: 50284363026 03 | L95: 50284363026 03B | M95: Slovenská golfová asociáciaeBEuropean Young Masters | N95: 50284363eB
A96: 50284363 | B96: =VLOOKUP(A96,Adr!A:B,2,FALSE) -> Slovenská golfová asociácia | C96: Majstrovstvá Európy tímov žien | D96: 11850 | E96: 0 | F96: e | G96: 026 03 | H96: B | I96: 50284363e | J96: 50284363026 03 | L96: 50284363026 03B | M96: Slovenská golfová asociáciaeBMajstrovstvá Európy tímov žien | N96: 50284363eB
A97: 50284363 | B97: =VLOOKUP(A97,Adr!A:B,2,FALSE) -> Slovenská golfová asociácia | C97: Slovak Ladies Slovak Golf Open | D97: 50000 | E97: 0 | F97: e | G97: 026 03 | H97: B | I97: 50284363e | J97: 50284363026 03 | L97: 50284363026 03B | M97: Slovenská golfová asociáciaeBSlovak Ladies Slovak Golf Open | N97: 50284363eB
A98: 50284363 | B98: =VLOOKUP(A98,Adr!A:B,2,FALSE) -> Slovenská golfová asociácia | C98: golf - 20 % navýšenie | D98: 95475 | E98: 0 | F98: f | G98: 026 03 | H98: B | I98: 50284363f | J98: 50284363026 03 | L98: 50284363026 03B | M98: Slovenská golfová asociáciafBgolf - 20 % navýšenie | N98: 50284363fB
A99: 50284363 | B99: =VLOOKUP(A99,Adr!A:B,2,FALSE) -> Slovenská golfová asociácia | C99: FALDO SERIES | D99: 5480.06 | E99: 0 | F99: m | G99: 026 03 | H99: B | I99: 50284363m | J99: 50284363026 03 | L99: 50284363026 03B | M99: Slovenská golfová asociáciamBFALDO SERIES | N99: 50284363mB
A100: 00688321 | B100: =VLOOKUP(A100,Adr!A:B,2,FALSE) -> Slovenská gymnastická federácia | C100: gymnastika - bežné transfery | D100: 1195399 | E100: 0 | F100: a | G100: 026 02 | H100: B | I100: 00688321a | J100: 00688321026 02 | K100: gymnastika | L100: 00688321026 02B | M100: Slovenská gymnastická federáciaaBgymnastika - bežné transfery | N100: 00688321aB
A101: 00688321 | B101: =VLOOKUP(A101,Adr!A:B,2,FALSE) -> Slovenská gymnastická federácia | C101: gymnastika - kapitálové transfery | D101: 35000 | E101: 0 | F101: a | G101: 026 02 | H101: K | I101: 00688321a | J101: 00688321026 02 | K101: gymnastika | L101: 00688321026 02K | M101: Slovenská gymnastická federáciaaKgymnastika - kapitálové transfery | N101: 00688321aK
A102: 00688321 | B102: =VLOOKUP(A102,Adr!A:B,2,FALSE) -> Slovenská gymnastická federácia | C102: Dobrocká Lucia | D102: 10000 | E102: 0 | F102: d | G102: 026 03 | H102: B | I102: 00688321d | J102: 00688321026 03 | L102: 00688321026 03B | M102: Slovenská gymnastická federáciadBDobrocká Lucia | N102: 00688321dB
A103: 00688321 | B103: =VLOOKUP(A103,Adr!A:B,2,FALSE) -> Slovenská gymnastická federácia | C103: gymnastika - 20 % navýšenie | D103: 231743 | E103: 0 | F103: f | G103: 026 03 | H103: B | I103: 00688321f | J103: 00688321026 03 | L103: 00688321026 03B | M103: Slovenská gymnastická federáciafBgymnastika - 20 % navýšenie | N103: 00688321fB
A104: 00688321 | B104: =VLOOKUP(A104,Adr!A:B,2,FALSE) -> Slovenská gymnastická federácia | C104: Zabezpečenie finále školských športových súťaží (Šamorín 2024) v súťažiach kategórie "A" v gymnastike základných škôl | D104: 21494 | E104: 0 | F104: j | G104: 026 03 | H104: B | I104: 00688321j | J104: 00688321026 03 | L104: 00688321026 03B | M104: Slovenská gymnastická federáciajBZabezpečenie finále školských športových súťaží (Šamorín 2024) v súťažiach kategórie "A" v gymnastike základných škôl | N104: 00688321jB
A105: 00688321 | B105: =VLOOKUP(A105,Adr!A:B,2,FALSE) -> Slovenská gymnastická federácia | C105: Zabezpečenie finále školských športových súťaží (Šamorín 2024) v súťažiach kategórie "A" v parkoure základných škôl | D105: 5770 | E105: 0 | F105: j | G105: 026 03 | H105: B | I105: 00688321j | J105: 00688321026 03 | L105: 00688321026 03B | M105: Slovenská gymnastická federáciajBZabezpečenie finále školských športových súťaží (Šamorín 2024) v súťažiach kategórie "A" v parkoure základných škôl | N105: 00688321jB
A106: 00603091 | B106: =VLOOKUP(A106,Adr!A:B,2,FALSE) -> Slovenská hokejbalová únia | C106: Majstrovstvá sveta v hokejbale juniorov 2024 | D106: 18500 | E106: 0 | F106: e | G106: 026 03 | H106: B | I106: 00603091e | J106: 00603091026 03 | L106: 00603091026 03B | M106: Slovenská hokejbalová úniaeBMajstrovstvá sveta v hokejbale juniorov 2024 | N106: 00603091eB
A107: 00603091 | B107: =VLOOKUP(A107,Adr!A:B,2,FALSE) -> Slovenská hokejbalová únia | C107: rozvoj športov, ktoré nie sú uznanými podľa zákona č. 440/2015 Z. z. | D107: 250000 | E107: 0 | F107: g | G107: 026 03 | H107: B | I107: 00603091g | J107: 00603091026 03 | L107: 00603091026 03B | M107: Slovenská hokejbalová úniagBrozvoj športov, ktoré nie sú uznanými podľa zákona č. 440/2015 Z. z. | N107: 00603091gB
A108: 54041368 | B108: =VLOOKUP(A108,Adr!A:B,2,FALSE) -> SLOVENSKÁ CHEERLEADING ÚNIA | C108: cheerleading - bežné transfery | D108: 32026 | E108: 0 | F108: a | G108: 026 02 | H108: B | I108: 54041368a | J108: 54041368026 02 | K108: cheerleading | L108: 54041368026 02B | M108: SLOVENSKÁ CHEERLEADING ÚNIAaBcheerleading - bežné transfery | N108: 54041368aB
A109: 54041368 | B109: =VLOOKUP(A109,Adr!A:B,2,FALSE) -> SLOVENSKÁ CHEERLEADING ÚNIA | C109: cheerleading - 20 % navýšenie | D109: 6032 | E109: 0 | F109: f | G109: 026 03 | H109: B | I109: 54041368f | J109: 54041368026 03 | L109: 54041368026 03B | M109: SLOVENSKÁ CHEERLEADING ÚNIAfBcheerleading - 20 % navýšenie | N109: 54041368fB
A110: 31787801 | B110: =VLOOKUP(A110,Adr!A:B,2,FALSE) -> SLOVENSKÁ JAZDECKÁ FEDERÁCIA | C110: jazdectvo - bežné transfery | D110: 223628 | E110: 0 | F110: a | G110: 026 02 | H110: B | I110: 31787801a | J110: 31787801026 02 | K110: jazdectvo | L110: 31787801026 02B | M110: SLOVENSKÁ JAZDECKÁ FEDERÁCIAaBjazdectvo - bežné transfery | N110: 31787801aB
A111: 31787801 | B111: =VLOOKUP(A111,Adr!A:B,2,FALSE) -> SLOVENSKÁ JAZDECKÁ FEDERÁCIA | C111: jazdectvo - 20 % navýšenie | D111: 42120 | E111: 0 | F111: f | G111: 026 03 | H111: B | I111: 31787801f | J111: 31787801026 03 | L111: 31787801026 03B | M111: SLOVENSKÁ JAZDECKÁ FEDERÁCIAfBjazdectvo - 20 % navýšenie | N111: 31787801fB
A112: 50434101 | B112: =VLOOKUP(A112,Adr!A:B,2,FALSE) -> Slovenská kanoistika | C112: kanoistika - bežné transfery | D112: 2172410 | E112: 0 | F112: a | G112: 026 02 | H112: B | I112: 50434101a | J112: 50434101026 02 | K112: kanoistika | L112: 50434101026 02B | M112: Slovenská kanoistikaaBkanoistika - bežné transfery | N112: 50434101aB
A113: 50434101 | B113: =VLOOKUP(A113,Adr!A:B,2,FALSE) -> Slovenská kanoistika | C113: kanoistika - kapitálové transfery | D113: 12500 | E113: 0 | F113: a | G113: 026 02 | H113: K | I113: 50434101a | J113: 50434101026 02 | K113: kanoistika | L113: 50434101026 02K | M113: Slovenská kanoistikaaKkanoistika - kapitálové transfery | N113: 50434101aK
A114: 50434101 | B114: =VLOOKUP(A114,Adr!A:B,2,FALSE) -> Slovenská kanoistika | C114: Bábik Martin | D114: 7800 | E114: 0 | F114: d | G114: 026 03 | H114: B | I114: 50434101d | J114: 50434101026 03 | L114: 50434101026 03B | M114: Slovenská kanoistikadBBábik Martin | N114: 50434101dB
A115: 50434101 | B115: =VLOOKUP(A115,Adr!A:B,2,FALSE) -> Slovenská kanoistika | C115: Baláž Samuel | D115: 25000 | E115: 0 | F115: d | G115: 026 03 | H115: B | I115: 50434101d | J115: 50434101026 03 | L115: 50434101026 03B | M115: Slovenská kanoistikadBBaláž Samuel | N115: 50434101dB
A116: 50434101 | B116: =VLOOKUP(A116,Adr!A:B,2,FALSE) -> Slovenská kanoistika | C116: Beňuš Matej | D116: 60000 | E116: 0 | F116: d | G116: 026 03 | H116: B | I116: 50434101d | J116: 50434101026 03 | L116: 50434101026 03B | M116: Slovenská kanoistikadBBeňuš Matej | N116: 50434101dB
A117: 50434101 | B117: =VLOOKUP(A117,Adr!A:B,2,FALSE) -> Slovenská kanoistika | C117: Bergendi Marko | D117: 17500 | E117: 0 | F117: d | G117: 026 03 | H117: B | I117: 50434101d | J117: 50434101026 03 | L117: 50434101026 03B | M117: Slovenská kanoistikadBBergendi Marko | N117: 50434101dB
A118: 50434101 | B118: =VLOOKUP(A118,Adr!A:B,2,FALSE) -> Slovenská kanoistika | C118: Botek Adam | D118: 25000 | E118: 0 | F118: d | G118: 026 03 | H118: B | I118: 50434101d | J118: 50434101026 03 | L118: 50434101026 03B | M118: Slovenská kanoistikadBBotek Adam | N118: 50434101dB
A119: 50434101 | B119: =VLOOKUP(A119,Adr!A:B,2,FALSE) -> Slovenská kanoistika | C119: Bugár Reka | D119: 26200 | E119: 0 | F119: d | G119: 026 03 | H119: B | I119: 50434101d | J119: 50434101026 03 | L119: 50434101026 03B | M119: Slovenská kanoistikadBBugár Reka | N119: 50434101dB
A120: 50434101 | B120: =VLOOKUP(A120,Adr!A:B,2,FALSE) -> Slovenská kanoistika | C120: Čulenová Dagmar | D120: 18500 | E120: 0 | F120: d | G120: 026 03 | H120: B | I120: 50434101d | J120: 50434101026 03 | L120: 50434101026 03B | M120: Slovenská kanoistikadBČulenová Dagmar | N120: 50434101dB
A121: 50434101 | B121: =VLOOKUP(A121,Adr!A:B,2,FALSE) -> Slovenská kanoistika | C121: Doktorík Dominik | D121: 9300 | E121: 0 | F121: d | G121: 026 03 | H121: B | I121: 50434101d | J121: 50434101026 03 | L121: 50434101026 03B | M121: Slovenská kanoistikadBDoktorík Dominik | N121: 50434101dB
A122: 50434101 | B122: =VLOOKUP(A122,Adr!A:B,2,FALSE) -> Slovenská kanoistika | C122: Dorner Milan | D122: 12500 | E122: 0 | F122: d | G122: 026 03 | H122: B | I122: 50434101d | J122: 50434101026 03 | L122: 50434101026 03B | M122: Slovenská kanoistikadBDorner Milan | N122: 50434101dB
A123: 50434101 | B123: =VLOOKUP(A123,Adr!A:B,2,FALSE) -> Slovenská kanoistika | C123: Gacsal Ákos | D123: 11200 | E123: 0 | F123: d | G123: 026 03 | H123: B | I123: 50434101d | J123: 50434101026 03 | L123: 50434101026 03B | M123: Slovenská kanoistikadBGacsal Ákos | N123: 50434101dB
A124: 50434101 | B124: =VLOOKUP(A124,Adr!A:B,2,FALSE) -> Slovenská kanoistika | C124: Gavorová Hana | D124: 10000 | E124: 0 | F124: d | G124: 026 03 | H124: B | I124: 50434101d | J124: 50434101026 03 | L124: 50434101026 03B | M124: Slovenská kanoistikadBGavorová Hana | N124: 50434101dB
A125: 50434101 | B125: =VLOOKUP(A125,Adr!A:B,2,FALSE) -> Slovenská kanoistika | C125: Glejteková Simona | D125: 10000 | E125: 0 | F125: d | G125: 026 03 | H125: B | I125: 50434101d | J125: 50434101026 03 | L125: 50434101026 03B | M125: Slovenská kanoistikadBGlejteková Simona | N125: 50434101dB
A126: 50434101 | B126: =VLOOKUP(A126,Adr!A:B,2,FALSE) -> Slovenská kanoistika | C126: Grigar Jakub | D126: 78000 | E126: 0 | F126: d | G126: 026 03 | H126: B | I126: 50434101d | J126: 50434101026 03 | L126: 50434101026 03B | M126: Slovenská kanoistikadBGrigar Jakub | N126: 50434101dB
A127: 50434101 | B127: =VLOOKUP(A127,Adr!A:B,2,FALSE) -> Slovenská kanoistika | C127: Halčin Martin | D127: 25000 | E127: 0 | F127: d | G127: 026 03 | H127: B | I127: 50434101d | J127: 50434101026 03 | L127: 50434101026 03B | M127: Slovenská kanoistikadBHalčin Martin | N127: 50434101dB
A128: 50434101 | B128: =VLOOKUP(A128,Adr!A:B,2,FALSE) -> Slovenská kanoistika | C128: Husariková Diana | D128: 7800 | E128: 0 | F128: d | G128: 026 03 | H128: B | I128: 50434101d | J128: 50434101026 03 | L128: 50434101026 03B | M128: Slovenská kanoistikadBHusariková Diana | N128: 50434101dB
A129: 50434101 | B129: =VLOOKUP(A129,Adr!A:B,2,FALSE) -> Slovenská kanoistika | C129: Chlebová Ivana | D129: 12500 | E129: 0 | F129: d | G129: 026 03 | H129: B | I129: 50434101d | J129: 50434101026 03 | L129: 50434101026 03B | M129: Slovenská kanoistikadBChlebová Ivana | N129: 50434101dB
A130: 50434101 | B130: =VLOOKUP(A130,Adr!A:B,2,FALSE) -> Slovenská kanoistika | C130: Ivanecký Jaromír | D130: 10000 | E130: 0 | F130: d | G130: 026 03 | H130: B | I130: =A130&F130 -> 50434101d | J130: =A130&G130 -> 50434101026 03 | L130: =A130&G130&H130 -> 50434101026 03B | M130: =B130&F130&H130&C130 -> Slovenská kanoistikadBIvanecký Jaromír | N130: =+I130&H130 -> 50434101dB
A131: 50434101 | B131: =VLOOKUP(A131,Adr!A:B,2,FALSE) -> Slovenská kanoistika | C131: Kizek Peter | D131: 9300 | E131: 0 | F131: d | G131: 026 03 | H131: B | I131: 50434101d | J131: 50434101026 03 | L131: 50434101026 03B | M131: Slovenská kanoistikadBKizek Peter | N131: 50434101dB
A132: 50434101 | B132: =VLOOKUP(A132,Adr!A:B,2,FALSE) -> Slovenská kanoistika | C132: Krajčí Samuel | D132: 25000 | E132: 0 | F132: d | G132: 026 03 | H132: B | I132: 50434101d | J132: 50434101026 03 | L132: 50434101026 03B | M132: Slovenská kanoistikadBKrajčí Samuel | N132: 50434101dB
A133: 50434101 | B133: =VLOOKUP(A133,Adr!A:B,2,FALSE) -> Slovenská kanoistika | C133: Lepi Máté | D133: 7800 | E133: 0 | F133: d | G133: 026 03 | H133: B | I133: 50434101d | J133: 50434101026 03 | L133: 50434101026 03B | M133: Slovenská kanoistikadBLepi Máté | N133: 50434101dB
A134: 50434101 | B134: =VLOOKUP(A134,Adr!A:B,2,FALSE) -> Slovenská kanoistika | C134: Luknárová Emanuela | D134: 35000 | E134: 0 | F134: d | G134: 026 03 | H134: B | I134: 50434101d | J134: 50434101026 03 | L134: 50434101026 03B | M134: Slovenská kanoistikadBLuknárová Emanuela | N134: 50434101dB
A135: 50434101 | B135: =VLOOKUP(A135,Adr!A:B,2,FALSE) -> Slovenská kanoistika | C135: Macúš Ondrej | D135: 10000 | E135: 0 | F135: d | G135: 026 03 | H135: B | I135: 50434101d | J135: 50434101026 03 | L135: 50434101026 03B | M135: Slovenská kanoistikadBMacúš Ondrej | N135: 50434101dB
A136: 50434101 | B136: =VLOOKUP(A136,Adr!A:B,2,FALSE) -> Slovenská kanoistika | C136: Marsal Máté | D136: 7800 | E136: 0 | F136: d | G136: 026 03 | H136: B | I136: 50434101d | J136: 50434101026 03 | L136: 50434101026 03B | M136: Slovenská kanoistikadBMarsal Máté | N136: 50434101dB
A137: 50434101 | B137: =VLOOKUP(A137,Adr!A:B,2,FALSE) -> Slovenská kanoistika | C137: Martikán Michal | D137: 10000 | E137: 0 | F137: d | G137: 026 03 | H137: B | I137: 50434101d | J137: 50434101026 03 | L137: 50434101026 03B | M137: Slovenská kanoistikadBMartikán Michal | N137: 50434101dB
A138: 50434101 | B138: =VLOOKUP(A138,Adr!A:B,2,FALSE) -> Slovenská kanoistika | C138: Mintálová Eliška | D138: 60000 | E138: 0 | F138: d | G138: 026 03 | H138: B | I138: 50434101d | J138: 50434101026 03 | L138: 50434101026 03B | M138: Slovenská kanoistikadBMintálová Eliška | N138: 50434101dB
A139: 50434101 | B139: =VLOOKUP(A139,Adr!A:B,2,FALSE) -> Slovenská kanoistika | C139: Mirgorodský Marko | D139: 15000 | E139: 0 | F139: d | G139: 026 03 | H139: B | I139: 50434101d | J139: 50434101026 03 | L139: 50434101026 03B | M139: Slovenská kanoistikadBMirgorodský Marko | N139: 50434101dB
A140: 50434101 | B140: =VLOOKUP(A140,Adr!A:B,2,FALSE) -> Slovenská kanoistika | C140: Muková Alena | D140: 7800 | E140: 0 | F140: d | G140: 026 03 | H140: B | I140: 50434101d | J140: 50434101026 03 | L140: 50434101026 03B | M140: Slovenská kanoistikadBMuková Alena | N140: 50434101dB
A141: 50434101 | B141: =VLOOKUP(A141,Adr!A:B,2,FALSE) -> Slovenská kanoistika | C141: Myšák Denis | D141: 25000 | E141: 0 | F141: d | G141: 026 03 | H141: B | I141: 50434101d | J141: 50434101026 03 | L141: 50434101026 03B | M141: Slovenská kanoistikadBMyšák Denis | N141: 50434101dB
A142: 50434101 | B142: =VLOOKUP(A142,Adr!A:B,2,FALSE) -> Slovenská kanoistika | C142: Paňková Zuzana | D142: 40000 | E142: 0 | F142: d | G142: 026 03 | H142: B | I142: 50434101d | J142: 50434101026 03 | L142: 50434101026 03B | M142: Slovenská kanoistikadBPaňková Zuzana | N142: 50434101dB
A143: 50434101 | B143: =VLOOKUP(A143,Adr!A:B,2,FALSE) -> Slovenská kanoistika | C143: Petrušová Mariana | D143: 18600 | E143: 0 | F143: d | G143: 026 03 | H143: B | I143: 50434101d | J143: 50434101026 03 | L143: 50434101026 03B | M143: Slovenská kanoistikadBPetrušová Mariana | N143: 50434101dB
A144: 50434101 | B144: =VLOOKUP(A144,Adr!A:B,2,FALSE) -> Slovenská kanoistika | C144: Rumanský Richard | D144: 15000 | E144: 0 | F144: d | G144: 026 03 | H144: B | I144: 50434101d | J144: 50434101026 03 | L144: 50434101026 03B | M144: Slovenská kanoistikadBRumanský Richard | N144: 50434101dB
A145: 50434101 | B145: =VLOOKUP(A145,Adr!A:B,2,FALSE) -> Slovenská kanoistika | C145: Ružič Patrik | D145: 10000 | E145: 0 | F145: d | G145: 026 03 | H145: B | I145: 50434101d | J145: 50434101026 03 | L145: 50434101026 03B | M145: Slovenská kanoistikadBRužič Patrik | N145: 50434101dB
A146: 50434101 | B146: =VLOOKUP(A146,Adr!A:B,2,FALSE) -> Slovenská kanoistika | C146: Sidová Bianka | D146: 35000 | E146: 0 | F146: d | G146: 026 03 | H146: B | I146: 50434101d | J146: 50434101026 03 | L146: 50434101026 03B | M146: Slovenská kanoistikadBSidová Bianka | N146: 50434101dB
A147: 50434101 | B147: =VLOOKUP(A147,Adr!A:B,2,FALSE) -> Slovenská kanoistika | C147: Slafkovský Alexander | D147: 30000 | E147: 0 | F147: d | G147: 026 03 | H147: B | I147: 50434101d | J147: 50434101026 03 | L147: 50434101026 03B | M147: Slovenská kanoistikadBSlafkovský Alexander | N147: 50434101dB
A148: 50434101 | B148: =VLOOKUP(A148,Adr!A:B,2,FALSE) -> Slovenská kanoistika | C148: Stanko Filip | D148: 12500 | E148: 0 | F148: d | G148: 026 03 | H148: B | I148: 50434101d | J148: 50434101026 03 | L148: 50434101026 03B | M148: Slovenská kanoistikadBStanko Filip | N148: 50434101dB
A149: 50434101 | B149: =VLOOKUP(A149,Adr!A:B,2,FALSE) -> Slovenská kanoistika | C149: Stanovská Soňa | D149: 40000 | E149: 0 | F149: d | G149: 026 03 | H149: B | I149: 50434101d | J149: 50434101026 03 | L149: 50434101026 03B | M149: Slovenská kanoistikadBStanovská Soňa | N149: 50434101dB
A150: 50434101 | B150: =VLOOKUP(A150,Adr!A:B,2,FALSE) -> Slovenská kanoistika | C150: Strýček Eduard | D150: 9300 | E150: 0 | F150: d | G150: 026 03 | H150: B | I150: 50434101d | J150: 50434101026 03 | L150: 50434101026 03B | M150: Slovenská kanoistikadBStrýček Eduard | N150: 50434101dB
A151: 50434101 | B151: =VLOOKUP(A151,Adr!A:B,2,FALSE) -> Slovenská kanoistika | C151: Szabó Maximilián | D151: 7800 | E151: 0 | F151: d | G151: 026 03 | H151: B | I151: 50434101d | J151: 50434101026 03 | L151: 50434101026 03B | M151: Slovenská kanoistikadBSzabó Maximilián | N151: 50434101dB
A152: 50434101 | B152: =VLOOKUP(A152,Adr!A:B,2,FALSE) -> Slovenská kanoistika | C152: Ševčík Jakub | D152: 10000 | E152: 0 | F152: d | G152: 026 03 | H152: B | I152: 50434101d | J152: 50434101026 03 | L152: 50434101026 03B | M152: Slovenská kanoistikadBŠevčík Jakub | N152: 50434101dB
A153: 50434101 | B153: =VLOOKUP(A153,Adr!A:B,2,FALSE) -> Slovenská kanoistika | C153: Štaffen Dávid | D153: 12500 | E153: 0 | F153: d | G153: 026 03 | H153: B | I153: 50434101d | J153: 50434101026 03 | L153: 50434101026 03B | M153: Slovenská kanoistikadBŠtaffen Dávid | N153: 50434101dB
A154: 50434101 | B154: =VLOOKUP(A154,Adr!A:B,2,FALSE) -> Slovenská kanoistika | C154: Švecová Romana | D154: 17500 | E154: 0 | F154: d | G154: 026 03 | H154: B | I154: 50434101d | J154: 50434101026 03 | L154: 50434101026 03B | M154: Slovenská kanoistikadBŠvecová Romana | N154: 50434101dB
A155: 50434101 | B155: =VLOOKUP(A155,Adr!A:B,2,FALSE) -> Slovenská kanoistika | C155: Tóth Ludovít | D155: 9300 | E155: 0 | F155: d | G155: 026 03 | H155: B | I155: 50434101d | J155: 50434101026 03 | L155: 50434101026 03B | M155: Slovenská kanoistikadBTóth Ludovít | N155: 50434101dB
A156: 50434101 | B156: =VLOOKUP(A156,Adr!A:B,2,FALSE) -> Slovenská kanoistika | C156: Vlček Erik | D156: 25000 | E156: 0 | F156: d | G156: 026 03 | H156: B | I156: 50434101d | J156: 50434101026 03 | L156: 50434101026 03B | M156: Slovenská kanoistikadBVlček Erik | N156: 50434101dB
A157: 50434101 | B157: =VLOOKUP(A157,Adr!A:B,2,FALSE) -> Slovenská kanoistika | C157: Zalka Csaba | D157: 7500 | E157: 0 | F157: d | G157: 026 03 | H157: B | I157: 50434101d | J157: 50434101026 03 | L157: 50434101026 03B | M157: Slovenská kanoistikadBZalka Csaba | N157: 50434101dB
A158: 50434101 | B158: =VLOOKUP(A158,Adr!A:B,2,FALSE) -> Slovenská kanoistika | C158: Majstrovstvá Európy juniorov a do 23 rokov – rýchlostná kanoistika | D158: 100000 | E158: 0 | F158: e | G158: 026 03 | H158: B | I158: 50434101e | J158: 50434101026 03 | L158: 50434101026 03B | M158: Slovenská kanoistikaeBMajstrovstvá Európy juniorov a do 23 rokov – rýchlostná kanoistika | N158: 50434101eB
A159: 50434101 | B159: =VLOOKUP(A159,Adr!A:B,2,FALSE) -> Slovenská kanoistika | C159: Majstrovstvá Európy juniorov a do 23 rokov – vodný slalom | D159: 100000 | E159: 0 | F159: e | G159: 026 03 | H159: B | I159: 50434101e | J159: 50434101026 03 | L159: 50434101026 03B | M159: Slovenská kanoistikaeBMajstrovstvá Európy juniorov a do 23 rokov – vodný slalom | N159: 50434101eB
A160: 50434101 | B160: =VLOOKUP(A160,Adr!A:B,2,FALSE) -> Slovenská kanoistika | C160: kanoistika - 20 % navýšenie | D160: 411524 | E160: 0 | F160: f | G160: 026 03 | H160: B | I160: 50434101f | J160: 50434101026 03 | L160: 50434101026 03B | M160: Slovenská kanoistikafBkanoistika - 20 % navýšenie | N160: 50434101fB
A161: 30853427 | B161: =VLOOKUP(A161,Adr!A:B,2,FALSE) -> Slovenská Lakrosová Federácia | C161: lakros - bežné transfery | D161: 32026 | E161: 0 | F161: a | G161: 026 02 | H161: B | I161: 30853427a | J161: 30853427026 02 | K161: lakros | L161: 30853427026 02B | M161: Slovenská Lakrosová FederáciaaBlakros - bežné transfery | N161: 30853427aB
A162: 30853427 | B162: =VLOOKUP(A162,Adr!A:B,2,FALSE) -> Slovenská Lakrosová Federácia | C162: lakros - 20 % navýšenie | D162: 6032 | E162: 0 | F162: f | G162: 026 03 | H162: B | I162: 30853427f | J162: 30853427026 03 | L162: 30853427026 03B | M162: Slovenská Lakrosová FederáciafBlakros - 20 % navýšenie | N162: 30853427fB
A163: 36075809 | B163: =VLOOKUP(A163,Adr!A:B,2,FALSE) -> Slovenská lukostrelecká asociácia 3D | C163: rozvoj športov, ktoré nie sú uznanými podľa zákona č. 440/2015 Z. z. | D163: 38700 | E163: 0 | F163: g | G163: 026 03 | H163: B | I163: 36075809g | J163: 36075809026 03 | L163: 36075809026 03B | M163: Slovenská lukostrelecká asociácia 3DgBrozvoj športov, ktoré nie sú uznanými podľa zákona č. 440/2015 Z. z. | N163: 36075809gB
A164: 30813883 | B164: =VLOOKUP(A164,Adr!A:B,2,FALSE) -> Slovenská motocyklová federácia | C164: motocyklový šport - bežné transfery | D164: 143707 | E164: 0 | F164: a | G164: 026 02 | H164: B | I164: 30813883a | J164: 30813883026 02 | K164: motocyklový šport | L164: 30813883026 02B | M164: Slovenská motocyklová federáciaaBmotocyklový šport - bežné transfery | N164: 30813883aB
A165: 30813883 | B165: =VLOOKUP(A165,Adr!A:B,2,FALSE) -> Slovenská motocyklová federácia | C165: Kohút Tomáš | D165: 5000 | E165: 0 | F165: d | G165: 026 03 | H165: B | I165: 30813883d | J165: 30813883026 03 | L165: 30813883026 03B | M165: Slovenská motocyklová federáciadBKohút Tomáš | N165: 30813883dB
A166: 30813883 | B166: =VLOOKUP(A166,Adr!A:B,2,FALSE) -> Slovenská motocyklová federácia | C166: Vaculík Martin | D166: 15000 | E166: 0 | F166: d | G166: 026 03 | H166: B | I166: 30813883d | J166: 30813883026 03 | L166: 30813883026 03B | M166: Slovenská motocyklová federáciadBVaculík Martin | N166: 30813883dB
A167: 30813883 | B167: =VLOOKUP(A167,Adr!A:B,2,FALSE) -> Slovenská motocyklová federácia | C167: Grand prix v plochej dráhe | D167: 29750 | E167: 0 | F167: e | G167: 026 03 | H167: B | I167: 30813883e | J167: 30813883026 03 | L167: 30813883026 03B | M167: Slovenská motocyklová federáciaeBGrand prix v plochej dráhe | N167: 30813883eB
A168: 30813883 | B168: =VLOOKUP(A168,Adr!A:B,2,FALSE) -> Slovenská motocyklová federácia | C168: Majstrovstvá sveta a Európy v plochej dráhe | D168: 7800 | E168: 0 | F168: e | G168: 026 03 | H168: B | I168: 30813883e | J168: 30813883026 03 | L168: 30813883026 03B | M168: Slovenská motocyklová federáciaeBMajstrovstvá sveta a Európy v plochej dráhe | N168: 30813883eB
A169: 30813883 | B169: =VLOOKUP(A169,Adr!A:B,2,FALSE) -> Slovenská motocyklová federácia | C169: Majstrovstvá sveta Enduro GP | D169: 22000 | E169: 0 | F169: e | G169: 026 03 | H169: B | I169: 30813883e | J169: 30813883026 03 | L169: 30813883026 03B | M169: Slovenská motocyklová federáciaeBMajstrovstvá sveta Enduro GP | N169: 30813883eB
A170: 30813883 | B170: =VLOOKUP(A170,Adr!A:B,2,FALSE) -> Slovenská motocyklová federácia | C170: motocyklový šport - 20 % navýšenie | D170: 27067 | E170: 0 | F170: f | G170: 026 03 | H170: B | I170: 30813883f | J170: 30813883026 03 | L170: 30813883026 03B | M170: Slovenská motocyklová federáciafBmotocyklový šport - 20 % navýšenie | N170: 30813883fB
A171: 34057587 | B171: =VLOOKUP(A171,Adr!A:B,2,FALSE) -> Slovenská Muaythai asociácia | C171: thajský box - bežné transfery | D171: 36269 | E171: 0 | F171: a | G171: 026 02 | H171: B | I171: 34057587a | J171: 34057587026 02 | K171: thajský box | L171: 34057587026 02B | M171: Slovenská Muaythai asociáciaaBthajský box - bežné transfery | N171: 34057587aB
A172: 34057587 | B172: =VLOOKUP(A172,Adr!A:B,2,FALSE) -> Slovenská Muaythai asociácia | C172: Chochlíková Monika | D172: 20000 | E172: 0 | F172: d | G172: 026 03 | H172: B | I172: 34057587d | J172: 34057587026 03 | L172: 34057587026 03B | M172: Slovenská Muaythai asociáciadBChochlíková Monika | N172: 34057587dB
A173: 34057587 | B173: =VLOOKUP(A173,Adr!A:B,2,FALSE) -> Slovenská Muaythai asociácia | C173: thajský box - 20 % navýšenie | D173: 6832 | E173: 0 | F173: f | G173: 026 03 | H173: B | I173: 34057587f | J173: 34057587026 03 | L173: 34057587026 03B | M173: Slovenská Muaythai asociáciafBthajský box - 20 % navýšenie | N173: 34057587fB
A174: 30806887 | B174: =VLOOKUP(A174,Adr!A:B,2,FALSE) -> Slovenská nohejbalová asociácia | C174: Svetový pohár klubov | D174: 15300 | E174: 0 | F174: e | G174: 026 03 | H174: B | I174: 30806887e | J174: 30806887026 03 | L174: 30806887026 03B | M174: Slovenská nohejbalová asociáciaeBSvetový pohár klubov | N174: 30806887eB
A175: 30806887 | B175: =VLOOKUP(A175,Adr!A:B,2,FALSE) -> Slovenská nohejbalová asociácia | C175: rozvoj športov, ktoré nie sú uznanými podľa zákona č. 440/2015 Z. z. | D175: 39100 | E175: 0 | F175: g | G175: 026 03 | H175: B | I175: 30806887g | J175: 30806887026 03 | L175: 30806887026 03B | M175: Slovenská nohejbalová asociáciagBrozvoj športov, ktoré nie sú uznanými podľa zákona č. 440/2015 Z. z. | N175: 30806887gB
A176: 36068764 | B176: =VLOOKUP(A176,Adr!A:B,2,FALSE) -> Slovenská plavecká federácia | C176: plavecké športy - bežné transfery | D176: 3207564 | E176: 0 | F176: a | G176: 026 02 | H176: B | I176: 36068764a | J176: 36068764026 02 | K176: plavecké športy | L176: 36068764026 02B | M176: Slovenská plavecká federáciaaBplavecké športy - bežné transfery | N176: 36068764aB
A177: 36068764 | B177: =VLOOKUP(A177,Adr!A:B,2,FALSE) -> Slovenská plavecká federácia | C177: plavecké športy - kapitálové transfery | D177: 11300 | E177: 0 | F177: a | G177: 026 02 | H177: K | I177: 36068764a | J177: 36068764026 02 | K177: plavecké športy | L177: 36068764026 02K | M177: Slovenská plavecká federáciaaKplavecké športy - kapitálové transfery | N177: 36068764aK
A178: 36068764 | B178: =VLOOKUP(A178,Adr!A:B,2,FALSE) -> Slovenská plavecká federácia | C178: Bernathova Michaela | D178: 7500 | E178: 0 | F178: d | G178: 026 03 | H178: B | I178: 36068764d | J178: 36068764026 03 | L178: 36068764026 03B | M178: Slovenská plavecká federáciadBBernathova Michaela | N178: 36068764dB
A179: 36068764 | B179: =VLOOKUP(A179,Adr!A:B,2,FALSE) -> Slovenská plavecká federácia | C179: Dikács Bence | D179: 10000 | E179: 0 | F179: d | G179: 026 03 | H179: B | I179: 36068764d | J179: 36068764026 03 | L179: 36068764026 03B | M179: Slovenská plavecká federáciadBDikács Bence | N179: 36068764dB
A180: 36068764 | B180: =VLOOKUP(A180,Adr!A:B,2,FALSE) -> Slovenská plavecká federácia | C180: Diky Chiara | D180: 7500 | E180: 0 | F180: d | G180: 026 03 | H180: B | I180: 36068764d | J180: 36068764026 03 | L180: 36068764026 03B | M180: Slovenská plavecká federáciadBDiky Chiara | N180: 36068764dB
A181: 36068764 | B181: =VLOOKUP(A181,Adr!A:B,2,FALSE) -> Slovenská plavecká federácia | C181: Duša Matej | D181: 7500 | E181: 0 | F181: d | G181: 026 03 | H181: B | I181: 36068764d | J181: 36068764026 03 | L181: 36068764026 03B | M181: Slovenská plavecká federáciadBDuša Matej | N181: 36068764dB
A182: 36068764 | B182: =VLOOKUP(A182,Adr!A:B,2,FALSE) -> Slovenská plavecká federácia | C182: Folťan Patrik | D182: 12500 | E182: 0 | F182: d | G182: 026 03 | H182: B | I182: 36068764d | J182: 36068764026 03 | L182: 36068764026 03B | M182: Slovenská plavecká federáciadBFolťan Patrik | N182: 36068764dB
A183: 36068764 | B183: =VLOOKUP(A183,Adr!A:B,2,FALSE) -> Slovenská plavecká federácia | C183: Hrnčárová Alexandra | D183: 12500 | E183: 0 | F183: d | G183: 026 03 | H183: B | I183: 36068764d | J183: 36068764026 03 | L183: 36068764026 03B | M183: Slovenská plavecká federáciadBHrnčárová Alexandra | N183: 36068764dB
A184: 36068764 | B184: =VLOOKUP(A184,Adr!A:B,2,FALSE) -> Slovenská plavecká federácia | C184: Ivan Teresa | D184: 12500 | E184: 0 | F184: d | G184: 026 03 | H184: B | I184: 36068764d | J184: 36068764026 03 | L184: 36068764026 03B | M184: Slovenská plavecká federáciadBIvan Teresa | N184: 36068764dB
A185: 36068764 | B185: =VLOOKUP(A185,Adr!A:B,2,FALSE) -> Slovenská plavecká federácia | C185: Košťál Samuel | D185: 15000 | E185: 0 | F185: d | G185: 026 03 | H185: B | I185: 36068764d | J185: 36068764026 03 | L185: 36068764026 03B | M185: Slovenská plavecká federáciadBKošťál Samuel | N185: 36068764dB
A186: 36068764 | B186: =VLOOKUP(A186,Adr!A:B,2,FALSE) -> Slovenská plavecká federácia | C186: Krajčovičová Lea | D186: 7500 | E186: 0 | F186: d | G186: 026 03 | H186: B | I186: 36068764d | J186: 36068764026 03 | L186: 36068764026 03B | M186: Slovenská plavecká federáciadBKrajčovičová Lea | N186: 36068764dB
A187: 36068764 | B187: =VLOOKUP(A187,Adr!A:B,2,FALSE) -> Slovenská plavecká federácia | C187: Nagy Richard | D187: 20000 | E187: 0 | F187: d | G187: 026 03 | H187: B | I187: 36068764d | J187: 36068764026 03 | L187: 36068764026 03B | M187: Slovenská plavecká federáciadBNagy Richard | N187: 36068764dB
A188: 36068764 | B188: =VLOOKUP(A188,Adr!A:B,2,FALSE) -> Slovenská plavecká federácia | C188: Podmaníková Andrea | D188: 12500 | E188: 0 | F188: d | G188: 026 03 | H188: B | I188: 36068764d | J188: 36068764026 03 | L188: 36068764026 03B | M188: Slovenská plavecká federáciadBPodmaníková Andrea | N188: 36068764dB
A189: 36068764 | B189: =VLOOKUP(A189,Adr!A:B,2,FALSE) -> Slovenská plavecká federácia | C189: Slušná Lilian | D189: 17500 | E189: 0 | F189: d | G189: 026 03 | H189: B | I189: 36068764d | J189: 36068764026 03 | L189: 36068764026 03B | M189: Slovenská plavecká federáciadBSlušná Lilian | N189: 36068764dB
A190: 36068764 | B190: =VLOOKUP(A190,Adr!A:B,2,FALSE) -> Slovenská plavecká federácia | C190: Strapeková Žofia | D190: 7500 | E190: 0 | F190: d | G190: 026 03 | H190: B | I190: 36068764d | J190: 36068764026 03 | L190: 36068764026 03B | M190: Slovenská plavecká federáciadBStrapeková Žofia | N190: 36068764dB
A191: 36068764 | B191: =VLOOKUP(A191,Adr!A:B,2,FALSE) -> Slovenská plavecká federácia | C191: štafeta - plávanie | D191: 10000 | E191: 0 | F191: d | G191: 026 03 | H191: B | I191: 36068764d | J191: 36068764026 03 | L191: 36068764026 03B | M191: Slovenská plavecká federáciadBštafeta - plávanie | N191: 36068764dB
A192: 36068764 | B192: =VLOOKUP(A192,Adr!A:B,2,FALSE) -> Slovenská plavecká federácia | C192: Tišťan Tibor | D192: 7500 | E192: 0 | F192: d | G192: 026 03 | H192: B | I192: 36068764d | J192: 36068764026 03 | L192: 36068764026 03B | M192: Slovenská plavecká federáciadBTišťan Tibor | N192: 36068764dB
A193: 36068764 | B193: =VLOOKUP(A193,Adr!A:B,2,FALSE) -> Slovenská plavecká federácia | C193: Trníková Nikoleta | D193: 12500 | E193: 0 | F193: d | G193: 026 03 | H193: B | I193: 36068764d | J193: 36068764026 03 | L193: 36068764026 03B | M193: Slovenská plavecká federáciadBTrníková Nikoleta | N193: 36068764dB
A194: 36068764 | B194: =VLOOKUP(A194,Adr!A:B,2,FALSE) -> Slovenská plavecká federácia | C194: plavecké športy - 20 % navýšenie | D194: 606267 | E194: 0 | F194: f | G194: 026 03 | H194: B | I194: =A194&F194 -> 36068764f | J194: =A194&G194 -> 36068764026 03 | L194: =A194&G194&H194 -> 36068764026 03B | M194: =B194&F194&H194&C194 -> Slovenská plavecká federáciafBplavecké športy - 20 % navýšenie | N194: =+I194&H194 -> 36068764fB
A195: 30851459 | B195: =VLOOKUP(A195,Adr!A:B,2,FALSE) -> Slovenská rugbyová únia | C195: rugby - bežné transfery | D195: 43285 | E195: 0 | F195: a | G195: 026 02 | H195: B | I195: 30851459a | J195: 30851459026 02 | K195: rugby | L195: 30851459026 02B | M195: Slovenská rugbyová úniaaBrugby - bežné transfery | N195: 30851459aB
A196: 30851459 | B196: =VLOOKUP(A196,Adr!A:B,2,FALSE) -> Slovenská rugbyová únia | C196: rugby - 20 % navýšenie | D196: 8153 | E196: 0 | F196: f | G196: 026 03 | H196: B | I196: 30851459f | J196: 30851459026 03 | L196: 30851459026 03B | M196: Slovenská rugbyová úniafBrugby - 20 % navýšenie | N196: 30851459fB
A197: 37998919 | B197: =VLOOKUP(A197,Adr!A:B,2,FALSE) -> Slovenská skialpinistická asociácia | C197: skialpinizmus - bežné transfery | D197: 32026 | E197: 0 | F197: a | G197: 026 02 | H197: B | I197: 37998919a | J197: 37998919026 02 | K197: skialpinizmus | L197: 37998919026 02B | M197: Slovenská skialpinistická asociáciaaBskialpinizmus - bežné transfery | N197: 37998919aB
A198: 37998919 | B198: =VLOOKUP(A198,Adr!A:B,2,FALSE) -> Slovenská skialpinistická asociácia | C198: dvojica - skialpinizmus (dospelí mix) | D198: 20000 | E198: 0 | F198: d | G198: 026 03 | H198: B | I198: 37998919d | J198: 37998919026 03 | L198: 37998919026 03B | M198: Slovenská skialpinistická asociáciadBdvojica - skialpinizmus (dospelí mix) | N198: 37998919dB
A199: 37998919 | B199: =VLOOKUP(A199,Adr!A:B,2,FALSE) -> Slovenská skialpinistická asociácia | C199: Jagerčíková Marianna | D199: 50000 | E199: 0 | F199: d | G199: 026 03 | H199: B | I199: 37998919d | J199: 37998919026 03 | L199: 37998919026 03B | M199: Slovenská skialpinistická asociáciadBJagerčíková Marianna | N199: 37998919dB
A200: 37998919 | B200: =VLOOKUP(A200,Adr!A:B,2,FALSE) -> Slovenská skialpinistická asociácia | C200: Šiarnik Jakub | D200: 12500 | E200: 0 | F200: d | G200: 026 03 | H200: B | I200: 37998919d | J200: 37998919026 03 | L200: 37998919026 03B | M200: Slovenská skialpinistická asociáciadBŠiarnik Jakub | N200: 37998919dB
... 603 more rows

Sheet Cis (hidden)
A1: Šport | C1: Účel | D1: Účel rozšírený | E1: Režim | F1: PPG | G1: Transfer | I1: PPG | J1: PPG názov
A2: aikido | C2: a | D2: šport 23 | E2: 1 | F2: 026 02 | G2: Príspevok uznanému športu | I2: 026 01 | J2: Šport pre všetkých, školský a univerzitný šport
A3: americký futbal | C3: b | D3: talenty | E3: 1 | F3: 026 02 | G3: Príspevok uznanému športu | I3: 026 02 | J3: Uznané športy
A4: atletika | C4: c | D4: reprezentácia | E4: 1 | F4: 026 02 | G4: Príspevok uznanému športu | I4: 026 03 | J4: Národné športové projekty
A5: automobilový šport | C5: d | D5: administratíva | E5: 1 | F5: 026 02 | G5: Príspevok uznanému športu | I5: 026 04 | J5: Športová infraštruktúra
A6: bandy hokej | C6: e | D6: ostatné | E6: 1 | F6: 026 02 | G6: Príspevok uznanému športu | I6: 026 05 | J6: Prierezové činnosti
A7: basebal | C7: f | D7: športovci | E7: 2 | F7: 026 03 | G7: Príspevok šporovcom top tímu
A8: basketbal | C8: g | D8: SOV | E8: 3 | F8: 026 03 | G8: Príspevok Slovenskému olympijskému výboru
A9: baskická pelota | C9: h | D9: SPV | E9: 3 | F9: 026 03 | G9: Príspevok slovenskému paralympijskému výboru
A10: bedminton | C10: i | D10: účasť a mládež | E10: 4 | F10: 026 03 | G10: Dotácia
A11: biatlon | C11: j | D11: multi a ŠPV | E11: 4 | F11: 026 01 | G11: Dotácia
A12: biliard | C12: k | D12: trasy | E12: 4 | F12: 026 01 | G12: Dotácia
A13: boby a skeleton | C13: l | D13: kampaň | E13: 4 | F13: 026 05 | G13: Dotácia
A14: boccia | C14: m | D14: odmeny | E14: 4 | F14: 026 03 | G14: Dotácia
A15: boule lyonnaise | C15: n
A16: bowling | C16: o
A17: box | C17: p
A18: bridž | C18: q
A19: curling | C19: r
A20: cyklistika | C20: s
A21: dáma | C21: t
A22: dračie lode | C22: u
A23: dráhový golf | C23: v
A24: fistbal | C24: w
A25: florbal | C25: x
A26: futbal | C26: y
A27: go | C27: z
A28: golf
A29: gymnastika
A30: hádzaná
A31: horolezectvo
A32: jachting
A33: jazdectvo
A34: judo
A35: ju-jitsu
A36: kanoistika
A37: karate
A38: kendo
A39: kickbox
A40: kolieskové korčuľovanie
A41: korfbal
A42: krasokorčuľovanie
A43: kriket
A44: kulturistika a fitnes
A45: ľadové kužele
A46: ľadový hokej
A47: lakros
A48: letecké športy
A49: lukostreľba
A50: lyžovanie
A51: moderný päťboj
A52: motocyklový šport
A53: netbal
A54: orientačné športy
A55: petang
A56: plavecké športy
A57: pólo
A58: potápačské športy
A59: povzbudzovanie
A60: pozemný hokej
A61: preťahovanie lanom
A62: psie záprahy
A63: raketbal
A64: rugby
A65: rybolovná technika
A66: rýchlokorčuľovanie
A67: sambo
A68: sánkovanie
A69: savate
A70: sepaktakraw
A71: silové športy
A72: skialpinizmus
A73: soft tenis
A74: softbal
A75: squash
A76: stolný tenis
A77: streľba
A78: sumo
A79: surfovanie
A80: šach
A81: šerm
A82: šípky
A83: športové lezectvo
A84: športové rybárstvo
A85: športy s lietajúcim diskom
A86: taekwondo
A87: tanečný šport
A88: tenis
A89: thajský box
A90: triatlon
A91: veslovanie
A92: vodné lyžovanie
A93: vodné záchranárstvo
A94: vodný motorizmus
A95: volejbal
A96: vzpieranie
A97: wushu
A98: zápasenie

Sheet Avízo - výnosy
A1: =Spolu!C3&", "&Spolu!C6 -> Slovenský zväz florbalu, Olympijské námestie 14290/1, Bratislava, 832 80 | N1: =O1&" - "&P1 -> a - príspevok uznaným športom | O1: a | P1: príspevok uznaným športom
N2: =O2&" - "&P2 -> b - príspevok Slovenskému olympijskému a športovému výboru | O2: b | P2: príspevok Slovenskému olympijskému a športovému výboru
E3: 1. VYPLŇTE ZELENÉ BUNKY 2. VYTLAČTE, PODPÍŠTE A ODOŠLITE V LISTINNEJ PODOBE | N3: c - príspevok Slovenskému paralympijskému výboru | O3: c | P3: príspevok Slovenskému paralympijskému výboru
N4: d - príspevok športovcom top tímu | O4: d | P4: príspevok športovcom top tímu
C5: Ministerstvo cestovného ruchu a športu Slovenskej republiky | N5: e - rozvoj športov, ktoré nie sú uznanými podľa zákona č. 440/2015 Z. z. | O5: e | P5: rozvoj športov, ktoré nie sú uznanými podľa zákona č. 440/2015 Z. z.
C6: sekcia financovania športu a štátnej športovej politiky | E6: Dátum poukázania vrátených prostriedkov: | F6: 2025-03-08 | N6: f - organizovanie významných a tradičných športových podujatí na území SR v roku 2020 | O6: f | P6: organizovanie významných a tradičných športových podujatí na území SR v roku 2020
C7: Pribinova 32 | E7: Suma vrátených prostriedkov (eur): | F7: 0 | N7: g - projekty školského, univerzitného športu a športu pre všetkých | O7: g | P7: projekty školského, univerzitného športu a športu pre všetkých
C8: 810 08 Bratislava 1 | E8: IBAN odosielajúceho účtu: | N8: h - podpora a rozvoj turistických a cykloturistických trás | O8: h | P8: podpora a rozvoj turistických a cykloturistických trás
E9: Dátum odoslania AVÍZA: | F9: 2025-03-08 | N9: i - finančné odmeny športovcom za výsledky dosiahnuté v roku 2019 a trénerom mládeže za dosiahnuté výsledky ich športovcov v roku 2019 a za celoživotnú prácu s mládežou | O9: i | P9: finančné odmeny športovcom za výsledky dosiahnuté v roku 2019 a trénerom mládeže za dosiahnuté výsledky ich športovcov v roku 2019 a za celoživotnú prácu s mládežou
N10: j - projekty pre popularizáciu pohybových aktivít detí, mládeže a seniorov | O10: j | P10: projekty pre popularizáciu pohybových aktivít detí, mládeže a seniorov
N11: k - výstavba, modernizácia a rekonštrukcia športovej infraštruktúry národného významu | O11: k | P11: výstavba, modernizácia a rekonštrukcia športovej infraštruktúry národného významu
A12: Avízo o úhrade výnosov | N12: l - podpora zdravotne postihnutých športovcov | O12: l | P12: podpora zdravotne postihnutých športovcov
N13: m - plnenie úloh verejného záujmu v športe národnými športovými organizáciami | O13: m | P13: plnenie úloh verejného záujmu v športe národnými športovými organizáciami
A14: ="Oznamujeme Vám, že dňa "&TEXT(F6,"dd..mm.yyyy")&" sme poukázali Ministerstvu cestovného ruchu a športu Slovenskej republiky výnosy z príspevku/dotácie poskytnutého/poskytnutej na úlohy v oblasti športu v roku 2024 v sume "&TEXT(F7,"### ### ###,00")& " eur. Finančné prostriedky vraciame z programu 026 Národný program rozvoja športu v SR." -> Oznamujeme Vám, že dňa 08.03.2025 sme poukázali Ministerstvu cestovného ruchu a športu Slovenskej republiky výnosy z príspevku/dotácie poskytnutého/poskytnutej na úlohy v oblasti športu v roku 2024 v sume ,00 eur. Finančné prostriedky vraciame z programu 026 Národný program rozvoja športu v SR. | N14: n - organizovanie významnej súťaže podľa § 55 ods. 1 písm. b) | O14: n | P14: organizovanie významnej súťaže podľa § 55 ods. 1 písm. b)
A15: z podprogramu: | B15: 026 02 - Uznané športy | N15: o - účasť na významnej súťaži podľa § 3 písm. h) druhého až štvrtého bodu Zákona o športe vrátane prípravy na túto súťaž | O15: o | P15: účasť na významnej súťaži podľa § 3 písm. h) druhého až štvrtého bodu Zákona o športe vrátane prípravy na túto súťaž
A16: z nášho účtu: | B16: =F8 -> 0 | E16: V prípade nejasností kontaktujte nasledovné osoby: | N16: p - účasť na významnej súťaži podľa § 3 písm. h) prvého bodu Zákona o športe | O16: p | P16: účasť na významnej súťaži podľa § 3 písm. h) prvého bodu Zákona o športe
A17: na účet: | B17: SK12 8180 0000 0070 0069 4147 | C17: 31 | E17: Ing. Jaroslava Gregoríková | F17: 421947749445 | N17: q - | O17: q
B18: ŠS: | C18: =Spolu!C4 -> 31795421 | E18: Ing. Mária Horáková | F18: 421947749446 | N18: r - | O18: r
E19: Mgr. Lýdia Gojda | F19: 421947749717
A20: Dátum: | B20: =F6 -> 2025-03-08
B21: Mgr. Martin Kopejtko, +421 908 973 485
B22: meno, priezvisko, mobil a podpis osoby oprávnenej vykonávať právne úkony v mene prijímateľa (v súlade so stanovami/zriaďovacou listinou) | N22: =O22&" - "&P22 -> 026 01 - Šport pre všetkých, školský a univerzitný šport | O22: 026 01 | P22: Šport pre všetkých, školský a univerzitný šport
N23: =O23&" - "&P23 -> 026 02 - Uznané športy | O23: 026 02 | P23: Uznané športy
N24: =O24&" - "&P24 -> 026 03 - Národné športové projekty | O24: 026 03 | P24: Národné športové projekty
N25: =O25&" - "&P25 -> 026 04 - Športová infraštruktúra | O25: 026 04 | P25: Športová infraštruktúra
N26: =O26&" - "&P26 -> 026 05 - Prierezové činnosti v športe | O26: 026 05 | P26: Prierezové činnosti v športe
N28: SK80 8180 0000 0070 0006 5236
N29: SK68 8180 0000 0070 0006 3900
N30: SK94 8180 0000 0070 0006 3820

Sheet Avízo - vratka
A1: =Spolu!C3&", "&Spolu!C6 -> Slovenský zväz florbalu, Olympijské námestie 14290/1, Bratislava, 832 80 | N1: =O1&" - "&P1 -> a - príspevok uznaným športom | O1: a | P1: =Spolu!B17 -> príspevok uznaným športom
N2: =O2&" - "&P2 -> b - príspevok Slovenskému olympijskému a športovému výboru | O2: b | P2: =Spolu!B18 -> príspevok Slovenskému olympijskému a športovému výboru
E3: 1. VYPLŇTE ZELENÉ BUNKY 2. VYTLAČTE, PODPÍŠTE A ODOŠLITE V LISTINNEJ PODOBE | N3: c - príspevok Slovenskému paralympijskému výboru | O3: c | P3: =Spolu!B19 -> príspevok Slovenskému paralympijskému výboru
N4: d - príspevok športovcom top tímu | O4: d | P4: =Spolu!B20 -> príspevok športovcom top tímu
C5: Ministerstvo cestovného ruchu a športu Slovenskej republiky | N5: e - organizácia významnej súťaže alebo účasť na významnej súťaži podľa § 3 písm. h) vrátane prípravy na túto súťaž | O5: e | P5: =Spolu!B21 -> organizácia významnej súťaže alebo účasť na významnej súťaži podľa § 3 písm. h) vrátane prípravy na túto súťaž
C6: sekcia financovania športu a štátnej športovej politiky | E6: Dátum poukázania vrátených prostriedkov: | F6: 2025-03-04 | N6: f - plnenie úloh verejného záujmu v športe | O6: f | P6: =Spolu!B22 -> plnenie úloh verejného záujmu v športe
C7: Pribinova 32 | E7: Suma vrátených prostriedkov (eur): | F7: 416.12 | N7: g - rozvoj športov, ktoré nie sú uznanými podľa zákona č. 440/2015 Z. z. | O7: g | P7: =Spolu!B23 -> rozvoj športov, ktoré nie sú uznanými podľa zákona č. 440/2015 Z. z.
C8: 810 08 Bratislava 1 | E8: IBAN odosielajúceho účtu: | F8: SK09 0900 0000 0051 0969 4061 | N8: h - podpora a rozvoj turistických a cykloturistických trás | O8: h | P8: =Spolu!B24 -> podpora a rozvoj turistických a cykloturistických trás
E9: IBAN určeného účtu ministerstva: | F9: SK12 8180 0000 0070 0069 4147 | N9: i - finančné odmeny športovcom a trénerom mládeže za dosiahnuté výsledky | O9: i | P9: =Spolu!B25 -> finančné odmeny športovcom a trénerom mládeže za dosiahnuté výsledky
E10: Dátum odoslania AVÍZA: | F10: 2025-03-08 | N10: j - projekty školského športu, univerzitného športu a športu pre všetkých | O10: j | P10: =Spolu!B26 -> projekty školského športu, univerzitného športu a športu pre všetkých
N11: k - výstavba, modernizácia a rekonštrukcia športovej infraštruktúry národného významu | O11: k | P11: =Spolu!B27 -> výstavba, modernizácia a rekonštrukcia športovej infraštruktúry národného významu
A12: Avízo o vrátení finančných prostriedkov | F12: SK84 8180 0000 0070 0069 4112 (výdavkový účet štátneho rozpočtu) slúži pre vrátenie nevyčerpaných finančných prostriedkov poskytnutých v r. 2024, v termíne do 30.11.2024 | N12: l - podpora zdravotne postihnutých športovcov | O12: l | P12: =Spolu!B28 -> podpora zdravotne postihnutých športovcov
A13: ="Oznamujeme Vám, že dňa "&TEXT(F6,"dd..mm.yyyy")&" sme poukázali Ministerstvu cestovného ruchu a športu Slovenskej republiky nevyčerpané finančné prostriedky v sume "&TEXT(F7,"### ### ###,00")& " eur z príspevku/dotácie poskytnutého/poskytnutej na úlohy v oblasti športu v roku 2024. Finančné prostriedky vraciame z programu 026 Národný program rozvoja športu v SR." -> Oznamujeme Vám, že dňa 04.03.2025 sme poukázali Ministerstvu cestovného ruchu a športu Slovenskej republiky nevyčerpané finančné prostriedky v sume 416,12 eur z príspevku/dotácie poskytnutého/poskytnutej na úlohy v oblasti športu v roku 2024. Finančné prostriedky vraciame z programu 026 Národný program rozvoja športu v SR. | F13: SK12 8180 0000 0070 0069 4147 (depozitný účet) slúži pre vrátenie nevyčerpaných/nezúčtovaných finančných prostriedkov poskytnutých v r. 2024, v termíne od 01.01.2025 do 31.05.2025 | N13: m - Organizácia tradičných športových podujatí | O13: m | P13: =Spolu!B29 -> Organizácia tradičných športových podujatí
A14: z podprogramu: | B14: 026 03 - Národné športové projekty | F14: SK62 8180 0000 0070 0069 4120 (príjmový účet) slúži na vrátenie finančných prostriedkov za porušenie finančnej disciplíny | N14: n - | O14: n
A15: z účelu: | B15: f - plnenie úloh verejného záujmu v športe | N15: o - | O15: o
A16: z nášho účtu: | B16: =F8 -> SK09 0900 0000 0051 0969 4061 | N16: p - | O16: p
A17: na účet: | B17: =F9 -> SK12 8180 0000 0070 0069 4147 | N17: q - | O17: q
B18: VS: | C18: 31 | N18: r - | O18: r
B19: ŠS: | C19: =Spolu!C4 -> 31795421 | F19: V prípade nejasností kontaktujte nasledovné osoby: | N19: -
A20: Dátum: | B20: =F6 -> 2025-03-04 | F20: Ing. Jaroslava Gregoríková | G20: 421947749445
F21: Ing. Mária Horáková | G21: 421947749446 | N21: =O21&" - "&P21 -> 026 01 - Šport pre všetkých, školský a univerzitný šport | O21: 026 01 | P21: Šport pre všetkých, školský a univerzitný šport
F22: Mgr. Lýdia Gojda | G22: 421947749717 | N22: =O22&" - "&P22 -> 026 02 - Uznané športy | O22: 026 02 | P22: Uznané športy
B23: Ngr. Martin Kopejtko, +421 908 973 485 | N23: =O23&" - "&P23 -> 026 03 - Národné športové projekty | O23: 026 03 | P23: Národné športové projekty
B24: meno, priezvisko, mobil a podpis osoby oprávnenej vykonávať právne úkony v mene prijímateľa (v súlade so stanovami/zriaďovacou listinou) | N24: =O24&" - "&P24 -> 026 04 - Športová infraštruktúra | O24: 026 04 | P24: Športová infraštruktúra
N25: =O25&" - "&P25 -> 026 05 - Prierezové činnosti v športe | O25: 026 05 | P25: Prierezové činnosti v športe
N27: SK84 8180 0000 0070 0069 4112
N28: SK12 8180 0000 0070 0069 4147
N29: SK62 8180 0000 0070 0069 4120

Sheet Skratky
A1: Zoznam akceptovaných skratiek
A2: Pri vyúčtovaní môžete používať nasledovné skratky. Ak potrebujete, definujte ďalšie.
A3: Skratka | B3: Vysvetlenie
A4: MS | B4: majstrovstvá sveta
A5: ME | B5: majstrovstvá Európy
A6: SP | B6: svetový pohár
A7: EP | B7: európsky pohár
A8: MSR | B8: majstrovstvá Slovenska
A9: VV | B9: výkonný výbor
A10: ŠH | B10: športová hala
A11: PHM | B11: pohonné hmoty
A12: VC | B12: veľká cena
A13: VZ | B13: valné zhromaždenie
A14: EČV | B14: evidenčné číslo vozidla
A15: OA | B15: osobný automobil
A16: BUS | B16: autobus
A17: LOD | B17: loď
A18: LET | B18: lietadlo
A19: VLAK | B19: vlak
A20: ÚTM | B20: útvar talentovanej mládeže
A21: CTM | B21: centrum talentovanej mládeže
A22: RV Do | B22: regionálny výber dorastencov
A23: RV Dy | B23: regionálny výber dorasteniek
A24: RV SZ | B24: regionálny výber starších žiakov
A25: RV Szy | B25: regionálny výber starších žiačok
A26: LK SZFB | B26: Ligová komisia Slovenského zväzu florbalu
A27: SZFB | B27: Slovenský zväz florbalu
A28: ZEX | B28: ženská extraliga
A29: MEX | B29: mužská extraliga
A30: RD J | B30: reprezentačné družstvo juniorov
A31: RD Jy | B31: reprezentačné družstvo junioriek
A32: RD M | B32: reprezentačné družstvo mužov
A33: RD Ž | B33: reprezentačné družstvo žien
A34: RT | B34: realizačný tím
A35: RT RD J | B35: realizačný tím reprezentačného družstva juniorov
A36: RT RD Jy | B36: realizačný tím reprezentačného družstva junioriek
A37: RT RD M | B37: realizačný tím reprezentačného družstva mužov
A38: RT RD Ž | B38: realizačný tím reprezentačného družstva žien
A39: BA SZFB | B39: bratislavský región slovenského zväzu florbalu
A40: ZAP SZFB | B40: západoslovenský región slovenského zväzu florbalu
A41: STR SZFB | B41: stredoslovenský región slovenského zväzu florbalu
A42: VYCH SZFB | B42: východoslovenský región slovenského zväzu florbalu
A43: DK SZFB | B43: disciplinárna komisia Slovenského zväzu florbalu
A44: RR | B44: regionálna rada
A45: P-SZFB | B45: Prezídium Slovenského zväzu florbalu
A46: RV | B46: regionálne výbery
A47: KR a MR | B47: Komisia reprezentácie a medzinárodného rozvoja
A48: KRO | B48: Komisia rozhodcov a observerov
A49: SZFB | B49: Slovenský zväz florbalu
